Workbook

Sheet Cover
A1: =RIGHT(CELL("filename", $A$1), LEN(CELL("filename", $A$1)) - SEARCH("]", CELL("filename", $A$1))) -> Cover
C3: Model name: | D3: PR19 Revenue adjustments feeder model
C4: Version number: | D4: 01j - June 2018 update
C5: Filename: | D5: ="PR19 Revenue adjustments feeder model " & D4 & ".xlsm" -> PR19 Revenue adjustments feeder model 01j - June 2018 update.xlsm
C6: Date: | D6: 2018-06-20
C7: Author: | D7: Ofwat and F1F9 UK Ltd
C8: Author contact information: | D8: PR19@ofwat.gsi.gov.uk
C11: Summary of model: | D11: The model is designed to take the revenue adjustment outputs from the PR09 and PR14 reconciliations and convert them for use in the PR19 financial model in line
D12: with Delivering Water 2020: PR19 methodology, chapter 12 (accounting for past delivery).
C14: Known limitations: | D14: The model has been subject to internal Ofwat quality assurance.
C16: Feedback: | D16: We would welcome feedback on the PR19 revenue adjustments feeder model. Please send any feedback to the following email address
D17: PR19@ofwat.gsi.gov.uk
A20: End of sheet

Sheet Change Log
A1: Change log
B3: # | C3: Issue | D3: Change | E3: Sheet | F3: Row
A5: 2017-12-01 | B5: 1 | C5: Company noted that the Ofwat feeder model incorrectly deflates prices from 2020 year end prices to 2017-18 financial year average prices by referencing the RPI March index value in the numerator. | D5: Corrected calculation of the deflation factor to reference CPIH March 2020 index value. | E5: Indexation | F5: 109
A6: 2017-12-01 | B6: 2 | C6: Companies noted differences in item labels between the Ofwat feeder model and the business plan tables | D6: Item labels have been aligned with the business plan tables | E6: Calc Profiling Summary_Output
A7: 2018-06-01 | B7: 3 | C7: In response to a query a new business plan table has been created. The Ofwat feeder model has been updated to reflect the additional table Dmmy10. | D7: Include the Dummy10 revenue adjustment. | E7: Inputs Calc Summary_Output
A8: 2018-06-01 | B8: 4 | C8: Change email address | D8: Changed from water2020 mailbox to PR19 mailbox | E8: Cover

Sheet Map & Key
A1: =RIGHT(CELL("filename", $A$1), LEN(CELL("filename", $A$1)) - SEARCH("]", CELL("filename", $A$1))) -> Map & Key
A3: GENERIC MODEL DESIGN
F5: ABOVE BONNET - USER INTERFACE
H8: Inputs | P8: Output Summary
F13: BELOW BONNET - CALCULATION ENGINE
H19: Input Transition | L19: Calculations | P19: Detailed Outputs
F25: Note: FAST strictly applicable below the bonnet
A28: MODEL MAP
F30: MODEL MAP
H32: INPUTS | L32: CALCULATIONS | V32: DOCUMENTATION
H36: =Inputs!$A$1 -> Inputs | L36: =Time!$A$1 -> Time | P36: =Summary_Output!$A$1 -> Summary_Output | V36: =$A$1 -> Map & Key
H37: All the hardcoded inputs used in the model for calculation. | L37: The model timeline and flag calculations are done in this sheet. | P37: A summary of links of major output of this model. | V37: Sheet references and model flow; Sheet tabs colours, colour coding, abbreviations, range names are mentioned in this sheet.
L39: =Indexation!$A$1 -> Indexation
L40: All the indexation related calculations are done in this sheet.
L42: =Calc!$A$1 -> Calc
L43: All the price regulations related calculations are done in this sheet.
L45: =Profiling!$A$1 -> Profiling
L46: All the profiling of revenue inputs related calculations are done in this sheet.
A51: SHEET TABS
H53: Light Yellow | J53: Input sheets
H55: No colour (default Excel tab colour) | J55: Calculation and documentation sheets
H57: Pale Blue | J57: Key output sheets
H59: Turquoise | J59: Quality control sheets
H61: Yellow | J61: To be completed, temporary, restructured, or deleted
A64: COLOUR
B66: Font colour only
H67: Blue font | J67: Imported from another sheet
H69: Red font | J69: Exported to another sheet (except from Input sheets)
H71: Black font | J71: Within sheet link or calculation
B73: Font + shade combinations
H74: Black font + Light Yellow shade | J74: Inputs
H76: Black font + Light Grey shade on entire row | J76: Within-worksheet counter-flow
H78: Blue font + Light Grey shade on entire row | J78: Between-worksheet counter-flow
H80: Empty Cell with Light Grey shade | J80: Empty cells being deliberately referenced
B82: Other
H83: Black font + Pale Blue shade on entire row | J83: Section separator
H85: Light Turquoise shade | J85: Stored/dead/hard coded outputs
H87: Tan shade | J87: Pre-model time line actuals
H89: Yellow shade | J89: Work in progress / temporary
H91: Lime shade | J91: Values or logic to be reviewed
B93: Error checks & alerts
H94: Green shade | J94: OK
H96: Red shade | J96: Error
H98: Gold shade | J98: Alert
A101: ABBREVIATIONS
H103: BR | I103: Bio resources
H104: CPIH | I104: Consumer price index housing
H105: RCV | I105: Regulatory capital value
H106: RPI | I106: Retail price index
H107: WR | I107: Water resources
H108: WN | I108: Water network
H109: WWN | I109: Wastewater network
A112: NAMES
H114: NO NAME RANGES PRESENT IN THE MODEL
A117: LIST OF FUNCTIONS USED
H119: SUMPRODUCT | J119: Multiplies corresponding components in the given arrays, and returns the sum of those products.
H120: MATCH | J120: The MATCH function searches for a specified item in a range of cells, and then returns the relative position of that item in the range.
H121: INDEX | J121: Returns a value or the reference to a value from within a table or range, selected by the row and column number indexes
A124: End of sheet

Sheet Inputs
A1: =RIGHT(CELL("FILENAME", $A$1), LEN(CELL("FILENAME", $A$1)) - SEARCH("]", CELL("FILENAME", $A$1))) -> Inputs
E2: =Time!E$25 -> Model period ending | J2: =Time!J$25 -> 2013-03-31 | K2: =Time!K$25 -> 2014-03-31 | L2: =Time!L$25 -> 2015-03-31 | M2: =Time!M$25 -> 2016-03-31 | N2: =Time!N$25 -> 2017-03-31 | O2: =Time!O$25 -> 2018-03-31 | P2: =Time!P$25 -> 2019-03-31 | Q2: =Time!Q$25 -> 2020-03-31 | R2: =Time!R$25 -> 2021-03-31 | S2: =Time!S$25 -> 2022-03-31 | T2: =Time!T$25 -> 2023-03-31 | U2: =Time!U$25 -> 2024-03-31 | V2: =Time!V$25 -> 2025-03-31
E3: =Time!E$80 -> Timeline label | J3: =Time!J$80 -> Pre-Fcst | K3: =Time!K$80 -> Pre-Fcst | L3: =Time!L$80 -> Pre-Fcst | M3: =Time!M$80 -> Pre-Fcst | N3: =Time!N$80 -> Pre-Fcst | O3: =Time!O$80 -> Pre-Fcst | P3: =Time!P$80 -> Pre-Fcst | Q3: =Time!Q$80 -> Pre-Fcst | R3: =Time!R$80 -> Forecast | S3: =Time!S$80 -> Forecast | T3: =Time!T$80 -> Forecast | U3: =Time!U$80 -> Forecast | V3: =Time!V$80 -> Forecast
E4: =Time!E$103 -> Financial year ending | J4: =Time!J$103 -> 2013 | K4: =Time!K$103 -> 2014 | L4: =Time!L$103 -> 2015 | M4: =Time!M$103 -> 2016 | N4: =Time!N$103 -> 2017 | O4: =Time!O$103 -> 2018 | P4: =Time!P$103 -> 2019 | Q4: =Time!Q$103 -> 2020 | R4: =Time!R$103 -> 2021 | S4: =Time!S$103 -> 2022 | T4: =Time!T$103 -> 2023 | U4: =Time!U$103 -> 2024 | V4: =Time!V$103 -> 2025
A5: =IF(COUNTIF(A6:A165,"< 0") + COUNTIF(A6:A165,">0") <> 0, 1, 0) -> 0 | D5: Input references | E5: =Time!E$10 -> Model column counter | F5: Constant | G5: Unit | H5: Total | J5: =Time!J$10 -> 1 | K5: =Time!K$10 -> 2 | L5: =Time!L$10 -> 3 | M5: =Time!M$10 -> 4 | N5: =Time!N$10 -> 5 | O5: =Time!O$10 -> 6 | P5: =Time!P$10 -> 7 | Q5: =Time!Q$10 -> 8 | R5: =Time!R$10 -> 9 | S5: =Time!S$10 -> 10 | T5: =Time!T$10 -> 11 | U5: =Time!U$10 -> 12 | V5: =Time!V$10 -> 13
E6: [Used in formula range - Do not delete]
A8: A: TIME
B10: Timeline setup
C12: Timeline start dates
E13: 1st model column start date | F13: 2012-04-01 | G13: date | H13: Date should be the first date of the financial year
C15: Financial year inputs
E16: First modelling column financial year# | F16: 2013 | G16: year # | H16: Financial model start year
E17: Financial year end month number | F17: 3 | G17: month # | H17: Month of financial year end for financial model
C19: Timeline labels
E20: Pre - forecast period | F20: Pre-Fcst | G20: label
E21: Forecast period | F21: Forecast | G21: label
E22: Post - forecast period | F22: Post-Fcst | G22: label
B24: Project dates
E26: Forecast start date | F26: 2020-04-01 | G26: date
E27: Forecast duration | F27: 5 | G27: years
E28: Forecast duration (text) | F28: =YEAR(F26) & "-" & TEXT(DATE(YEAR(F26) + F27, 1, 1), "yy") -> 2020-25 | G28: years # | H28: For info. only
A31: B: INDEXATION
B33: CPIH INDEXATION
E35: Consumer Price Index for April | G35: index | J35: 95.9 | K35: 98 | L35: 99.6 | M35: 99.9 | N35: 100.6 | O35: 103.2 | P35: =+'App23'!N22 -> 105.85224 | Q35: =+'App23'!O22 -> 108.3185972 | R35: =+'App23'!P22 -> 110.4849691 | S35: =+'App23'!Q22 -> 112.6946685 | T35: =+'App23'!R22 -> 114.9485619 | U35: =+'App23'!S22 -> 117.2475331 | V35: =+'App23'!T22 -> 119.5924838
E36: Consumer Price Index for May | G36: index | J36: 95.9 | K36: 98.2 | L36: 99.6 | M36: 100.1 | N36: 100.8 | O36: 103.5 | P36: =+'App23'!N23 -> 106.11855 | Q36: =+'App23'!O23 -> 108.5274411 | R36: =+'App23'!P23 -> 110.6979899 | S36: =+'App23'!Q23 -> 112.9119497 | T36: =+'App23'!R23 -> 115.1701887 | U36: =+'App23'!S23 -> 117.4735925 | V36: =+'App23'!T23 -> 119.8230643
E37: Consumer Price Index for June | G37: index | J37: 95.6 | K37: 98 | L37: 99.8 | M37: 100.1 | N37: 101 | O37: 103.5 | P37: =+'App23'!N24 -> 106.191 | Q37: =+'App23'!O24 -> 108.6015357 | R37: =+'App23'!P24 -> 110.7735664 | S37: =+'App23'!Q24 -> 112.9890377 | T37: =+'App23'!R24 -> 115.2488185 | U37: =+'App23'!S24 -> 117.5537949 | V37: =+'App23'!T24 -> 119.9048708
E38: Consumer Price Index for July | G38: index | J38: 95.7 | K38: 98 | L38: 99.6 | M38: 100 | N38: 100.9 | O38: 103.5 | P38: =+'App23'!N25 -> 106.11855 | Q38: =+'App23'!O25 -> 108.5062174 | R38: =+'App23'!P25 -> 110.6763417 | S38: =+'App23'!Q25 -> 112.8898686 | T38: =+'App23'!R25 -> 115.1476659 | U38: =+'App23'!S25 -> 117.4506192 | V38: =+'App23'!T25 -> 119.7996316
E39: Consumer Price Index for August | G39: index | J39: 96.1 | K39: 98.4 | L39: 99.9 | M39: 100.3 | N39: 101.2 | O39: 104 | P39: =+'App23'!N26 -> 106.6 | Q39: =+'App23'!O26 -> 108.9985 | R39: =+'App23'!P26 -> 111.17847 | S39: =+'App23'!Q26 -> 113.4020394 | T39: =+'App23'!R26 -> 115.6700802 | U39: =+'App23'!S26 -> 117.9834818 | V39: =+'App23'!T26 -> 120.3431514
E40: Consumer Price Index for September | G40: index | J40: 96.4 | K40: 98.7 | L40: 100 | M40: 100.2 | N40: 101.5 | O40: 104.3 | P40: =+'App23'!N27 -> 106.83449 | Q40: =+'App23'!O27 -> 109.238266 | R40: =+'App23'!P27 -> 111.4230313 | S40: =+'App23'!Q27 -> 113.651492 | T40: =+'App23'!R27 -> 115.9245218 | U40: =+'App23'!S27 -> 118.2430122 | V40: =+'App23'!T27 -> 120.6078725
E41: Consumer Price Index for October | G41: index | J41: 96.8 | K41: 98.8 | L41: 100.1 | M41: 100.3 | N41: 101.6 | O41: 104.4 | P41: =+'App23'!N28 -> 106.97868 | Q41: =+'App23'!O28 -> 109.332211 | R41: =+'App23'!P28 -> 111.5188552 | S41: =+'App23'!Q28 -> 113.7492323 | T41: =+'App23'!R28 -> 116.0242169 | U41: =+'App23'!S28 -> 118.3447013 | V41: =+'App23'!T28 -> 120.7115953
E42: Consumer Price Index for November | G42: index | J42: 97 | K42: 98.8 | L42: 99.9 | M42: 100.3 | N42: 101.8 | O42: =+'App23'!M29 -> 104.7 | P42: =+'App23'!N29 -> 107.13951 | Q42: =+'App23'!O29 -> 109.4965792 | R42: =+'App23'!P29 -> 111.6865108 | S42: =+'App23'!Q29 -> 113.920241 | T42: =+'App23'!R29 -> 116.1986458 | U42: =+'App23'!S29 -> 118.5226188 | V42: =+'App23'!T29 -> 120.8930711
E43: Consumer Price Index for December | G43: index | J43: 97.3 | K43: 99.2 | L43: 99.9 | M43: 100.4 | N43: 102.2 | O43: =+'App23'!M30 -> 105 | P43: =+'App23'!N30 -> 107.4885 | Q43: =+'App23'!O30 -> 109.7995028 | R43: =+'App23'!P30 -> 111.9954928 | S43: =+'App23'!Q30 -> 114.2354027 | T43: =+'App23'!R30 -> 116.5201107 | U43: =+'App23'!S30 -> 118.8505129 | V43: =+'App23'!T30 -> 121.2275232
E44: Consumer Price Index for January | G44: index | J44: 97 | K44: 98.7 | L44: 99.2 | M44: 99.9 | N44: 101.8 | O44: =+'App23'!M31 -> 104.5 | P44: =+'App23'!N31 -> 107.0576656 | Q44: =+'App23'!O31 -> 109.3058766 | R44: =+'App23'!P31 -> 111.4919941 | S44: =+'App23'!Q31 -> 113.721834 | T44: =+'App23'!R31 -> 115.9962707 | U44: =+'App23'!S31 -> 118.3161961 | V44: =+'App23'!T31 -> 120.68252
E45: Consumer Price Index for February | G45: index | J45: 97.5 | K45: 99.1 | L45: 99.5 | M45: 100.1 | N45: 102.4 | O45: =+'App23'!M32 -> 104.9 | P45: =+'App23'!N32 -> 107.5524403 | Q45: =+'App23'!O32 -> 109.8110416 | R45: =+'App23'!P32 -> 112.0072624 | S45: =+'App23'!Q32 -> 114.2474076 | T45: =+'App23'!R32 -> 116.5323558 | U45: =+'App23'!S32 -> 118.8630029 | V45: =+'App23'!T32 -> 121.240263
E46: Consumer Price Index for March | G46: index | J46: 97.8 | K46: 99.3 | L46: 99.6 | M46: 100.4 | N46: 102.7 | O46: =+'App23'!M33 -> 105.1 | P46: =+'App23'!N33 -> 107.8570589 | Q46: =+'App23'!O33 -> 110.1220572 | R46: =+'App23'!P33 -> 112.3244983 | S46: =+'App23'!Q33 -> 114.5709883 | T46: =+'App23'!R33 -> 116.862408 | U46: =+'App23'!S33 -> 119.1996562 | V46: =+'App23'!T33 -> 121.5836493
E48: CPIH: Assumed percentage increase for unpopulated monthly values | G48: %
B50: RPI INDEXATION
E52: Retail Price Index for April | G52: index | J52: 242.5 | K52: 249.5 | L52: 255.7 | M52: 258 | N52: 261.4 | O52: 270.6 | P52: =+'App23'!N7 -> 279.8 | Q52: =+'App23'!O7 -> 288.4 | R52: =+'App23'!P7 -> 297.052 | S52: =+'App23'!Q7 -> 305.96356 | T52: =+'App23'!R7 -> 315.1424668 | U52: =+'App23'!S7 -> 324.5967408 | V52: =+'App23'!T7 -> 334.334643
E53: Retail Price Index for May | G53: index | J53: 242.4 | K53: 250 | L53: 255.9 | M53: 258.5 | N53: 262.1 | O53: 271.7 | P53: =+'App23'!N8 -> 280.8 | Q53: =+'App23'!O8 -> 289.3 | R53: =+'App23'!P8 -> 297.979 | S53: =+'App23'!Q8 -> 306.91837 | T53: =+'App23'!R8 -> 316.1259211 | U53: =+'App23'!S8 -> 325.6096987 | V53: =+'App23'!T8 -> 335.3779897
E54: Retail Price Index for June | G54: index | J54: 241.8 | K54: 249.7 | L54: 256.3 | M54: 258.9 | N54: 263.1 | O54: 272.3 | P54: =+'App23'!N9 -> 281.8 | Q54: =+'App23'!O9 -> 290.2 | R54: =+'App23'!P9 -> 298.906 | S54: =+'App23'!Q9 -> 307.87318 | T54: =+'App23'!R9 -> 317.1093754 | U54: =+'App23'!S9 -> 326.6226567 | V54: =+'App23'!T9 -> 336.4213364
E55: Retail Price Index for July | G55: index | J55: 242.1 | K55: 249.7 | L55: 256 | M55: 258.6 | N55: 263.4 | O55: 272.9 | P55: =+'App23'!N10 -> 282.2 | Q55: =+'App23'!O10 -> 290.7 | R55: =+'App23'!P10 -> 299.421 | S55: =+'App23'!Q10 -> 308.40363 | T55: =+'App23'!R10 -> 317.6557389 | U55: =+'App23'!S10 -> 327.1854111 | V55: =+'App23'!T10 -> 337.0009734
E56: Retail Price Index for August | G56: index | J56: 243 | K56: 251 | L56: 257 | M56: 259.8 | N56: 264.4 | O56: 274.7 | P56: =+'App23'!N11 -> 283.8 | Q56: =+'App23'!O11 -> 292.2 | R56: =+'App23'!P11 -> 300.966 | S56: =+'App23'!Q11 -> 309.99498 | T56: =+'App23'!R11 -> 319.2948294 | U56: =+'App23'!S11 -> 328.8736743 | V56: =+'App23'!T11 -> 338.7398845
E57: Retail Price Index for September | G57: index | J57: 244.2 | K57: 251.9 | L57: 257.6 | M57: 259.6 | N57: 264.9 | O57: 275.1 | P57: =+'App23'!N12 -> 284 | Q57: =+'App23'!O12 -> 292.5 | R57: =+'App23'!P12 -> 301.275 | S57: =+'App23'!Q12 -> 310.31325 | T57: =+'App23'!R12 -> 319.6226475 | U57: =+'App23'!S12 -> 329.2113269 | V57: =+'App23'!T12 -> 339.0876667
E58: Retail Price Index for October | G58: index | J58: 245.6 | K58: 251.9 | L58: 257.7 | M58: 259.5 | N58: 264.8 | O58: 275.3 | P58: =+'App23'!N13 -> 284.1 | Q58: =+'App23'!O13 -> 292.7 | R58: =+'App23'!P13 -> 301.481 | S58: =+'App23'!Q13 -> 310.52543 | T58: =+'App23'!R13 -> 319.8411929 | U58: =+'App23'!S13 -> 329.4364287 | V58: =+'App23'!T13 -> 339.3195215
E59: Retail Price Index for November | G59: index | J59: 245.6 | K59: 252.1 | L59: 257.1 | M59: 259.8 | N59: 265.5 | O59: =+'App23'!M14 -> 275.8 | P59: =+'App23'!N14 -> 284.4 | Q59: =+'App23'!O14 -> 293 | R59: =+'App23'!P14 -> 301.79 | S59: =+'App23'!Q14 -> 310.8437 | T59: =+'App23'!R14 -> 320.169011 | U59: =+'App23'!S14 -> 329.7740813 | V59: =+'App23'!T14 -> 339.6673038
E60: Retail Price Index for December | G60: index | J60: 246.8 | K60: 253.4 | L60: 257.5 | M60: 260.6 | N60: 267.1 | O60: =+'App23'!M15 -> 278.1 | P60: =+'App23'!N15 -> 286.5 | Q60: =+'App23'!O15 -> 295.1 | R60: =+'App23'!P15 -> 303.953 | S60: =+'App23'!Q15 -> 313.07159 | T60: =+'App23'!R15 -> 322.4637377 | U60: =+'App23'!S15 -> 332.1376498 | V60: =+'App23'!T15 -> 342.1017793
E61: Retail Price Index for January | G61: index | J61: 245.8 | K61: 252.6 | L61: 255.4 | M61: 258.8 | N61: 265.5 | O61: =+'App23'!M16 -> 276 | P61: =+'App23'!N16 -> 284.4 | Q61: =+'App23'!O16 -> 293.2164 | R61: =+'App23'!P16 -> 302.012892 | S61: =+'App23'!Q16 -> 311.0732788 | T61: =+'App23'!R16 -> 320.4054771 | U61: =+'App23'!S16 -> 330.0176414 | V61: =+'App23'!T16 -> 339.9181707
E62: Retail Price Index for February | G62: index | J62: 247.6 | K62: 254.2 | L62: 256.7 | M62: 260 | N62: 268.4 | O62: =+'App23'!M17 -> 278.1 | P62: =+'App23'!N17 -> 286.5 | Q62: =+'App23'!O17 -> 295.3815 | R62: =+'App23'!P17 -> 304.242945 | S62: =+'App23'!Q17 -> 313.3702333 | T62: =+'App23'!R17 -> 322.7713404 | U62: =+'App23'!S17 -> 332.4544806 | V62: =+'App23'!T17 -> 342.428115
E63: Retail Price Index for March | G63: index | J63: 248.7 | K63: 254.8 | L63: 257.1 | M63: 261.1 | N63: 269.3 | O63: =+'App23'!M18 -> 278.3 | P63: =+'App23'!N18 -> 287.1 | Q63: =+'App23'!O18 -> 296.0001 | R63: =+'App23'!P18 -> 304.880103 | S63: =+'App23'!Q18 -> 314.0265061 | T63: =+'App23'!R18 -> 323.4473013 | U63: =+'App23'!S18 -> 333.1507203 | V63: =+'App23'!T18 -> 343.1452419
E65: RPI: Assumed percentage increase for unpopulated monthly values | G65: %
B67: Inflation
E69: Year reference for FYA base price 1 | F69: 2013 | G69: year #
E70: Year reference for FYA base price 2 | F70: 2018 | G70: year #
E71: Year reference for FYE base price 1 | F71: 2020 | G71: year #
E72: Year reference for FYE base price 2 | F72: 2019 | G72: year #
E73: Year reference for FYE end price | F73: 2020 | G73: year #
B75: Deflation
E77: Year reference for FYE base price | F77: 2020 | G77: year #
E78: Year reference for FYA end price | F78: 2018 | G78: year #
A81: C: REVENUE INPUTS
B83: Water services
D85: Water resources
E86: Net performance payment / (penalty) applied to revenue for in-period ODI adjustments ~ Water resources | F86: 0 | G86: £m | H86: 2012/13 FYA
E87: Net performance payment / (penalty) applied to revenue for end of period ODI adjustments ~ Water resources | F87: =+'App27'!$M$35 -> 0.3534927073 | G87: £m | H87: 2012/13 FYA
E88: Total value of export incentive to be paid to water resources at PR19 | F88: 0 | G88: £m | H88: 2017/18 FYA
E89: Total value of import incentive - water resources | F89: 0 | G89: £m | H89: 2017/18 FYA
D91: Water network plus
E92: Further 2010-15 reconciliation total adjustment carry forward to PR19 ~ Water network plus | F92: =+'App 25'!M7 -> 1.286584625 | G92: £m | H92: 2012/13 FYA
E93: Net performance payment / (penalty) applied to revenue for in-period ODI adjustments ~ Water network plus | F93: 0 | G93: £m | H93: 2012/13 FYA
E94: Net performance payment / (penalty) applied to revenue for end of period ODI adjustments ~ Water network plus | F94: =+'App27'!$M$36 -> 38.48003972 | G94: £m | H94: 2012/13 FYA
E95: Water: revenue adjustment from totex menu model | F95: =+'WS15 - adj Ofwat'!M41 -> 3.338355245 | G95: £m | H95: 2012/13 FYA
E96: Total value of export incentive to be paid to water network plus at PR19 | F96: 0 | G96: £m | H96: 2017/18 FYA
E97: Total value of import incentive - water network plus | F97: 0 | G97: £m | H97: 2017/18 FYA
E98: WRFIM total reward / (penalty) at end of AMP6 ~ Water | F98: =+'WS13 - adj'!M47 -> -8.388656405 | G98: £m | H98: November 2018/2019
B100: Wastewater services
D102: Bioresources
E103: Net performance payment / (penalty) applied to revenue for in-period ODI adjustments ~ Bioresources | F103: 0 | G103: £m | H103: 2012/13 FYA
E104: Net performance payment / (penalty) applied to revenue for end of period ODI adjustments ~ Bioresources | F104: =+'App27'!$M$38 -> 0 | G104: £m | H104: 2012/13 FYA
D106: Wastewater network plus
E107: Further 2010-15 reconciliation total adjustment carry forward to PR19 ~ Wastewater network plus | F107: =+'App 25'!M9 -> 2.648558875 | G107: £m | H107: 2012/13 FYA
E108: Net performance payment / (penalty) applied to revenue for in-period ODI adjustments ~ Wastewater network plus | F108: 0 | G108: £m | H108: 2012/13 FYA
E109: Net performance payment / (penalty) applied to revenue for end of period ODI adjustments ~ Wastewater network plus | F109: =+'App27'!$M$37 -> 43.57808033 | G109: £m | H109: 2012/13 FYA
E110: Wastewater: revenue adjustment from totex menu model | F110: =+'WWS15 - adj ofwat'!M36 -> -5.599195633 | G110: £m | H110: 2012/13 FYA
E111: WRFIM total reward / (penalty) at the end of AMP6 ~ Wastewater | F111: =+'WWS13 - adj'!M47 -> -14.2717287 | G111: £m | H111: November 2018/2019
D113: Dummy control
E114: Dummy: revenue adjustment from totex menu model | F114: 0 | G114: £m | H114: 2012/13 FYA
B116: Residential retail
E118: Net performance payment / (penalty) applied to revenue for in-period ODI adjustments ~ Residential retail | F118: 0 | G118: £m | H118: 2012/13 FYA
E119: Net performance payment / (penalty) applied to revenue for end of period ODI adjustments ~ Residential retail | F119: =+'App27'!M39 -> 0 | G119: £m | H119: 2012/13 FYA
E120: Residential retail revenue adjustment at end of AMP6 | F120: =+'R9'!L66 -> -3.304345862 | G120: £m | H120: 2019/20 FYE
E121: SIM forecast revenue adjustment | F121: 0 | G121: £m | H121: 2017/18 FYA
B123: Business retail
E125: Net performance payment / (penalty) applied to revenue for in-period ODI adjustments ~ Business retail | F125: 0 | G125: £m | H125: 2012/13 FYA
E126: Net performance payment / (penalty) applied to revenue for end of period ODI adjustments ~ Business retail | F126: =+'App27'!M40 -> 0 | G126: £m | H126: 2012/13 FYA
A129: D: PROFILING INPUTS
B131: Discounting
E133: PV base date | F133: 2021-03-31 | G133: date
E135: Discount rate - Water resources | F135: 0.036 | G135: %
E136: Discount rate - Water network plus | F136: 0.036 | G136: %
E137: Discount rate - Bioresources | F137: 0.036 | G137: %
E138: Discount rate - Wastewater network plus | F138: 0.036 | G138: %
E139: Discount rate - Dummy control | F139: 0.036 | G139: %
E140: Discount rate - Residential retail | F140: 0.036 | G140: %
E141: Discount rate - Business retail | F141: 0.036 | G141: %
E143: Number of years to profile over | G143: #
B145: Profile selector
E147: Water resources revenue adjustment selector | F147: 0 | G147: 0 = Apply in first year, 1 = Constant annuity 2020-25, 2 = Even allocation - NPV neutral
E148: Water network plus revenue adjustment selector | F148: 0 | G148: 0 = Apply in first year, 1 = Constant annuity 2020-25, 2 = Even allocation - NPV neutral
E149: Bioesources revenue adjustment selector | F149: 0 | G149: 0 = Apply in first year, 1 = Constant annuity 2020-25, 2 = Even allocation - NPV neutral
E150: Wastewater network plus revenue adjustment selector | F150: 0 | G150: 0 = Apply in first year, 1 = Constant annuity 2020-25, 2 = Even allocation - NPV neutral
E151: Dummy control revenue adjustment selector | F151: 0 | G151: 0 = Apply in first year, 1 = Constant annuity 2020-25, 2 = Even allocation - NPV neutral
E152: Residential retail revenue adjustment selector | F152: 0 | G152: 0 = Apply in first year, 1 = Constant annuity 2020-25, 2 = Even allocation - NPV neutral
E153: Business retail revenue adjustment selector | F153: 0 | G153: 0 = Apply in first year, 1 = Constant annuity 2020-25, 2 = Even allocation - NPV neutral
A156: E: NON CHANGEABLE MODEL TECHNICAL INPUTS
E158: Months per model period | F158: 12 | G158: months
E160: Months in a year | F160: 12 | G160: months
E162: Days in a year | F162: 365 | G162: days
E165: [Used in formula range - Do not delete]

Sheet Time
A1: =RIGHT(CELL("FILENAME", $A$1), LEN(CELL("FILENAME", $A$1)) - SEARCH("]", CELL("FILENAME", $A$1))) -> Time
E2: =Time!E$25 -> Model period ending | J2: =Time!J$25 -> 2013-03-31 | K2: =Time!K$25 -> 2014-03-31 | L2: =Time!L$25 -> 2015-03-31 | M2: =Time!M$25 -> 2016-03-31 | N2: =Time!N$25 -> 2017-03-31 | O2: =Time!O$25 -> 2018-03-31 | P2: =Time!P$25 -> 2019-03-31 | Q2: =Time!Q$25 -> 2020-03-31 | R2: =Time!R$25 -> 2021-03-31 | S2: =Time!S$25 -> 2022-03-31 | T2: =Time!T$25 -> 2023-03-31 | U2: =Time!U$25 -> 2024-03-31 | V2: =Time!V$25 -> 2025-03-31
E3: =Time!E$80 -> Timeline label | J3: =Time!J$80 -> Pre-Fcst | K3: =Time!K$80 -> Pre-Fcst | L3: =Time!L$80 -> Pre-Fcst | M3: =Time!M$80 -> Pre-Fcst | N3: =Time!N$80 -> Pre-Fcst | O3: =Time!O$80 -> Pre-Fcst | P3: =Time!P$80 -> Pre-Fcst | Q3: =Time!Q$80 -> Pre-Fcst | R3: =Time!R$80 -> Forecast | S3: =Time!S$80 -> Forecast | T3: =Time!T$80 -> Forecast | U3: =Time!U$80 -> Forecast | V3: =Time!V$80 -> Forecast
E4: =Time!E$103 -> Financial year ending | J4: =Time!J$103 -> 2013 | K4: =Time!K$103 -> 2014 | L4: =Time!L$103 -> 2015 | M4: =Time!M$103 -> 2016 | N4: =Time!N$103 -> 2017 | O4: =Time!O$103 -> 2018 | P4: =Time!P$103 -> 2019 | Q4: =Time!Q$103 -> 2020 | R4: =Time!R$103 -> 2021 | S4: =Time!S$103 -> 2022 | T4: =Time!T$103 -> 2023 | U4: =Time!U$103 -> 2024 | V4: =Time!V$103 -> 2025
E5: =Time!E$10 -> Model column counter | F5: Constant | G5: Unit | H5: Total | J5: =Time!J$10 -> 1 | K5: =Time!K$10 -> 2 | L5: =Time!L$10 -> 3 | M5: =Time!M$10 -> 4 | N5: =Time!N$10 -> 5 | O5: =Time!O$10 -> 6 | P5: =Time!P$10 -> 7 | Q5: =Time!Q$10 -> 8 | R5: =Time!R$10 -> 9 | S5: =Time!S$10 -> 10 | T5: =Time!T$10 -> 11 | U5: =Time!U$10 -> 12 | V5: =Time!V$10 -> 13
A7: MODEL PERIOD
B9: Model column counter
E10: Model column counter | G10: counter | J10: =I10 + 1 -> 1 | K10: 2 | L10: 3 | M10: 4 | N10: 5 | O10: 6 | P10: 7 | Q10: =P10 + 1 -> 8 | R10: =Q10 + 1 -> 9 | S10: =R10 + 1 -> 10 | T10: =S10 + 1 -> 11 | U10: =T10 + 1 -> 12 | V10: =U10 + 1 -> 13
E11: Model column total | F11: =MAX(J10:V10) -> 13 | G11: columns
E13: =E$10 -> Model column counter | F13: 0 | G13: counter | H13: 0 | I13: 0 | J13: 1 | K13: 2 | L13: 3 | M13: 4 | N13: 5 | O13: 6 | P13: 7 | Q13: 8 | R13: 9 | S13: 10 | T13: 11 | U13: 12 | V13: 13
E14: 1st model column flag | G14: flag | H14: =SUM(J14:V14) -> 1 | J14: =IF(J13 = 1, 1, 0) -> 1 | K14: 0 | L14: 0 | M14: 0 | N14: 0 | O14: 0 | P14: 0 | Q14: =IF(Q13 = 1, 1, 0) -> 0 | R14: 0 | S14: 0 | T14: 0 | U14: 0 | V14: 0
B16: Model period beginning
E17: =Inputs!E$13 -> 1st model column start date | F17: =Inputs!F$13 -> 2012-04-01 | G17: =Inputs!G$13 -> date
E18: =Inputs!E$158 -> Months per model period | F18: =Inputs!F$158 -> 12 | G18: =Inputs!G$158 -> months
E19: =E$14 -> 1st model column flag | F19: 0 | G19: flag | H19: 1 | I19: 0 | J19: 1 | K19: 0 | L19: 0 | M19: 0 | N19: 0 | O19: 0 | P19: 0 | Q19: 0 | R19: 0 | S19: 0 | T19: 0 | U19: 0 | V19: 0
E20: Model period beginning | G20: date | J20: =IF(J19 = 1, $F17, DATE(YEAR(I20), MONTH(I20) + $F18, DAY(1))) -> 2012-04-01 | K20: 2013-04-01 | L20: 2014-04-01 | M20: 2015-04-01 | N20: 2016-04-01 | O20: 2017-04-01 | P20: 2018-04-01 | Q20: =IF(Q19 = 1, $F17, DATE(YEAR(P20), MONTH(P20) + $F18, DAY(1))) -> 2019-04-01 | R20: =IF(R19 = 1, $F17, DATE(YEAR(Q20), MONTH(Q20) + $F18, DAY(1))) -> 2020-04-01 | S20: =IF(S19 = 1, $F17, DATE(YEAR(R20), MONTH(R20) + $F18, DAY(1))) -> 2021-04-01 | T20: =IF(T19 = 1, $F17, DATE(YEAR(S20), MONTH(S20) + $F18, DAY(1))) -> 2022-04-01 | U20: =IF(U19 = 1, $F17, DATE(YEAR(T20), MONTH(T20) + $F18, DAY(1))) -> 2023-04-01 | V20: =IF(V19 = 1, $F17, DATE(YEAR(U20), MONTH(U20) + $F18, DAY(1))) -> 2024-04-01
B22: Model period ending
E23: =Inputs!E$158 -> Months per model period | F23: =Inputs!F$158 -> 12 | G23: =Inputs!G$158 -> months
E24: =E$20 -> Model period beginning | F24: 00:00:00 | G24: date | H24: 00:00:00 | I24: 00:00:00 | J24: 2012-04-01 | K24: 2013-04-01 | L24: 2014-04-01 | M24: 2015-04-01 | N24: 2016-04-01 | O24: 2017-04-01 | P24: 2018-04-01 | Q24: 2019-04-01 | R24: 2020-04-01 | S24: 2021-04-01 | T24: 2022-04-01 | U24: 2023-04-01 | V24: 2024-04-01
E25: Model period ending | G25: date | J25: =DATE(YEAR(J24), MONTH(J24) + $F23, DAY(J24) - 1) -> 2013-03-31 | K25: 2014-03-31 | L25: 2015-03-31 | M25: 2016-03-31 | N25: 2017-03-31 | O25: 2018-03-31 | P25: 2019-03-31 | Q25: =DATE(YEAR(Q24), MONTH(Q24) + $F23, DAY(Q24) - 1) -> 2020-03-31 | R25: 2021-03-31 | S25: 2022-03-31 | T25: 2023-03-31 | U25: 2024-03-31 | V25: 2025-03-31
A28: FORECAST PERIOD
B30: Forecast start period flag
E31: =Inputs!E$26 -> Forecast start date | F31: =Inputs!F$26 -> 2020-04-01 | G31: =Inputs!G$26 -> date
E32: =E$20 -> Model period beginning | F32: 00:00:00 | G32: date | H32: 00:00:00 | I32: 00:00:00 | J32: 2012-04-01 | K32: 2013-04-01 | L32: 2014-04-01 | M32: 2015-04-01 | N32: 2016-04-01 | O32: 2017-04-01 | P32: 2018-04-01 | Q32: 2019-04-01 | R32: 2020-04-01 | S32: 2021-04-01 | T32: 2022-04-01 | U32: 2023-04-01 | V32: 2024-04-01
E33: =E$25 -> Model period ending | F33: 00:00:00 | G33: date | H33: 00:00:00 | I33: 00:00:00 | J33: 2013-03-31 | K33: 2014-03-31 | L33: 2015-03-31 | M33: 2016-03-31 | N33: 2017-03-31 | O33: 2018-03-31 | P33: 2019-03-31 | Q33: 2020-03-31 | R33: 2021-03-31 | S33: 2022-03-31 | T33: 2023-03-31 | U33: 2024-03-31 | V33: 2025-03-31
E34: Forecast start period flag | G34: flag | H34: =SUM(J34:V34) -> 1 | J34: =IF(AND($F31 >= J32, $F31 <= J33), 1, 0) -> 0 | K34: =IF(AND($F31 >= K32, $F31 <= K33), 1, 0) -> 0 | L34: 0 | M34: 0 | N34: 0 | O34: 0 | P34: 0 | Q34: =IF(AND($F31 >= Q32, $F31 <= Q33), 1, 0) -> 0 | R34: 1 | S34: 0 | T34: 0 | U34: 0 | V34: 0
B36: Forecast end period flag
E37: =Inputs!E$26 -> Forecast start date | F37: =Inputs!F$26 -> 2020-04-01 | G37: =Inputs!G$26 -> date
E38: =Inputs!E$27 -> Forecast duration | F38: =Inputs!F$27 -> 5 | G38: =Inputs!G$27 -> years
E39: Forecast end date | F39: =DATE(YEAR(F37) + F38, MONTH(F37), DAY(F37) - 1) -> 2025-03-31 | G39: date
E41: =E$39 -> Forecast end date | F41: =F$39 -> 2025-03-31 | G41: =G$39 -> date
E42: =E$20 -> Model period beginning | F42: 00:00:00 | G42: date | H42: 00:00:00 | I42: 00:00:00 | J42: 2012-04-01 | K42: 2013-04-01 | L42: 2014-04-01 | M42: 2015-04-01 | N42: 2016-04-01 | O42: 2017-04-01 | P42: 2018-04-01 | Q42: 2019-04-01 | R42: 2020-04-01 | S42: 2021-04-01 | T42: 2022-04-01 | U42: 2023-04-01 | V42: 2024-04-01
E43: =E$25 -> Model period ending | F43: 00:00:00 | G43: date | H43: 00:00:00 | I43: 00:00:00 | J43: 2013-03-31 | K43: 2014-03-31 | L43: 2015-03-31 | M43: 2016-03-31 | N43: 2017-03-31 | O43: 2018-03-31 | P43: 2019-03-31 | Q43: 2020-03-31 | R43: 2021-03-31 | S43: 2022-03-31 | T43: 2023-03-31 | U43: 2024-03-31 | V43: 2025-03-31
E44: Forecast end period flag | G44: flag | H44: =SUM(J44:V44) -> 1 | J44: =IF(AND($F41 >= J42, $F41 <= J43), 1, 0) -> 0 | K44: 0 | L44: 0 | M44: 0 | N44: 0 | O44: 0 | P44: 0 | Q44: =IF(AND($F41 >= Q42, $F41 <= Q43), 1, 0) -> 0 | R44: 0 | S44: 0 | T44: 0 | U44: 0 | V44: 1
B46: Forecast period flag
E47: =E$34 -> Forecast start period flag | F47: =F$34 -> 0 | G47: flag | H47: 1 | I47: 0 | J47: 0 | K47: 0 | L47: 0 | M47: 0 | N47: 0 | O47: 0 | P47: 0 | Q47: 0 | R47: 1 | S47: 0 | T47: 0 | U47: 0 | V47: 0
E48: =E$44 -> Forecast end period flag | F48: =F$44 -> 0 | G48: flag | H48: 1 | I48: 0 | J48: 0 | K48: 0 | L48: 0 | M48: 0 | N48: 0 | O48: 0 | P48: 0 | Q48: 0 | R48: 0 | S48: 0 | T48: 0 | U48: 0 | V48: 1
E49: Forecast period flag | G49: flag | H49: =SUM(J49:V49) -> 5 | J49: =J47 + I49 - I48 -> 0 | K49: =K47 + J49 - J48 -> 0 | L49: 0 | M49: 0 | N49: 0 | O49: 0 | P49: 0 | Q49: =Q47 + P49 - P48 -> 0 | R49: =R47 + Q49 - Q48 -> 1 | S49: =S47 + R49 - R48 -> 1 | T49: =T47 + S49 - S48 -> 1 | U49: =U47 + T49 - T48 -> 1 | V49: =V47 + U49 - U48 -> 1
E50: Total number of forecast periods | F50: =SUM(J49:V49) -> 5 | G50: periods
B52: Pre-forecast period flag
E53: =E$14 -> 1st model column flag | F53: =F$14 -> 0 | G53: flag | H53: 1 | I53: 0 | J53: 1 | K53: 0 | L53: 0 | M53: 0 | N53: 0 | O53: 0 | P53: 0 | Q53: 0 | R53: 0 | S53: 0 | T53: 0 | U53: 0 | V53: 0
E54: =E$34 -> Forecast start period flag | F54: =F$34 -> 0 | G54: flag | H54: 1 | I54: 0 | J54: 0 | K54: 0 | L54: 0 | M54: 0 | N54: 0 | O54: 0 | P54: 0 | Q54: 0 | R54: 1 | S54: 0 | T54: 0 | U54: 0 | V54: 0
E55: Pre-forecast period flag | G55: flag | H55: =SUM(J55:V55) -> 8 | J55: =J53 + I55 - J54 -> 1 | K55: =K53 + J55 - K54 -> 1 | L55: 1 | M55: 1 | N55: 1 | O55: 1 | P55: 1 | Q55: =Q53 + P55 - Q54 -> 1 | R55: =R53 + Q55 - R54 -> 0 | S55: =S53 + R55 - S54 -> 0 | T55: =T53 + S55 - T54 -> 0 | U55: =U53 + T55 - U54 -> 0 | V55: =V53 + U55 - V54 -> 0
E56: Pre-forecast period flag - total | F56: =SUM(J55:V55) -> 8 | G56: periods
B58: First post-forecast period flag
E59: =E$44 -> Forecast end period flag | F59: =F$44 -> 0 | G59: flag | H59: 1 | I59: 0 | J59: 0 | K59: 0 | L59: 0 | M59: 0 | N59: 0 | O59: 0 | P59: 0 | Q59: 0 | R59: 0 | S59: 0 | T59: 0 | U59: 0 | V59: 1
E60: First post-forecast period flag | G60: flag | H60: =SUM(J60:V60) -> 0 | J60: =I59 -> 0 | K60: =J59 -> 0 | L60: 0 | M60: 0 | N60: 0 | O60: 0 | P60: 0 | Q60: =P59 -> 0 | R60: =Q59 -> 0 | S60: =R59 -> 0 | T60: =S59 -> 0 | U60: =T59 -> 0 | V60: =U59 -> 0
B62: Post-forecast period flag
E63: =E$60 -> First post-forecast period flag | F63: 0 | G63: flag | H63: 0 | I63: 0 | J63: 0 | K63: 0 | L63: 0 | M63: 0 | N63: 0 | O63: 0 | P63: 0 | Q63: 0 | R63: 0 | S63: 0 | T63: 0 | U63: 0 | V63: 0
E64: Post-forecast period flag | G64: flag | H64: =SUM(J64:V64) -> 0 | J64: =J63 + I64 -> 0 | K64: =K63 + J64 -> 0 | L64: 0 | M64: 0 | N64: 0 | O64: 0 | P64: 0 | Q64: =Q63 + P64 -> 0 | R64: =R63 + Q64 -> 0 | S64: =S63 + R64 -> 0 | T64: =T63 + S64 -> 0 | U64: =U63 + T64 -> 0 | V64: =V63 + U64 -> 0
E65: Post-forecast period - total | F65: =SUM(J64:V64) -> 0 | G65: periods
A68: MODEL TIMELINE
B70: Timeline label
E71: =E$14 -> 1st model column flag | F71: 0 | G71: flag | H71: 1 | I71: 0 | J71: 1 | K71: 0 | L71: 0 | M71: 0 | N71: 0 | O71: 0 | P71: 0 | Q71: 0 | R71: 0 | S71: 0 | T71: 0 | U71: 0 | V71: 0
E72: =E$34 -> Forecast start period flag | F72: =F$34 -> 0 | G72: flag | H72: 1 | I72: 0 | J72: 0 | K72: 0 | L72: 0 | M72: 0 | N72: 0 | O72: 0 | P72: 0 | Q72: 0 | R72: 1 | S72: 0 | T72: 0 | U72: 0 | V72: 0
E73: =E$60 -> First post-forecast period flag | F73: 0 | G73: flag | H73: 0 | I73: 0 | J73: 0 | K73: 0 | L73: 0 | M73: 0 | N73: 0 | O73: 0 | P73: 0 | Q73: 0 | R73: 0 | S73: 0 | T73: 0 | U73: 0 | V73: 0
E74: Timeline label counter | G74: counter | J74: =I74 + SUM(J71:J73) -> 1 | K74: 1 | L74: 1 | M74: 1 | N74: 1 | O74: 1 | P74: 1 | Q74: =P74 + SUM(Q71:Q73) -> 1 | R74: =Q74 + SUM(R71:R73) -> 2 | S74: =R74 + SUM(S71:S73) -> 2 | T74: =S74 + SUM(T71:T73) -> 2 | U74: =T74 + SUM(U71:U73) -> 2 | V74: =U74 + SUM(V71:V73) -> 2
E76: =Inputs!E$20 -> Pre - forecast period | F76: =Inputs!F$20 -> Pre-Fcst | G76: =Inputs!G$20 -> label
E77: =Inputs!E$21 -> Forecast period | F77: =Inputs!F$21 -> Forecast | G77: =Inputs!G$21 -> label
E78: =Inputs!E$22 -> Post - forecast period | F78: =Inputs!F$22 -> Post-Fcst | G78: =Inputs!G$22 -> label
E79: =E$74 -> Timeline label counter | F79: 0 | G79: counter | H79: 0 | I79: 0 | J79: 1 | K79: 1 | L79: 1 | M79: 1 | N79: 1 | O79: 1 | P79: 1 | Q79: 1 | R79: 2 | S79: 2 | T79: 2 | U79: 2 | V79: 2
E80: Timeline label | G80: label | J80: =INDEX($F76:$F78, J79) -> Pre-Fcst | K80: Pre-Fcst | L80: Pre-Fcst | M80: Pre-Fcst | N80: Pre-Fcst | O80: Pre-Fcst | P80: Pre-Fcst | Q80: =INDEX($F76:$F78, Q79) -> Pre-Fcst | R80: Forecast | S80: Forecast | T80: Forecast | U80: Forecast | V80: Forecast
B82: Modelling period check
E83: =E$55 -> Pre-forecast period flag | F83: =F$55 -> 0 | G83: flag | H83: 8 | I83: 0 | J83: 1 | K83: 1 | L83: 1 | M83: 1 | N83: 1 | O83: 1 | P83: 1 | Q83: 1 | R83: 0 | S83: 0 | T83: 0 | U83: 0 | V83: 0
E84: =E$49 -> Forecast period flag | F84: =F$49 -> 0 | G84: flag | H84: 5 | I84: 0 | J84: 0 | K84: 0 | L84: 0 | M84: 0 | N84: 0 | O84: 0 | P84: 0 | Q84: 0 | R84: 1 | S84: 1 | T84: 1 | U84: 1 | V84: 1
E85: =E$64 -> Post-forecast period flag | F85: 0 | G85: flag | H85: 0 | I85: 0 | J85: 0 | K85: 0 | L85: 0 | M85: 0 | N85: 0 | O85: 0 | P85: 0 | Q85: 0 | R85: 0 | S85: 0 | T85: 0 | U85: 0 | V85: 0
E86: No. of overlapping in flags | G86: # | H86: =SUM(J86:V86) -> 0 | J86: =MAX(0, SUM(J83:J85) - 1) -> 0 | K86: 0 | L86: 0 | M86: 0 | N86: 0 | O86: 0 | P86: 0 | Q86: =MAX(0, SUM(Q83:Q85) - 1) -> 0 | R86: 0 | S86: 0 | T86: 0 | U86: 0 | V86: 0
E87: Overlapping in periods - total | F87: =SUM(J86:V86) -> 0 | G87: periods
E89: =E$11 -> Model column total | F89: =F$11 -> 13 | G89: =G$11 -> columns
E90: =E$87 -> Overlapping in periods - total | F90: =F$87 -> 0 | G90: =G$87 -> periods
E91: =E$56 -> Pre-forecast period flag - total | F91: =F$56 -> 8 | G91: =G$56 -> periods
E92: =E$50 -> Total number of forecast periods | F92: =F$50 -> 5 | G92: =G$50 -> periods
E93: =E$65 -> Post-forecast period - total | F93: =F$65 -> 0 | G93: =G$65 -> periods
E94: Modelling period check | F94: =IF(SUM(F89:F90) - SUM(F91:F93) <> 0, 1, 0) -> 0 | G94: check
A97: FINANCIAL YEAR
E99: =Inputs!E$16 -> First modelling column financial year# | F99: =Inputs!F$16 -> 2013 | G99: =Inputs!G$16 -> year #
E100: =Inputs!E$17 -> Financial year end month number | F100: =Inputs!F$17 -> 3 | G100: =Inputs!G$17 -> month #
E101: =E$25 -> Model period ending | F101: 00:00:00 | G101: date | H101: 00:00:00 | I101: 00:00:00 | J101: 2013-03-31 | K101: 2014-03-31 | L101: 2015-03-31 | M101: 2016-03-31 | N101: 2017-03-31 | O101: 2018-03-31 | P101: 2019-03-31 | Q101: 2020-03-31 | R101: 2021-03-31 | S101: 2022-03-31 | T101: 2023-03-31 | U101: 2024-03-31 | V101: 2025-03-31
E102: =E$14 -> 1st model column flag | F102: 0 | G102: flag | H102: 1 | I102: 0 | J102: 1 | K102: 0 | L102: 0 | M102: 0 | N102: 0 | O102: 0 | P102: 0 | Q102: 0 | R102: 0 | S102: 0 | T102: 0 | U102: 0 | V102: 0
E103: Financial year ending | G103: year # | J103: =IF(J102 = 1, $F99, IF(J101 > (DATE(I103, $F100 + 1, 1) - 1), I103 + 1, I103)) -> 2013 | K103: 2014 | L103: 2015 | M103: 2016 | N103: 2017 | O103: 2018 | P103: 2019 | Q103: =IF(Q102 = 1, $F99, IF(Q101 > (DATE(P103, $F100 + 1, 1) - 1), P103 + 1, P103)) -> 2020 | R103: =IF(R102 = 1, $F99, IF(R101 > (DATE(Q103, $F100 + 1, 1) - 1), Q103 + 1, Q103)) -> 2021 | S103: =IF(S102 = 1, $F99, IF(S101 > (DATE(R103, $F100 + 1, 1) - 1), R103 + 1, R103)) -> 2022 | T103: =IF(T102 = 1, $F99, IF(T101 > (DATE(S103, $F100 + 1, 1) - 1), S103 + 1, S103)) -> 2023 | U103: =IF(U102 = 1, $F99, IF(U101 > (DATE(T103, $F100 + 1, 1) - 1), T103 + 1, T103)) -> 2024 | V103: =IF(V102 = 1, $F99, IF(V101 > (DATE(U103, $F100 + 1, 1) - 1), U103 + 1, U103)) -> 2025

Sheet Indexation
A1: =RIGHT(CELL("filename", $A$1), LEN(CELL("filename", $A$1)) - SEARCH("]", CELL("filename", $A$1))) -> Indexation
E2: =Time!E$25 -> Model period ending | J2: =Time!J$25 -> 2013-03-31 | K2: =Time!K$25 -> 2014-03-31 | L2: =Time!L$25 -> 2015-03-31 | M2: =Time!M$25 -> 2016-03-31 | N2: =Time!N$25 -> 2017-03-31 | O2: =Time!O$25 -> 2018-03-31 | P2: =Time!P$25 -> 2019-03-31 | Q2: =Time!Q$25 -> 2020-03-31 | R2: =Time!R$25 -> 2021-03-31 | S2: =Time!S$25 -> 2022-03-31 | T2: =Time!T$25 -> 2023-03-31 | U2: =Time!U$25 -> 2024-03-31 | V2: =Time!V$25 -> 2025-03-31
E3: =Time!E$80 -> Timeline label | J3: =Time!J$80 -> Pre-Fcst | K3: =Time!K$80 -> Pre-Fcst | L3: =Time!L$80 -> Pre-Fcst | M3: =Time!M$80 -> Pre-Fcst | N3: =Time!N$80 -> Pre-Fcst | O3: =Time!O$80 -> Pre-Fcst | P3: =Time!P$80 -> Pre-Fcst | Q3: =Time!Q$80 -> Pre-Fcst | R3: =Time!R$80 -> Forecast | S3: =Time!S$80 -> Forecast | T3: =Time!T$80 -> Forecast | U3: =Time!U$80 -> Forecast | V3: =Time!V$80 -> Forecast
E4: =Time!E$103 -> Financial year ending | J4: =Time!J$103 -> 2013 | K4: =Time!K$103 -> 2014 | L4: =Time!L$103 -> 2015 | M4: =Time!M$103 -> 2016 | N4: =Time!N$103 -> 2017 | O4: =Time!O$103 -> 2018 | P4: =Time!P$103 -> 2019 | Q4: =Time!Q$103 -> 2020 | R4: =Time!R$103 -> 2021 | S4: =Time!S$103 -> 2022 | T4: =Time!T$103 -> 2023 | U4: =Time!U$103 -> 2024 | V4: =Time!V$103 -> 2025
E5: =Time!E$10 -> Model column counter | F5: Constant | G5: Unit | H5: Total | J5: =Time!J$10 -> 1 | K5: =Time!K$10 -> 2 | L5: =Time!L$10 -> 3 | M5: =Time!M$10 -> 4 | N5: =Time!N$10 -> 5 | O5: =Time!O$10 -> 6 | P5: =Time!P$10 -> 7 | Q5: =Time!Q$10 -> 8 | R5: =Time!R$10 -> 9 | S5: =Time!S$10 -> 10 | T5: =Time!T$10 -> 11 | U5: =Time!U$10 -> 12 | V5: =Time!V$10 -> 13
A7: CPIH INDEXATION
B9: CPIH: Index value series
E10: =Inputs!E$35 -> Consumer Price Index for April | F10: =Inputs!F$35 -> 0 | G10: =Inputs!G$35 -> index | H10: =Inputs!H$35 -> 0 | I10: =Inputs!I$35 -> 0 | J10: =Inputs!J$35 -> 95.9 | K10: =Inputs!K$35 -> 98 | L10: =Inputs!L$35 -> 99.6 | M10: =Inputs!M$35 -> 99.9 | N10: =Inputs!N$35 -> 100.6 | O10: =Inputs!O$35 -> 103.2 | P10: =Inputs!P$35 -> 105.85224 | Q10: =Inputs!Q$35 -> 108.3185972 | R10: =Inputs!R$35 -> 110.4849691 | S10: =Inputs!S$35 -> 112.6946685 | T10: =Inputs!T$35 -> 114.9485619 | U10: =Inputs!U$35 -> 117.2475331 | V10: =Inputs!V$35 -> 119.5924838
E11: =Inputs!E$36 -> Consumer Price Index for May | F11: =Inputs!F$36 -> 0 | G11: =Inputs!G$36 -> index | H11: =Inputs!H$36 -> 0 | I11: =Inputs!I$36 -> 0 | J11: =Inputs!J$36 -> 95.9 | K11: =Inputs!K$36 -> 98.2 | L11: =Inputs!L$36 -> 99.6 | M11: =Inputs!M$36 -> 100.1 | N11: =Inputs!N$36 -> 100.8 | O11: =Inputs!O$36 -> 103.5 | P11: =Inputs!P$36 -> 106.11855 | Q11: =Inputs!Q$36 -> 108.5274411 | R11: =Inputs!R$36 -> 110.6979899 | S11: =Inputs!S$36 -> 112.9119497 | T11: =Inputs!T$36 -> 115.1701887 | U11: =Inputs!U$36 -> 117.4735925 | V11: =Inputs!V$36 -> 119.8230643
E12: =Inputs!E$37 -> Consumer Price Index for June | F12: =Inputs!F$37 -> 0 | G12: =Inputs!G$37 -> index | H12: =Inputs!H$37 -> 0 | I12: =Inputs!I$37 -> 0 | J12: =Inputs!J$37 -> 95.6 | K12: =Inputs!K$37 -> 98 | L12: =Inputs!L$37 -> 99.8 | M12: =Inputs!M$37 -> 100.1 | N12: =Inputs!N$37 -> 101 | O12: =Inputs!O$37 -> 103.5 | P12: =Inputs!P$37 -> 106.191 | Q12: =Inputs!Q$37 -> 108.6015357 | R12: =Inputs!R$37 -> 110.7735664 | S12: =Inputs!S$37 -> 112.9890377 | T12: =Inputs!T$37 -> 115.2488185 | U12: =Inputs!U$37 -> 117.5537949 | V12: =Inputs!V$37 -> 119.9048708
E13: =Inputs!E$38 -> Consumer Price Index for July | F13: =Inputs!F$38 -> 0 | G13: =Inputs!G$38 -> index | H13: =Inputs!H$38 -> 0 | I13: =Inputs!I$38 -> 0 | J13: =Inputs!J$38 -> 95.7 | K13: =Inputs!K$38 -> 98 | L13: =Inputs!L$38 -> 99.6 | M13: =Inputs!M$38 -> 100 | N13: =Inputs!N$38 -> 100.9 | O13: =Inputs!O$38 -> 103.5 | P13: =Inputs!P$38 -> 106.11855 | Q13: =Inputs!Q$38 -> 108.5062174 | R13: =Inputs!R$38 -> 110.6763417 | S13: =Inputs!S$38 -> 112.8898686 | T13: =Inputs!T$38 -> 115.1476659 | U13: =Inputs!U$38 -> 117.4506192 | V13: =Inputs!V$38 -> 119.7996316
E14: =Inputs!E$39 -> Consumer Price Index for August | F14: =Inputs!F$39 -> 0 | G14: =Inputs!G$39 -> index | H14: =Inputs!H$39 -> 0 | I14: =Inputs!I$39 -> 0 | J14: =Inputs!J$39 -> 96.1 | K14: =Inputs!K$39 -> 98.4 | L14: =Inputs!L$39 -> 99.9 | M14: =Inputs!M$39 -> 100.3 | N14: =Inputs!N$39 -> 101.2 | O14: =Inputs!O$39 -> 104 | P14: =Inputs!P$39 -> 106.6 | Q14: =Inputs!Q$39 -> 108.9985 | R14: =Inputs!R$39 -> 111.17847 | S14: =Inputs!S$39 -> 113.4020394 | T14: =Inputs!T$39 -> 115.6700802 | U14: =Inputs!U$39 -> 117.9834818 | V14: =Inputs!V$39 -> 120.3431514
E15: =Inputs!E$40 -> Consumer Price Index for September | F15: =Inputs!F$40 -> 0 | G15: =Inputs!G$40 -> index | H15: =Inputs!H$40 -> 0 | I15: =Inputs!I$40 -> 0 | J15: =Inputs!J$40 -> 96.4 | K15: =Inputs!K$40 -> 98.7 | L15: =Inputs!L$40 -> 100 | M15: =Inputs!M$40 -> 100.2 | N15: =Inputs!N$40 -> 101.5 | O15: =Inputs!O$40 -> 104.3 | P15: =Inputs!P$40 -> 106.83449 | Q15: =Inputs!Q$40 -> 109.238266 | R15: =Inputs!R$40 -> 111.4230313 | S15: =Inputs!S$40 -> 113.651492 | T15: =Inputs!T$40 -> 115.9245218 | U15: =Inputs!U$40 -> 118.2430122 | V15: =Inputs!V$40 -> 120.6078725
E16: =Inputs!E$41 -> Consumer Price Index for October | F16: =Inputs!F$41 -> 0 | G16: =Inputs!G$41 -> index | H16: =Inputs!H$41 -> 0 | I16: =Inputs!I$41 -> 0 | J16: =Inputs!J$41 -> 96.8 | K16: =Inputs!K$41 -> 98.8 | L16: =Inputs!L$41 -> 100.1 | M16: =Inputs!M$41 -> 100.3 | N16: =Inputs!N$41 -> 101.6 | O16: =Inputs!O$41 -> 104.4 | P16: =Inputs!P$41 -> 106.97868 | Q16: =Inputs!Q$41 -> 109.332211 | R16: =Inputs!R$41 -> 111.5188552 | S16: =Inputs!S$41 -> 113.7492323 | T16: =Inputs!T$41 -> 116.0242169 | U16: =Inputs!U$41 -> 118.3447013 | V16: =Inputs!V$41 -> 120.7115953
E17: =Inputs!E$42 -> Consumer Price Index for November | F17: =Inputs!F$42 -> 0 | G17: =Inputs!G$42 -> index | H17: =Inputs!H$42 -> 0 | I17: =Inputs!I$42 -> 0 | J17: =Inputs!J$42 -> 97 | K17: =Inputs!K$42 -> 98.8 | L17: =Inputs!L$42 -> 99.9 | M17: =Inputs!M$42 -> 100.3 | N17: =Inputs!N$42 -> 101.8 | O17: =Inputs!O$42 -> 104.7 | P17: =Inputs!P$42 -> 107.13951 | Q17: =Inputs!Q$42 -> 109.4965792 | R17: =Inputs!R$42 -> 111.6865108 | S17: =Inputs!S$42 -> 113.920241 | T17: =Inputs!T$42 -> 116.1986458 | U17: =Inputs!U$42 -> 118.5226188 | V17: =Inputs!V$42 -> 120.8930711
E18: =Inputs!E$43 -> Consumer Price Index for December | F18: =Inputs!F$43 -> 0 | G18: =Inputs!G$43 -> index | H18: =Inputs!H$43 -> 0 | I18: =Inputs!I$43 -> 0 | J18: =Inputs!J$43 -> 97.3 | K18: =Inputs!K$43 -> 99.2 | L18: =Inputs!L$43 -> 99.9 | M18: =Inputs!M$43 -> 100.4 | N18: =Inputs!N$43 -> 102.2 | O18: =Inputs!O$43 -> 105 | P18: =Inputs!P$43 -> 107.4885 | Q18: =Inputs!Q$43 -> 109.7995028 | R18: =Inputs!R$43 -> 111.9954928 | S18: =Inputs!S$43 -> 114.2354027 | T18: =Inputs!T$43 -> 116.5201107 | U18: =Inputs!U$43 -> 118.8505129 | V18: =Inputs!V$43 -> 121.2275232
E19: =Inputs!E$44 -> Consumer Price Index for January | F19: =Inputs!F$44 -> 0 | G19: =Inputs!G$44 -> index | H19: =Inputs!H$44 -> 0 | I19: =Inputs!I$44 -> 0 | J19: =Inputs!J$44 -> 97 | K19: =Inputs!K$44 -> 98.7 | L19: =Inputs!L$44 -> 99.2 | M19: =Inputs!M$44 -> 99.9 | N19: =Inputs!N$44 -> 101.8 | O19: =Inputs!O$44 -> 104.5 | P19: =Inputs!P$44 -> 107.0576656 | Q19: =Inputs!Q$44 -> 109.3058766 | R19: =Inputs!R$44 -> 111.4919941 | S19: =Inputs!S$44 -> 113.721834 | T19: =Inputs!T$44 -> 115.9962707 | U19: =Inputs!U$44 -> 118.3161961 | V19: =Inputs!V$44 -> 120.68252
E20: =Inputs!E$45 -> Consumer Price Index for February | F20: =Inputs!F$45 -> 0 | G20: =Inputs!G$45 -> index | H20: =Inputs!H$45 -> 0 | I20: =Inputs!I$45 -> 0 | J20: =Inputs!J$45 -> 97.5 | K20: =Inputs!K$45 -> 99.1 | L20: =Inputs!L$45 -> 99.5 | M20: =Inputs!M$45 -> 100.1 | N20: =Inputs!N$45 -> 102.4 | O20: =Inputs!O$45 -> 104.9 | P20: =Inputs!P$45 -> 107.5524403 | Q20: =Inputs!Q$45 -> 109.8110416 | R20: =Inputs!R$45 -> 112.0072624 | S20: =Inputs!S$45 -> 114.2474076 | T20: =Inputs!T$45 -> 116.5323558 | U20: =Inputs!U$45 -> 118.8630029 | V20: =Inputs!V$45 -> 121.240263
E21: =Inputs!E$46 -> Consumer Price Index for March | F21: =Inputs!F$46 -> 0 | G21: =Inputs!G$46 -> index | H21: =Inputs!H$46 -> 0 | I21: =Inputs!I$46 -> 0 | J21: =Inputs!J$46 -> 97.8 | K21: =Inputs!K$46 -> 99.3 | L21: =Inputs!L$46 -> 99.6 | M21: =Inputs!M$46 -> 100.4 | N21: =Inputs!N$46 -> 102.7 | O21: =Inputs!O$46 -> 105.1 | P21: =Inputs!P$46 -> 107.8570589 | Q21: =Inputs!Q$46 -> 110.1220572 | R21: =Inputs!R$46 -> 112.3244983 | S21: =Inputs!S$46 -> 114.5709883 | T21: =Inputs!T$46 -> 116.862408 | U21: =Inputs!U$46 -> 119.1996562 | V21: =Inputs!V$46 -> 121.5836493
E23: =Inputs!E$48 -> CPIH: Assumed percentage increase for unpopulated monthly values | F23: =Inputs!F$48 -> 0 | G23: =Inputs!G$48 -> % | H23: =Inputs!H$48 -> 0 | I23: =Inputs!I$48 -> 0 | J23: =Inputs!J$48 -> 0 | K23: =Inputs!K$48 -> 0 | L23: =Inputs!L$48 -> 0 | M23: =Inputs!M$48 -> 0 | N23: =Inputs!N$48 -> 0 | O23: =Inputs!O$48 -> 0 | P23: =Inputs!P$48 -> 0 | Q23: =Inputs!Q$48 -> 0 | R23: =Inputs!R$48 -> 0 | S23: =Inputs!S$48 -> 0 | T23: =Inputs!T$48 -> 0 | U23: =Inputs!U$48 -> 0 | V23: =Inputs!V$48 -> 0
E25: CPIH: April - index | G25: index | J25: =IF(J10 > 0, J10, I25 * (1 + J$23)) -> 95.9 | K25: =IF(K10 > 0, K10, J25 * (1 + K$23)) -> 98 | L25: 99.6 | M25: 99.9 | N25: 100.6 | O25: 103.2 | P25: 105.85224 | Q25: =IF(Q10 > 0, Q10, P25 * (1 + Q$23)) -> 108.3185972 | R25: =IF(R10 > 0, R10, Q25 * (1 + R$23)) -> 110.4849691 | S25: =IF(S10 > 0, S10, R25 * (1 + S$23)) -> 112.6946685 | T25: =IF(T10 > 0, T10, S25 * (1 + T$23)) -> 114.9485619 | U25: =IF(U10 > 0, U10, T25 * (1 + U$23)) -> 117.2475331 | V25: =IF(V10 > 0, V10, U25 * (1 + V$23)) -> 119.5924838
E26: CPIH: May - index | G26: index | J26: =IF(J11 > 0, J11, I26 * (1 + J$23)) -> 95.9 | K26: 98.2 | L26: 99.6 | M26: 100.1 | N26: 100.8 | O26: 103.5 | P26: 106.11855 | Q26: 108.5274411 | R26: 110.6979899 | S26: 112.9119497 | T26: 115.1701887 | U26: 117.4735925 | V26: 119.8230643
E27: CPIH: June - index | G27: index | J27: 95.6 | K27: 98 | L27: 99.8 | M27: 100.1 | N27: 101 | O27: 103.5 | P27: 106.191 | Q27: 108.6015357 | R27: 110.7735664 | S27: 112.9890377 | T27: 115.2488185 | U27: 117.5537949 | V27: 119.9048708
E28: CPIH: July - index | G28: index | J28: 95.7 | K28: 98 | L28: 99.6 | M28: 100 | N28: 100.9 | O28: 103.5 | P28: 106.11855 | Q28: 108.5062174 | R28: 110.6763417 | S28: 112.8898686 | T28: 115.1476659 | U28: 117.4506192 | V28: 119.7996316
E29: CPIH: August - index | G29: index | J29: 96.1 | K29: 98.4 | L29: 99.9 | M29: 100.3 | N29: 101.2 | O29: 104 | P29: 106.6 | Q29: 108.9985 | R29: 111.17847 | S29: 113.4020394 | T29: 115.6700802 | U29: 117.9834818 | V29: 120.3431514
E30: CPIH: September- index | G30: index | J30: 96.4 | K30: 98.7 | L30: 100 | M30: 100.2 | N30: 101.5 | O30: 104.3 | P30: 106.83449 | Q30: 109.238266 | R30: 111.4230313 | S30: 113.651492 | T30: 115.9245218 | U30: 118.2430122 | V30: 120.6078725
E31: CPIH: October - index | G31: index | J31: 96.8 | K31: 98.8 | L31: 100.1 | M31: 100.3 | N31: 101.6 | O31: 104.4 | P31: 106.97868 | Q31: 109.332211 | R31: 111.5188552 | S31: 113.7492323 | T31: 116.0242169 | U31: 118.3447013 | V31: 120.7115953
E32: CPIH: November - index | G32: index | J32: 97 | K32: 98.8 | L32: 99.9 | M32: 100.3 | N32: 101.8 | O32: 104.7 | P32: 107.13951 | Q32: 109.4965792 | R32: 111.6865108 | S32: 113.920241 | T32: 116.1986458 | U32: 118.5226188 | V32: 120.8930711
E33: CPIH: December - index | G33: index | J33: 97.3 | K33: 99.2 | L33: 99.9 | M33: 100.4 | N33: 102.2 | O33: 105 | P33: 107.4885 | Q33: 109.7995028 | R33: 111.9954928 | S33: 114.2354027 | T33: 116.5201107 | U33: 118.8505129 | V33: 121.2275232
E34: CPIH: January - index | G34: index | J34: 97 | K34: 98.7 | L34: 99.2 | M34: 99.9 | N34: 101.8 | O34: 104.5 | P34: 107.0576656 | Q34: 109.3058766 | R34: 111.4919941 | S34: 113.721834 | T34: 115.9962707 | U34: 118.3161961 | V34: 120.68252
E35: CPIH: February - index | G35: index | J35: 97.5 | K35: 99.1 | L35: 99.5 | M35: 100.1 | N35: 102.4 | O35: 104.9 | P35: 107.5524403 | Q35: 109.8110416 | R35: 112.0072624 | S35: 114.2474076 | T35: 116.5323558 | U35: 118.8630029 | V35: 121.240263
E36: CPIH: March - index | G36: index | J36: 97.8 | K36: 99.3 | L36: 99.6 | M36: 100.4 | N36: 102.7 | O36: 105.1 | P36: 107.8570589 | Q36: 110.1220572 | R36: 112.3244983 | S36: 114.5709883 | T36: 116.862408 | U36: 119.1996562 | V36: 121.5836493
E38: CPIH: Financial year average - index | G38: index | J38: =AVERAGE(J25:J36) -> 96.58333333 | K38: 98.6 | L38: 99.725 | M38: 100.1666667 | N38: 101.5416667 | O38: 104.2166667 | P38: 106.8157237 | Q38: =AVERAGE(Q25:Q36) -> 109.1714855 | R38: 111.3549152 | S38: 113.5820135 | T38: 115.8536538 | U38: 118.1707268 | V38: 120.5341414
A41: RPI INDEXATION
B43: RPI: Index value series
E44: =Inputs!E$52 -> Retail Price Index for April | F44: =Inputs!F$52 -> 0 | G44: =Inputs!G$52 -> index | H44: =Inputs!H$52 -> 0 | I44: =Inputs!I$52 -> 0 | J44: =Inputs!J$52 -> 242.5 | K44: =Inputs!K$52 -> 249.5 | L44: =Inputs!L$52 -> 255.7 | M44: =Inputs!M$52 -> 258 | N44: =Inputs!N$52 -> 261.4 | O44: =Inputs!O$52 -> 270.6 | P44: =Inputs!P$52 -> 279.8 | Q44: =Inputs!Q$52 -> 288.4 | R44: =Inputs!R$52 -> 297.052 | S44: =Inputs!S$52 -> 305.96356 | T44: =Inputs!T$52 -> 315.1424668 | U44: =Inputs!U$52 -> 324.5967408 | V44: =Inputs!V$52 -> 334.334643
E45: =Inputs!E$53 -> Retail Price Index for May | F45: =Inputs!F$53 -> 0 | G45: =Inputs!G$53 -> index | H45: =Inputs!H$53 -> 0 | I45: =Inputs!I$53 -> 0 | J45: =Inputs!J$53 -> 242.4 | K45: =Inputs!K$53 -> 250 | L45: =Inputs!L$53 -> 255.9 | M45: =Inputs!M$53 -> 258.5 | N45: =Inputs!N$53 -> 262.1 | O45: =Inputs!O$53 -> 271.7 | P45: =Inputs!P$53 -> 280.8 | Q45: =Inputs!Q$53 -> 289.3 | R45: =Inputs!R$53 -> 297.979 | S45: =Inputs!S$53 -> 306.91837 | T45: =Inputs!T$53 -> 316.1259211 | U45: =Inputs!U$53 -> 325.6096987 | V45: =Inputs!V$53 -> 335.3779897
E46: =Inputs!E$54 -> Retail Price Index for June | F46: =Inputs!F$54 -> 0 | G46: =Inputs!G$54 -> index | H46: =Inputs!H$54 -> 0 | I46: =Inputs!I$54 -> 0 | J46: =Inputs!J$54 -> 241.8 | K46: =Inputs!K$54 -> 249.7 | L46: =Inputs!L$54 -> 256.3 | M46: =Inputs!M$54 -> 258.9 | N46: =Inputs!N$54 -> 263.1 | O46: =Inputs!O$54 -> 272.3 | P46: =Inputs!P$54 -> 281.8 | Q46: =Inputs!Q$54 -> 290.2 | R46: =Inputs!R$54 -> 298.906 | S46: =Inputs!S$54 -> 307.87318 | T46: =Inputs!T$54 -> 317.1093754 | U46: =Inputs!U$54 -> 326.6226567 | V46: =Inputs!V$54 -> 336.4213364
E47: =Inputs!E$55 -> Retail Price Index for July | F47: =Inputs!F$55 -> 0 | G47: =Inputs!G$55 -> index | H47: =Inputs!H$55 -> 0 | I47: =Inputs!I$55 -> 0 | J47: =Inputs!J$55 -> 242.1 | K47: =Inputs!K$55 -> 249.7 | L47: =Inputs!L$55 -> 256 | M47: =Inputs!M$55 -> 258.6 | N47: =Inputs!N$55 -> 263.4 | O47: =Inputs!O$55 -> 272.9 | P47: =Inputs!P$55 -> 282.2 | Q47: =Inputs!Q$55 -> 290.7 | R47: =Inputs!R$55 -> 299.421 | S47: =Inputs!S$55 -> 308.40363 | T47: =Inputs!T$55 -> 317.6557389 | U47: =Inputs!U$55 -> 327.1854111 | V47: =Inputs!V$55 -> 337.0009734
E48: =Inputs!E$56 -> Retail Price Index for August | F48: =Inputs!F$56 -> 0 | G48: =Inputs!G$56 -> index | H48: =Inputs!H$56 -> 0 | I48: =Inputs!I$56 -> 0 | J48: =Inputs!J$56 -> 243 | K48: =Inputs!K$56 -> 251 | L48: =Inputs!L$56 -> 257 | M48: =Inputs!M$56 -> 259.8 | N48: =Inputs!N$56 -> 264.4 | O48: =Inputs!O$56 -> 274.7 | P48: =Inputs!P$56 -> 283.8 | Q48: =Inputs!Q$56 -> 292.2 | R48: =Inputs!R$56 -> 300.966 | S48: =Inputs!S$56 -> 309.99498 | T48: =Inputs!T$56 -> 319.2948294 | U48: =Inputs!U$56 -> 328.8736743 | V48: =Inputs!V$56 -> 338.7398845
E49: =Inputs!E$57 -> Retail Price Index for September | F49: =Inputs!F$57 -> 0 | G49: =Inputs!G$57 -> index | H49: =Inputs!H$57 -> 0 | I49: =Inputs!I$57 -> 0 | J49: =Inputs!J$57 -> 244.2 | K49: =Inputs!K$57 -> 251.9 | L49: =Inputs!L$57 -> 257.6 | M49: =Inputs!M$57 -> 259.6 | N49: =Inputs!N$57 -> 264.9 | O49: =Inputs!O$57 -> 275.1 | P49: =Inputs!P$57 -> 284 | Q49: =Inputs!Q$57 -> 292.5 | R49: =Inputs!R$57 -> 301.275 | S49: =Inputs!S$57 -> 310.31325 | T49: =Inputs!T$57 -> 319.6226475 | U49: =Inputs!U$57 -> 329.2113269 | V49: =Inputs!V$57 -> 339.0876667
E50: =Inputs!E$58 -> Retail Price Index for October | F50: =Inputs!F$58 -> 0 | G50: =Inputs!G$58 -> index | H50: =Inputs!H$58 -> 0 | I50: =Inputs!I$58 -> 0 | J50: =Inputs!J$58 -> 245.6 | K50: =Inputs!K$58 -> 251.9 | L50: =Inputs!L$58 -> 257.7 | M50: =Inputs!M$58 -> 259.5 | N50: =Inputs!N$58 -> 264.8 | O50: =Inputs!O$58 -> 275.3 | P50: =Inputs!P$58 -> 284.1 | Q50: =Inputs!Q$58 -> 292.7 | R50: =Inputs!R$58 -> 301.481 | S50: =Inputs!S$58 -> 310.52543 | T50: =Inputs!T$58 -> 319.8411929 | U50: =Inputs!U$58 -> 329.4364287 | V50: =Inputs!V$58 -> 339.3195215
E51: =Inputs!E$59 -> Retail Price Index for November | F51: =Inputs!F$59 -> 0 | G51: =Inputs!G$59 -> index | H51: =Inputs!H$59 -> 0 | I51: =Inputs!I$59 -> 0 | J51: =Inputs!J$59 -> 245.6 | K51: =Inputs!K$59 -> 252.1 | L51: =Inputs!L$59 -> 257.1 | M51: =Inputs!M$59 -> 259.8 | N51: =Inputs!N$59 -> 265.5 | O51: =Inputs!O$59 -> 275.8 | P51: =Inputs!P$59 -> 284.4 | Q51: =Inputs!Q$59 -> 293 | R51: =Inputs!R$59 -> 301.79 | S51: =Inputs!S$59 -> 310.8437 | T51: =Inputs!T$59 -> 320.169011 | U51: =Inputs!U$59 -> 329.7740813 | V51: =Inputs!V$59 -> 339.6673038
E52: =Inputs!E$60 -> Retail Price Index for December | F52: =Inputs!F$60 -> 0 | G52: =Inputs!G$60 -> index | H52: =Inputs!H$60 -> 0 | I52: =Inputs!I$60 -> 0 | J52: =Inputs!J$60 -> 246.8 | K52: =Inputs!K$60 -> 253.4 | L52: =Inputs!L$60 -> 257.5 | M52: =Inputs!M$60 -> 260.6 | N52: =Inputs!N$60 -> 267.1 | O52: =Inputs!O$60 -> 278.1 | P52: =Inputs!P$60 -> 286.5 | Q52: =Inputs!Q$60 -> 295.1 | R52: =Inputs!R$60 -> 303.953 | S52: =Inputs!S$60 -> 313.07159 | T52: =Inputs!T$60 -> 322.4637377 | U52: =Inputs!U$60 -> 332.1376498 | V52: =Inputs!V$60 -> 342.1017793
E53: =Inputs!E$61 -> Retail Price Index for January | F53: =Inputs!F$61 -> 0 | G53: =Inputs!G$61 -> index | H53: =Inputs!H$61 -> 0 | I53: =Inputs!I$61 -> 0 | J53: =Inputs!J$61 -> 245.8 | K53: =Inputs!K$61 -> 252.6 | L53: =Inputs!L$61 -> 255.4 | M53: =Inputs!M$61 -> 258.8 | N53: =Inputs!N$61 -> 265.5 | O53: =Inputs!O$61 -> 276 | P53: =Inputs!P$61 -> 284.4 | Q53: =Inputs!Q$61 -> 293.2164 | R53: =Inputs!R$61 -> 302.012892 | S53: =Inputs!S$61 -> 311.0732788 | T53: =Inputs!T$61 -> 320.4054771 | U53: =Inputs!U$61 -> 330.0176414 | V53: =Inputs!V$61 -> 339.9181707
E54: =Inputs!E$62 -> Retail Price Index for February | F54: =Inputs!F$62 -> 0 | G54: =Inputs!G$62 -> index | H54: =Inputs!H$62 -> 0 | I54: =Inputs!I$62 -> 0 | J54: =Inputs!J$62 -> 247.6 | K54: =Inputs!K$62 -> 254.2 | L54: =Inputs!L$62 -> 256.7 | M54: =Inputs!M$62 -> 260 | N54: =Inputs!N$62 -> 268.4 | O54: =Inputs!O$62 -> 278.1 | P54: =Inputs!P$62 -> 286.5 | Q54: =Inputs!Q$62 -> 295.3815 | R54: =Inputs!R$62 -> 304.242945 | S54: =Inputs!S$62 -> 313.3702333 | T54: =Inputs!T$62 -> 322.7713404 | U54: =Inputs!U$62 -> 332.4544806 | V54: =Inputs!V$62 -> 342.428115
E55: =Inputs!E$63 -> Retail Price Index for March | F55: =Inputs!F$63 -> 0 | G55: =Inputs!G$63 -> index | H55: =Inputs!H$63 -> 0 | I55: =Inputs!I$63 -> 0 | J55: =Inputs!J$63 -> 248.7 | K55: =Inputs!K$63 -> 254.8 | L55: =Inputs!L$63 -> 257.1 | M55: =Inputs!M$63 -> 261.1 | N55: =Inputs!N$63 -> 269.3 | O55: =Inputs!O$63 -> 278.3 | P55: =Inputs!P$63 -> 287.1 | Q55: =Inputs!Q$63 -> 296.0001 | R55: =Inputs!R$63 -> 304.880103 | S55: =Inputs!S$63 -> 314.0265061 | T55: =Inputs!T$63 -> 323.4473013 | U55: =Inputs!U$63 -> 333.1507203 | V55: =Inputs!V$63 -> 343.1452419
E57: =Inputs!E$65 -> RPI: Assumed percentage increase for unpopulated monthly values | F57: =Inputs!F$65 -> 0 | G57: =Inputs!G$65 -> % | H57: =Inputs!H$65 -> 0 | I57: =Inputs!I$65 -> 0 | J57: =Inputs!J$65 -> 0 | K57: =Inputs!K$65 -> 0 | L57: =Inputs!L$65 -> 0 | M57: =Inputs!M$65 -> 0 | N57: =Inputs!N$65 -> 0 | O57: =Inputs!O$65 -> 0 | P57: =Inputs!P$65 -> 0 | Q57: =Inputs!Q$65 -> 0 | R57: =Inputs!R$65 -> 0 | S57: =Inputs!S$65 -> 0 | T57: =Inputs!T$65 -> 0 | U57: =Inputs!U$65 -> 0 | V57: =Inputs!V$65 -> 0
E59: RPI: April - index | G59: index | J59: =IF(J44 > 0, J44, I59 * (1 + J$57)) -> 242.5 | K59: =IF(K44 > 0, K44, J59 * (1 + K$57)) -> 249.5 | L59: 255.7 | M59: 258 | N59: 261.4 | O59: 270.6 | P59: 279.8 | Q59: =IF(Q44 > 0, Q44, P59 * (1 + Q$57)) -> 288.4 | R59: =IF(R44 > 0, R44, Q59 * (1 + R$57)) -> 297.052 | S59: =IF(S44 > 0, S44, R59 * (1 + S$57)) -> 305.96356 | T59: =IF(T44 > 0, T44, S59 * (1 + T$57)) -> 315.1424668 | U59: =IF(U44 > 0, U44, T59 * (1 + U$57)) -> 324.5967408 | V59: =IF(V44 > 0, V44, U59 * (1 + V$57)) -> 334.334643
E60: RPI: May - index | G60: index | J60: =IF(J45 > 0, J45, I60 * (1 + J$57)) -> 242.4 | K60: 250 | L60: 255.9 | M60: 258.5 | N60: 262.1 | O60: 271.7 | P60: 280.8 | Q60: 289.3 | R60: 297.979 | S60: 306.91837 | T60: 316.1259211 | U60: 325.6096987 | V60: 335.3779897
E61: RPI: June - index | G61: index | J61: =IF(J46 > 0, J46, I61 * (1 + J$57)) -> 241.8 | K61: 249.7 | L61: 256.3 | M61: 258.9 | N61: 263.1 | O61: 272.3 | P61: 281.8 | Q61: 290.2 | R61: 298.906 | S61: 307.87318 | T61: 317.1093754 | U61: 326.6226567 | V61: 336.4213364
E62: RPI: July - index | G62: index | J62: =IF(J47 > 0, J47, I62 * (1 + J$57)) -> 242.1 | K62: 249.7 | L62: 256 | M62: 258.6 | N62: 263.4 | O62: 272.9 | P62: 282.2 | Q62: 290.7 | R62: 299.421 | S62: 308.40363 | T62: 317.6557389 | U62: 327.1854111 | V62: 337.0009734
E63: RPI: August - index | G63: index | J63: =IF(J48 > 0, J48, I63 * (1 + J$57)) -> 243 | K63: 251 | L63: 257 | M63: 259.8 | N63: 264.4 | O63: 274.7 | P63: 283.8 | Q63: 292.2 | R63: 300.966 | S63: 309.99498 | T63: 319.2948294 | U63: 328.8736743 | V63: 338.7398845
E64: RPI: September- index | G64: index | J64: =IF(J49 > 0, J49, I64 * (1 + J$57)) -> 244.2 | K64: 251.9 | L64: 257.6 | M64: 259.6 | N64: 264.9 | O64: 275.1 | P64: 284 | Q64: 292.5 | R64: 301.275 | S64: 310.31325 | T64: 319.6226475 | U64: 329.2113269 | V64: 339.0876667
E65: RPI: October - index | G65: index | J65: =IF(J50 > 0, J50, I65 * (1 + J$57)) -> 245.6 | K65: 251.9 | L65: 257.7 | M65: 259.5 | N65: 264.8 | O65: 275.3 | P65: 284.1 | Q65: 292.7 | R65: 301.481 | S65: 310.52543 | T65: 319.8411929 | U65: 329.4364287 | V65: 339.3195215
E66: RPI: November - index | G66: index | J66: =IF(J51 > 0, J51, I66 * (1 + J$57)) -> 245.6 | K66: 252.1 | L66: 257.1 | M66: 259.8 | N66: 265.5 | O66: 275.8 | P66: 284.4 | Q66: 293 | R66: 301.79 | S66: 310.8437 | T66: 320.169011 | U66: 329.7740813 | V66: 339.6673038
E67: RPI: December - index | G67: index | J67: =IF(J52 > 0, J52, I67 * (1 + J$57)) -> 246.8 | K67: 253.4 | L67: 257.5 | M67: 260.6 | N67: 267.1 | O67: 278.1 | P67: 286.5 | Q67: 295.1 | R67: 303.953 | S67: 313.07159 | T67: 322.4637377 | U67: 332.1376498 | V67: 342.1017793
E68: RPI: January - index | G68: index | J68: =IF(J53 > 0, J53, I68 * (1 + J$57)) -> 245.8 | K68: 252.6 | L68: 255.4 | M68: 258.8 | N68: 265.5 | O68: 276 | P68: 284.4 | Q68: 293.2164 | R68: 302.012892 | S68: 311.0732788 | T68: 320.4054771 | U68: 330.0176414 | V68: 339.9181707
E69: RPI: February - index | G69: index | J69: =IF(J54 > 0, J54, I69 * (1 + J$57)) -> 247.6 | K69: 254.2 | L69: 256.7 | M69: 260 | N69: 268.4 | O69: 278.1 | P69: 286.5 | Q69: 295.3815 | R69: 304.242945 | S69: 313.3702333 | T69: 322.7713404 | U69: 332.4544806 | V69: 342.428115
E70: RPI: March - index | G70: index | J70: =IF(J55 > 0, J55, I70 * (1 + J$57)) -> 248.7 | K70: 254.8 | L70: 257.1 | M70: 261.1 | N70: 269.3 | O70: 278.3 | P70: 287.1 | Q70: 296.0001 | R70: 304.880103 | S70: 314.0265061 | T70: 323.4473013 | U70: 333.1507203 | V70: 343.1452419
E72: RPI: Financial year average - index | G72: index | J72: =AVERAGE(J59:J70) -> 244.675 | K72: 251.7333333 | L72: 256.6666667 | M72: 259.4333333 | N72: 264.9916667 | O72: 274.9083333 | P72: 283.7833333 | Q72: =AVERAGE(Q59:Q70) -> 292.3915 | R72: 301.163245 | S72: 310.1981424 | T72: 319.5040866 | U72: 329.0892092 | V72: 338.9618855
A75: INFLATION
B77: ="Inflation from " & F78 & " FYA to " & F79 & " FYE - RPI" -> Inflation from 2013 FYA to 2020 FYE - RPI
E78: =Inputs!E$69 -> Year reference for FYA base price 1 | F78: =Inputs!F$69 -> 2013 | G78: =Inputs!G$69 -> year #
E79: =Inputs!E$73 -> Year reference for FYE end price | F79: =Inputs!F$73 -> 2020 | G79: =Inputs!G$73 -> year #
E80: =E$72 -> RPI: Financial year average - index | F80: 0 | G80: index | H80: 0 | I80: 0 | J80: 244.675 | K80: 251.7333333 | L80: 256.6666667 | M80: 259.4333333 | N80: 264.9916667 | O80: 274.9083333 | P80: 283.7833333 | Q80: 292.3915 | R80: 301.163245 | S80: 310.1981424 | T80: 319.5040866 | U80: 329.0892092 | V80: 338.9618855
E81: =E$70 -> RPI: March - index | F81: 0 | G81: index | H81: 0 | I81: 0 | J81: 248.7 | K81: 254.8 | L81: 257.1 | M81: 261.1 | N81: 269.3 | O81: 278.3 | P81: 287.1 | Q81: 296.0001 | R81: 304.880103 | S81: 314.0265061 | T81: 323.4473013 | U81: 333.1507203 | V81: 343.1452419
E82: ="RPI inflate from " & F78 & " FYA to " & F79 & " FYE" -> RPI inflate from 2013 FYA to 2020 FYE | F82: =INDEX($J81:$V81, 1, MATCH($F79,$J$4:$V$4)) / INDEX($J80:$V80, 1, MATCH($F78,$J$4:$V$4)) -> 1.209768468 | G82: factor
B84: ="Inflation from " & F85 & " FYA to " & F86 & " FYE - RPI" -> Inflation from 2018 FYA to 2020 FYE - RPI
E85: =Inputs!E$70 -> Year reference for FYA base price 2 | F85: =Inputs!F$70 -> 2018 | G85: =Inputs!G$70 -> year #
E86: =Inputs!E$73 -> Year reference for FYE end price | F86: =Inputs!F$73 -> 2020 | G86: =Inputs!G$73 -> year #
E87: =E$72 -> RPI: Financial year average - index | F87: 0 | G87: index | H87: 0 | I87: 0 | J87: 244.675 | K87: 251.7333333 | L87: 256.6666667 | M87: 259.4333333 | N87: 264.9916667 | O87: 274.9083333 | P87: 283.7833333 | Q87: 292.3915 | R87: 301.163245 | S87: 310.1981424 | T87: 319.5040866 | U87: 329.0892092 | V87: 338.9618855
E88: =E$70 -> RPI: March - index | F88: 0 | G88: index | H88: 0 | I88: 0 | J88: 248.7 | K88: 254.8 | L88: 257.1 | M88: 261.1 | N88: 269.3 | O88: 278.3 | P88: 287.1 | Q88: 296.0001 | R88: 304.880103 | S88: 314.0265061 | T88: 323.4473013 | U88: 333.1507203 | V88: 343.1452419
E89: ="RPI inflate from " & F85 & " FYA to " & F86 & " FYE" -> RPI inflate from 2018 FYA to 2020 FYE | F89: =INDEX($J88:$V88, 1, MATCH($F86,$J$4:$V$4)) / INDEX($J87:$V87, 1, MATCH($F85,$J$4:$V$4)) -> 1.076722908 | G89: factor
B91: ="Inflation from " & F92 & " FYE to " & F93 & " FYE - RPI" -> Inflation from 2020 FYE to 2020 FYE - RPI
E92: =Inputs!E$71 -> Year reference for FYE base price 1 | F92: =Inputs!F$71 -> 2020 | G92: =Inputs!G$71 -> year #
E93: =Inputs!E$73 -> Year reference for FYE end price | F93: =Inputs!F$73 -> 2020 | G93: =Inputs!G$73 -> year #
E94: =E$70 -> RPI: March - index | F94: 0 | G94: index | H94: 0 | I94: 0 | J94: 248.7 | K94: 254.8 | L94: 257.1 | M94: 261.1 | N94: 269.3 | O94: 278.3 | P94: 287.1 | Q94: 296.0001 | R94: 304.880103 | S94: 314.0265061 | T94: 323.4473013 | U94: 333.1507203 | V94: 343.1452419
E95: ="RPI inflate from " & F92 & " FYE to " & F93 & " FYE" -> RPI inflate from 2020 FYE to 2020 FYE | F95: =INDEX($J94:$V94, 1, MATCH($F93,$J$4:$V$4)) / INDEX($J94:$V94, 1, MATCH($F92,$J$4:$V$4)) -> 1 | G95: factor
B97: ="Inflation from November " & F98 & " FYE to " & F99 & " FYE - RPI" -> Inflation from November 2019 FYE to 2020 FYE - RPI
E98: =Inputs!E$72 -> Year reference for FYE base price 2 | F98: =Inputs!F$72 -> 2019 | G98: =Inputs!G$72 -> year #
E99: =Inputs!E$73 -> Year reference for FYE end price | F99: =Inputs!F$73 -> 2020 | G99: =Inputs!G$73 -> year #
E100: =E$66 -> RPI: November - index | F100: 0 | G100: index | H100: 0 | I100: 0 | J100: 245.6 | K100: 252.1 | L100: 257.1 | M100: 259.8 | N100: 265.5 | O100: 275.8 | P100: 284.4 | Q100: 293 | R100: 301.79 | S100: 310.8437 | T100: 320.169011 | U100: 329.7740813 | V100: 339.6673038
E101: =E$70 -> RPI: March - index | F101: 0 | G101: index | H101: 0 | I101: 0 | J101: 248.7 | K101: 254.8 | L101: 257.1 | M101: 261.1 | N101: 269.3 | O101: 278.3 | P101: 287.1 | Q101: 296.0001 | R101: 304.880103 | S101: 314.0265061 | T101: 323.4473013 | U101: 333.1507203 | V101: 343.1452419
E102: ="RPI inflate from November " & F98 & " FYE to " & F99 & " FYE" -> RPI inflate from November 2019 FYE to 2020 FYE | F102: =INDEX($J101:$V101, 1, MATCH($F99,$J$4:$V$4)) / INDEX($J100:$V100, 1, MATCH($F98,$J$4:$V$4)) -> 1.040787975 | G102: factor
A105: DEFLATION
E107: =Inputs!E$77 -> Year reference for FYE base price | F107: =Inputs!F$77 -> 2020 | G107: =Inputs!G$77 -> year #
E108: =Inputs!E$78 -> Year reference for FYA end price | F108: =Inputs!F$78 -> 2018 | G108: =Inputs!G$78 -> year #
E109: =E$36 -> CPIH: March - index | F109: =F$36 -> 0 | G109: index | H109: 0 | I109: 0 | J109: 97.8 | K109: 99.3 | L109: 99.6 | M109: 100.4 | N109: 102.7 | O109: 105.1 | P109: 107.8570589 | Q109: 110.1220572 | R109: 112.3244983 | S109: 114.5709883 | T109: 116.862408 | U109: 119.1996562 | V109: 121.5836493
E110: =E$38 -> CPIH: Financial year average - index | F110: 0 | G110: index | H110: 0 | I110: 0 | J110: 96.58333333 | K110: 98.6 | L110: 99.725 | M110: 100.1666667 | N110: 101.5416667 | O110: 104.2166667 | P110: 106.8157237 | Q110: 109.1714855 | R110: 111.3549152 | S110: 113.5820135 | T110: 115.8536538 | U110: 118.1707268 | V110: 120.5341414
E111: ="CPIH deflate from " & F107 & " FYE to " & F108 & " FYA" -> CPIH deflate from 2020 FYE to 2018 FYA | F111: =INDEX($J110:$V110, 1, MATCH($F108,$J$4:$V$4)) / INDEX($J109:$V109, 1, MATCH($F107,$J$4:$V$4)) -> 0.9463741356 | G111: factor

Sheet Calc
A1: =RIGHT(CELL("filename", $A$1), LEN(CELL("filename", $A$1)) - SEARCH("]", CELL("filename", $A$1))) -> Calc
E2: =Time!E$25 -> Model period ending | J2: =Time!J$25 -> 2013-03-31 | K2: =Time!K$25 -> 2014-03-31 | L2: =Time!L$25 -> 2015-03-31 | M2: =Time!M$25 -> 2016-03-31 | N2: =Time!N$25 -> 2017-03-31 | O2: =Time!O$25 -> 2018-03-31 | P2: =Time!P$25 -> 2019-03-31 | Q2: =Time!Q$25 -> 2020-03-31 | R2: =Time!R$25 -> 2021-03-31 | S2: =Time!S$25 -> 2022-03-31 | T2: =Time!T$25 -> 2023-03-31 | U2: =Time!U$25 -> 2024-03-31 | V2: =Time!V$25 -> 2025-03-31
E3: =Time!E$80 -> Timeline label | J3: =Time!J$80 -> Pre-Fcst | K3: =Time!K$80 -> Pre-Fcst | L3: =Time!L$80 -> Pre-Fcst | M3: =Time!M$80 -> Pre-Fcst | N3: =Time!N$80 -> Pre-Fcst | O3: =Time!O$80 -> Pre-Fcst | P3: =Time!P$80 -> Pre-Fcst | Q3: =Time!Q$80 -> Pre-Fcst | R3: =Time!R$80 -> Forecast | S3: =Time!S$80 -> Forecast | T3: =Time!T$80 -> Forecast | U3: =Time!U$80 -> Forecast | V3: =Time!V$80 -> Forecast
E4: =Time!E$103 -> Financial year ending | J4: =Time!J$103 -> 2013 | K4: =Time!K$103 -> 2014 | L4: =Time!L$103 -> 2015 | M4: =Time!M$103 -> 2016 | N4: =Time!N$103 -> 2017 | O4: =Time!O$103 -> 2018 | P4: =Time!P$103 -> 2019 | Q4: =Time!Q$103 -> 2020 | R4: =Time!R$103 -> 2021 | S4: =Time!S$103 -> 2022 | T4: =Time!T$103 -> 2023 | U4: =Time!U$103 -> 2024 | V4: =Time!V$103 -> 2025
E5: =Time!E$10 -> Model column counter | F5: Constant | G5: Unit | H5: Total | J5: =Time!J$10 -> 1 | K5: =Time!K$10 -> 2 | L5: =Time!L$10 -> 3 | M5: =Time!M$10 -> 4 | N5: =Time!N$10 -> 5 | O5: =Time!O$10 -> 6 | P5: =Time!P$10 -> 7 | Q5: =Time!Q$10 -> 8 | R5: =Time!R$10 -> 9 | S5: =Time!S$10 -> 10 | T5: =Time!T$10 -> 11 | U5: =Time!U$10 -> 12 | V5: =Time!V$10 -> 13
A7: WATER SERVICES INPUTS INFLATION
D9: Water resources
E10: =Inputs!E$86 -> Net performance payment / (penalty) applied to revenue for in-period ODI adjustments ~ Water resources | F10: =Inputs!F$86 -> 0 | G10: =Inputs!G$86 -> £m
E11: =Inputs!E$87 -> Net performance payment / (penalty) applied to revenue for end of period ODI adjustments ~ Water resources | F11: =Inputs!F$87 -> 0.3534927073 | G11: =Inputs!G$87 -> £m
E13: =Indexation!E$82 -> RPI inflate from 2013 FYA to 2020 FYE | F13: =Indexation!F$82 -> 1.209768468 | G13: =Indexation!G$82 -> factor
E15: =E10 & " at 2020 FYE price base" -> Net performance payment / (penalty) applied to revenue for in-period ODI adjustments ~ Water resources at 2020 FYE price base | F15: =F10 * F$13 -> 0 | G15: £m
E16: =E11 & " at 2020 FYE price base" -> Net performance payment / (penalty) applied to revenue for end of period ODI adjustments ~ Water resources at 2020 FYE price base | F16: =F11 * F$13 -> 0.427644331 | G16: £m
E18: =Inputs!E$88 -> Total value of export incentive to be paid to water resources at PR19 | F18: =Inputs!F$88 -> 0 | G18: =Inputs!G$88 -> £m
E19: =Inputs!E$89 -> Total value of import incentive - water resources | F19: =Inputs!F$89 -> 0 | G19: =Inputs!G$89 -> £m
E21: =Indexation!E$89 -> RPI inflate from 2018 FYA to 2020 FYE | F21: =Indexation!F$89 -> 1.076722908 | G21: =Indexation!G$89 -> factor
E23: Water trading total value of export incentive ~ Water resources at 2020 FYE price base | F23: =F18 * F$21 -> 0 | G23: £m
E24: Water trading total value of import incentive ~ Water resources at 2020 FYE price base | F24: =F19 * F$21 -> 0 | G24: £m
B26: Water network plus
E27: =Inputs!E$92 -> Further 2010-15 reconciliation total adjustment carry forward to PR19 ~ Water network plus | F27: =Inputs!F$92 -> 1.286584625 | G27: =Inputs!G$92 -> £m
E28: =Inputs!E$93 -> Net performance payment / (penalty) applied to revenue for in-period ODI adjustments ~ Water network plus | F28: =Inputs!F$93 -> 0 | G28: =Inputs!G$93 -> £m
E29: =Inputs!E$94 -> Net performance payment / (penalty) applied to revenue for end of period ODI adjustments ~ Water network plus | F29: =Inputs!F$94 -> 38.48003972 | G29: =Inputs!G$94 -> £m
E30: =Inputs!E$95 -> Water: revenue adjustment from totex menu model | F30: =Inputs!F$95 -> 3.338355245 | G30: =Inputs!G$95 -> £m
E32: =Indexation!E$82 -> RPI inflate from 2013 FYA to 2020 FYE | F32: =Indexation!F$82 -> 1.209768468 | G32: =Indexation!G$82 -> factor
E34: =E27 & " at 2020 FYE price base" -> Further 2010-15 reconciliation total adjustment carry forward to PR19 ~ Water network plus at 2020 FYE price base | F34: =F27 * F$32 -> 1.556469511 | G34: £m
E35: =E28 & " at 2020 FYE price base" -> Net performance payment / (penalty) applied to revenue for in-period ODI adjustments ~ Water network plus at 2020 FYE price base | F35: =F28 * F$32 -> 0 | G35: £m
E36: =E29 & " at 2020 FYE price base" -> Net performance payment / (penalty) applied to revenue for end of period ODI adjustments ~ Water network plus at 2020 FYE price base | F36: =F29 * F$32 -> 46.55193872 | G36: £m
E37: ="Totex menu revenue adjustment ~ Water network plus " & " at 2020 FYE price base" -> Totex menu revenue adjustment ~ Water network plus at 2020 FYE price base | F37: =F30 * F$32 -> 4.038636911 | G37: £m
E39: =Inputs!E$96 -> Total value of export incentive to be paid to water network plus at PR19 | F39: =Inputs!F$96 -> 0 | G39: =Inputs!G$96 -> £m
E40: =Inputs!E$97 -> Total value of import incentive - water network plus | F40: =Inputs!F$97 -> 0 | G40: =Inputs!G$97 -> £m
E41: =Inputs!E$98 -> WRFIM total reward / (penalty) at end of AMP6 ~ Water | F41: =Inputs!F$98 -> -8.388656405 | G41: =Inputs!G$98 -> £m
E43: =Indexation!E$89 -> RPI inflate from 2018 FYA to 2020 FYE | F43: =Indexation!F$89 -> 1.076722908 | G43: =Indexation!G$89 -> factor
E44: =Indexation!E$102 -> RPI inflate from November 2019 FYE to 2020 FYE | F44: =Indexation!F$102 -> 1.040787975 | G44: =Indexation!G$102 -> factor
E46: Water trading total value of export incentive - Water network plus at 2020 FYE price base | F46: =F39 * F$43 -> 0 | G46: £m
E47: Water trading total value of import incentive - Water network plus at 2020 FYE price base | F47: =F40 * F$43 -> 0 | G47: £m
E48: WRFIM total reward / (penalty) at the end of AMP6 ~ Water network plus at 2020 FYE price base | F48: =F41 * F$44 -> -8.73081271 | G48: £m
A51: WASTEWATER SERVICES INPUTS INFLATION
B53: Bioresources
E54: =Inputs!E$103 -> Net performance payment / (penalty) applied to revenue for in-period ODI adjustments ~ Bioresources | F54: =Inputs!F$103 -> 0 | G54: =Inputs!G$103 -> £m
E55: =Inputs!E$104 -> Net performance payment / (penalty) applied to revenue for end of period ODI adjustments ~ Bioresources | F55: =Inputs!F$104 -> 0 | G55: =Inputs!G$104 -> £m
E57: =Indexation!E$82 -> RPI inflate from 2013 FYA to 2020 FYE | F57: =Indexation!F$82 -> 1.209768468 | G57: =Indexation!G$82 -> factor
E59: =E54 & " at 2020 FYE price base" -> Net performance payment / (penalty) applied to revenue for in-period ODI adjustments ~ Bioresources at 2020 FYE price base | F59: =F54 * F$57 -> 0 | G59: £m
E60: =E55 & " at 2020 FYE price base" -> Net performance payment / (penalty) applied to revenue for end of period ODI adjustments ~ Bioresources at 2020 FYE price base | F60: =F55 * F$57 -> 0 | G60: £m
B62: Wastewater network plus
E63: =Inputs!E$107 -> Further 2010-15 reconciliation total adjustment carry forward to PR19 ~ Wastewater network plus | F63: =Inputs!F$107 -> 2.648558875 | G63: =Inputs!G$107 -> £m
E64: =Inputs!E$108 -> Net performance payment / (penalty) applied to revenue for in-period ODI adjustments ~ Wastewater network plus | F64: =Inputs!F$108 -> 0 | G64: =Inputs!G$108 -> £m
E65: =Inputs!E$109 -> Net performance payment / (penalty) applied to revenue for end of period ODI adjustments ~ Wastewater network plus | F65: =Inputs!F$109 -> 43.57808033 | G65: =Inputs!G$109 -> £m
E66: =Inputs!E$110 -> Wastewater: revenue adjustment from totex menu model | F66: =Inputs!F$110 -> -5.599195633 | G66: =Inputs!G$110 -> £m
E68: =Indexation!E$82 -> RPI inflate from 2013 FYA to 2020 FYE | F68: =Indexation!F$82 -> 1.209768468 | G68: =Indexation!G$82 -> factor
E70: =E63 & " at 2020 FYE price base" -> Further 2010-15 reconciliation total adjustment carry forward to PR19 ~ Wastewater network plus at 2020 FYE price base | F70: =F63 * F$68 -> 3.204143014 | G70: £m
E71: =E64 & " at 2020 FYE price base" -> Net performance payment / (penalty) applied to revenue for in-period ODI adjustments ~ Wastewater network plus at 2020 FYE price base | F71: =F64 * F$68 -> 0 | G71: £m
E72: =E65 & " at 2020 FYE price base" -> Net performance payment / (penalty) applied to revenue for end of period ODI adjustments ~ Wastewater network plus at 2020 FYE price base | F72: =F65 * F$68 -> 52.71938749 | G72: £m
E73: =E66 & " at 2020 FYE price base" -> Wastewater: revenue adjustment from totex menu model at 2020 FYE price base | F73: =F66 * F$68 -> -6.773730325 | G73: £m
E75: =Inputs!E$111 -> WRFIM total reward / (penalty) at the end of AMP6 ~ Wastewater | F75: =Inputs!F$111 -> -14.2717287 | G75: =Inputs!G$111 -> £m
E76: =Indexation!E$102 -> RPI inflate from November 2019 FYE to 2020 FYE | F76: =Indexation!F$102 -> 1.040787975 | G76: =Indexation!G$102 -> factor
E78: WRFIM total reward / (penalty) at the end of AMP6 ~ Wastewater network plus at 2020 FYE price base | F78: =F75 * F76 -> -14.85384361 | G78: £m
B80: Dummy control
E81: =Inputs!E$114 -> Dummy: revenue adjustment from totex menu model | F81: =Inputs!F$114 -> 0 | G81: =Inputs!G$114 -> £m
E83: =Indexation!E$82 -> RPI inflate from 2013 FYA to 2020 FYE | F83: =Indexation!F$82 -> 1.209768468 | G83: =Indexation!G$82 -> factor
E85: =E81 & " at 2020 FYE price base" -> Dummy: revenue adjustment from totex menu model at 2020 FYE price base | F85: =F81 * F$83 -> 0 | G85: £m
A89: RESIDENTIAL RETAIL INPUTS INFLATION
E91: =Inputs!E$118 -> Net performance payment / (penalty) applied to revenue for in-period ODI adjustments ~ Residential retail | F91: =Inputs!F$118 -> 0 | G91: =Inputs!G$118 -> £m
E92: =Inputs!E$119 -> Net performance payment / (penalty) applied to revenue for end of period ODI adjustments ~ Residential retail | F92: =Inputs!F$119 -> 0 | G92: =Inputs!G$119 -> £m
E93: =Inputs!E$120 -> Residential retail revenue adjustment at end of AMP6 | F93: =Inputs!F$120 -> -3.304345862 | G93: =Inputs!G$120 -> £m
E94: =Inputs!E$121 -> SIM forecast revenue adjustment | F94: =Inputs!F$121 -> 0 | G94: =Inputs!G$121 -> £m
E96: =Indexation!E$82 -> RPI inflate from 2013 FYA to 2020 FYE | F96: =Indexation!F$82 -> 1.209768468 | G96: =Indexation!G$82 -> factor
E97: =Indexation!E$95 -> RPI inflate from 2020 FYE to 2020 FYE | F97: =Indexation!F$95 -> 1 | G97: =Indexation!G$95 -> factor
E98: =Indexation!E$89 -> RPI inflate from 2018 FYA to 2020 FYE | F98: =Indexation!F$89 -> 1.076722908 | G98: =Indexation!G$89 -> factor
E100: =E91 & " at 2020 FYE price base" -> Net performance payment / (penalty) applied to revenue for in-period ODI adjustments ~ Residential retail at 2020 FYE price base | F100: =F91 * F$96 -> 0 | G100: £m
E101: Net performance payment / (penalty) applied to revenue for end of period ODI adjustments ~ Residential retail at 2020 FYE price base | F101: =F92 * F$96 -> 0 | G101: £m
E102: =E93 & " at 2020 FYE price base" -> Residential retail revenue adjustment at end of AMP6 at 2020 FYE price base | F102: =F93 * F97 -> -3.304345862 | G102: £m
E103: =E94 & " at 2020 FYE price base" -> SIM forecast revenue adjustment at 2020 FYE price base | F103: =F94 * F98 -> 0 | G103: £m
A106: BUSINESS RETAIL INPUTS INFLATION
E108: =Inputs!E$125 -> Net performance payment / (penalty) applied to revenue for in-period ODI adjustments ~ Business retail | F108: =Inputs!F$125 -> 0 | G108: =Inputs!G$125 -> £m
E109: =Inputs!E$126 -> Net performance payment / (penalty) applied to revenue for end of period ODI adjustments ~ Business retail | F109: =Inputs!F$126 -> 0 | G109: =Inputs!G$126 -> £m
E111: =Indexation!E$82 -> RPI inflate from 2013 FYA to 2020 FYE | F111: =Indexation!F$82 -> 1.209768468 | G111: =Indexation!G$82 -> factor
E113: =E108 & " at 2020 FYE price base" -> Net performance payment / (penalty) applied to revenue for in-period ODI adjustments ~ Business retail at 2020 FYE price base | F113: =F108 * F$111 -> 0 | G113: £m
E114: =E109 & " at 2020 FYE price base" -> Net performance payment / (penalty) applied to revenue for end of period ODI adjustments ~ Business retail at 2020 FYE price base | F114: =F109 * F$111 -> 0 | G114: £m
A117: PR14 REVENUE RECONCILIATION ADJUSTMENTS EXPRESSED IN 2017-18 FYA CPIH DEFLATED PRICE BASE
E119: =E$15 -> Net performance payment / (penalty) applied to revenue for in-period ODI adjustments ~ Water resources at 2020 FYE price base | F119: =F$15 -> 0 | G119: £m
E120: =E$16 -> Net performance payment / (penalty) applied to revenue for end of period ODI adjustments ~ Water resources at 2020 FYE price base | F120: =F$16 -> 0.427644331 | G120: £m
E121: =E$23 -> Water trading total value of export incentive ~ Water resources at 2020 FYE price base | F121: =F$23 -> 0 | G121: £m
E122: =E$24 -> Water trading total value of import incentive ~ Water resources at 2020 FYE price base | F122: =F$24 -> 0 | G122: £m
E123: =E$34 -> Further 2010-15 reconciliation total adjustment carry forward to PR19 ~ Water network plus at 2020 FYE price base | F123: =F$34 -> 1.556469511 | G123: £m
E124: =E$35 -> Net performance payment / (penalty) applied to revenue for in-period ODI adjustments ~ Water network plus at 2020 FYE price base | F124: =F$35 -> 0 | G124: £m
E125: =E$36 -> Net performance payment / (penalty) applied to revenue for end of period ODI adjustments ~ Water network plus at 2020 FYE price base | F125: =F$36 -> 46.55193872 | G125: £m
E126: =E$37 -> Totex menu revenue adjustment ~ Water network plus at 2020 FYE price base | F126: =F$37 -> 4.038636911 | G126: £m
E127: =E$46 -> Water trading total value of export incentive - Water network plus at 2020 FYE price base | F127: =F$46 -> 0 | G127: £m
E128: =E$47 -> Water trading total value of import incentive - Water network plus at 2020 FYE price base | F128: =F$47 -> 0 | G128: £m
E129: =E$48 -> WRFIM total reward / (penalty) at the end of AMP6 ~ Water network plus at 2020 FYE price base | F129: =F$48 -> -8.73081271 | G129: £m
E130: =E$59 -> Net performance payment / (penalty) applied to revenue for in-period ODI adjustments ~ Bioresources at 2020 FYE price base | F130: =F$59 -> 0 | G130: £m
E131: =E$60 -> Net performance payment / (penalty) applied to revenue for end of period ODI adjustments ~ Bioresources at 2020 FYE price base | F131: =F$60 -> 0 | G131: £m
E132: =E$70 -> Further 2010-15 reconciliation total adjustment carry forward to PR19 ~ Wastewater network plus at 2020 FYE price base | F132: =F$70 -> 3.204143014 | G132: £m
E133: =E$71 -> Net performance payment / (penalty) applied to revenue for in-period ODI adjustments ~ Wastewater network plus at 2020 FYE price base | F133: =F$71 -> 0 | G133: £m
E134: =E$72 -> Net performance payment / (penalty) applied to revenue for end of period ODI adjustments ~ Wastewater network plus at 2020 FYE price base | F134: =F$72 -> 52.71938749 | G134: £m
E135: =E$73 -> Wastewater: revenue adjustment from totex menu model at 2020 FYE price base | F135: =F$73 -> -6.773730325 | G135: £m
E136: =E$78 -> WRFIM total reward / (penalty) at the end of AMP6 ~ Wastewater network plus at 2020 FYE price base | F136: =F$78 -> -14.85384361 | G136: £m
E137: =E$85 -> Dummy: revenue adjustment from totex menu model at 2020 FYE price base | F137: =F$85 -> 0 | G137: £m
E138: =E$100 -> Net performance payment / (penalty) applied to revenue for in-period ODI adjustments ~ Residential retail at 2020 FYE price base | F138: =F$100 -> 0 | G138: £m
E139: =E$101 -> Net performance payment / (penalty) applied to revenue for end of period ODI adjustments ~ Residential retail at 2020 FYE price base | F139: =F$101 -> 0 | G139: £m
E140: =E$102 -> Residential retail revenue adjustment at end of AMP6 at 2020 FYE price base | F140: =F$102 -> -3.304345862 | G140: £m
E141: =E$103 -> SIM forecast revenue adjustment at 2020 FYE price base | F141: =F$103 -> 0 | G141: £m
E142: =E$113 -> Net performance payment / (penalty) applied to revenue for in-period ODI adjustments ~ Business retail at 2020 FYE price base | F142: =F$113 -> 0 | G142: £m
E143: =E$114 -> Net performance payment / (penalty) applied to revenue for end of period ODI adjustments ~ Business retail at 2020 FYE price base | F143: =F$114 -> 0 | G143: £m
E145: =Indexation!E$111 -> CPIH deflate from 2020 FYE to 2018 FYA | F145: =Indexation!F$111 -> 0.9463741356 | G145: =Indexation!G$111 -> factor
E147: ODI in-period revenue adjustment ~ Water resources at 2017-18 FYA CPIH deflated price base | F147: =F119 * F$145 -> 0 | G147: £m
E148: ODI end of period revenue adjustment ~ Water resources at 2017-18 FYA CPIH deflated price base | F148: 0.4047115341 | G148: £m
E149: Water trading total value of export incentive ~ Water resources at 2017-18 FYA CPIH deflated price base | F149: 0 | G149: £m
E150: Water trading total value of import incentive ~ Water resources at 2017-18 FYA CPIH deflated price base | F150: 0 | G150: £m
E151: Further 2010-15 reconciliation total adjustment revenue carry forward to PR19 ~ Water network plus at 2017-18 FYA CPIH deflated price base | F151: 1.473002488 | G151: £m
E152: ODI in-period revenue adjustment ~ Water network plus at 2017-18 FYA CPIH deflated price base | F152: 0 | G152: £m
E153: ODI end of period revenue adjustment ~ Water network plus at 2017-18 FYA CPIH deflated price base | F153: 44.05555076 | G153: £m
E154: Water: Totex menu revenue adjustment at 2017-18 FYA CPIH deflated price base | F154: 3.822061516 | G154: £m
E155: Water trading total value of export incentive ~ Water network plus at 2017-18 FYA CPIH deflated price base | F155: 0 | G155: £m
E156: Water trading total value of import incentive ~ Water network plus at 2017-18 FYA CPIH deflated price base | F156: 0 | G156: £m
E157: WRFIM total reward / (penalty) at the end of AMP6 ~ Water network plus at 2017-18 FYA CPIH deflated price base | F157: -8.262615332 | G157: £m
E158: ODI in-period revenue adjustment ~ Bioresources at 2017-18 FYA CPIH deflated price base | F158: 0 | G158: £m
E159: ODI end of period revenue adjustment ~ Bioresources at 2017-18 FYA CPIH deflated price base | F159: 0 | G159: £m
E160: Further 2010-15 reconciliation total adjustment revenue carry forward to PR19 ~ Wastewater network plus at 2017-18 FYA CPIH deflated price base | F160: 3.032318075 | G160: £m
E161: ODI in-period revenue adjustment ~ Wastewater network plus at 2017-18 FYA CPIH deflated price base | F161: 0 | G161: £m
E162: ODI end of period revenue adjustment ~ Wastewater network plus at 2017-18 FYA CPIH deflated price base | F162: 49.89226477 | G162: £m
E163: Wastewater: Totex menu revenue adjustment at 2017-18 FYA CPIH deflated price base | F163: -6.410483182 | G163: £m
E164: WRFIM total reward / (penalty) at the end of AMP6 ~ Wastewater network plus at 2017-18 FYA CPIH deflated price base | F164: -14.05729341 | G164: £m
E165: Dummy: revenue adjustment from totex menu model at 2017-18 FYA CPIH deflated price base | F165: 0 | G165: £m
E166: ODI in-period revenue adjustment ~ Residential retail at 2017-18 FYA CPIH deflated price base | F166: 0 | G166: £m
E167: ODI end of period revenue adjustment ~ Residential retail at 2017-18 FYA CPIH deflated price base | F167: 0 | G167: £m
E168: Residential retail revenue adjustment at 2017-18 FYA CPIH deflated price base | F168: -3.127147459 | G168: £m
E169: SIM forecast revenue adjustment at 2017-18 FYA CPIH deflated price base | F169: 0 | G169: £m
E170: ODI in-period revenue adjustment ~ Business retail at 2017-18 FYA CPIH deflated price base | F170: 0 | G170: £m
E171: ODI end of period revenue adjustment ~ Business retail at 2017-18 FYA CPIH deflated price base | F171: 0 | G171: £m
A174: SUBTOTALS AS PER PRICE CONTROL FOR REVENUE ADJUSTMENTS 2017-18 FYA CPIH DEFLATED PRICE BASE
B176: Water resources revenue adjustment
E177: =E$147 -> ODI in-period revenue adjustment ~ Water resources at 2017-18 FYA CPIH deflated price base | F177: =F$147 -> 0 | G177: £m
E178: =E$148 -> ODI end of period revenue adjustment ~ Water resources at 2017-18 FYA CPIH deflated price base | F178: =F$148 -> 0.4047115341 | G178: £m
E179: =E$149 -> Water trading total value of export incentive ~ Water resources at 2017-18 FYA CPIH deflated price base | F179: =F$149 -> 0 | G179: £m
E180: =E$150 -> Water trading total value of import incentive ~ Water resources at 2017-18 FYA CPIH deflated price base | F180: =F$150 -> 0 | G180: £m
E181: Water resources revenue adjustment | F181: =SUM(F177:F180) -> 0.4047115341 | G181: £m
B183: Water network plus revenue adjustment
E184: =E$151 -> Further 2010-15 reconciliation total adjustment revenue carry forward to PR19 ~ Water network plus at 2017-18 FYA CPIH deflated price base | F184: =F$151 -> 1.473002488 | G184: £m
E185: =E$152 -> ODI in-period revenue adjustment ~ Water network plus at 2017-18 FYA CPIH deflated price base | F185: =F$152 -> 0 | G185: £m
E186: =E$153 -> ODI end of period revenue adjustment ~ Water network plus at 2017-18 FYA CPIH deflated price base | F186: =F$153 -> 44.05555076 | G186: £m
E187: =E$154 -> Water: Totex menu revenue adjustment at 2017-18 FYA CPIH deflated price base | F187: =F$154 -> 3.822061516 | G187: £m
E188: =E$155 -> Water trading total value of export incentive ~ Water network plus at 2017-18 FYA CPIH deflated price base | F188: =F$155 -> 0 | G188: £m
E189: =E$156 -> Water trading total value of import incentive ~ Water network plus at 2017-18 FYA CPIH deflated price base | F189: =F$156 -> 0 | G189: £m
E190: =E$157 -> WRFIM total reward / (penalty) at the end of AMP6 ~ Water network plus at 2017-18 FYA CPIH deflated price base | F190: =F$157 -> -8.262615332 | G190: £m
E191: Water network plus revenue adjustment | F191: =SUM(F184:F190) -> 41.08799944 | G191: £m
B193: Bioresources revenue adjustment
E194: =E$158 -> ODI in-period revenue adjustment ~ Bioresources at 2017-18 FYA CPIH deflated price base | F194: =F$158 -> 0 | G194: £m
E195: =E$159 -> ODI end of period revenue adjustment ~ Bioresources at 2017-18 FYA CPIH deflated price base | F195: =F$159 -> 0 | G195: £m
E196: Bioresources revenue adjustment | F196: =SUM(F194:F195) -> 0 | G196: £m
B198: Wastewater network plus revenue adjustment
E199: =E$160 -> Further 2010-15 reconciliation total adjustment revenue carry forward to PR19 ~ Wastewater network plus at 2017-18 FYA CPIH deflated price base | F199: =F$160 -> 3.032318075 | G199: £m
E200: =E$163 -> Wastewater: Totex menu revenue adjustment at 2017-18 FYA CPIH deflated price base | F200: =F$163 -> -6.410483182 | G200: £m
E201: =E$161 -> ODI in-period revenue adjustment ~ Wastewater network plus at 2017-18 FYA CPIH deflated price base | F201: =F$161 -> 0 | G201: £m
E202: =E$162 -> ODI end of period revenue adjustment ~ Wastewater network plus at 2017-18 FYA CPIH deflated price base | F202: =F$162 -> 49.89226477 | G202: £m
E203: =E$164 -> WRFIM total reward / (penalty) at the end of AMP6 ~ Wastewater network plus at 2017-18 FYA CPIH deflated price base | F203: =F$164 -> -14.05729341 | G203: £m
E204: Wastewater network plus revenue adjustment | F204: =SUM(F199:F203) -> 32.45680625 | G204: £m
B206: Dummy revenue adjustment
E207: =E$165 -> Dummy: revenue adjustment from totex menu model at 2017-18 FYA CPIH deflated price base | F207: =F$165 -> 0 | G207: £m
E208: Dummy control revenue adjustment | F208: =SUM(F207:F207) -> 0 | G208: £m
B210: Residential retail revenue adjustment
E211: =E$166 -> ODI in-period revenue adjustment ~ Residential retail at 2017-18 FYA CPIH deflated price base | F211: =F$166 -> 0 | G211: £m
E212: =E$167 -> ODI end of period revenue adjustment ~ Residential retail at 2017-18 FYA CPIH deflated price base | F212: =F$167 -> 0 | G212: £m
E213: =E$168 -> Residential retail revenue adjustment at 2017-18 FYA CPIH deflated price base | F213: =F$168 -> -3.127147459 | G213: £m
E214: =E$169 -> SIM forecast revenue adjustment at 2017-18 FYA CPIH deflated price base | F214: =F$169 -> 0 | G214: £m
E215: Residential retail revenue adjustment | F215: =SUM(F211:F214) -> -3.127147459 | G215: £m
B217: Business retail revenue adjustment
E218: =E$170 -> ODI in-period revenue adjustment ~ Business retail at 2017-18 FYA CPIH deflated price base | F218: =F$170 -> 0
E219: =E$171 -> ODI end of period revenue adjustment ~ Business retail at 2017-18 FYA CPIH deflated price base | F219: =F$171 -> 0
E220: Business retail revenue adjustment | F220: =SUM(F218:F219) -> 0 | G220: £m

Sheet Profiling
A1: =RIGHT(CELL("filename", $A$1), LEN(CELL("filename", $A$1)) - SEARCH("]", CELL("filename", $A$1))) -> Profiling
E2: =Time!E$25 -> Model period ending | J2: =Time!J$25 -> 2013-03-31 | K2: =Time!K$25 -> 2014-03-31 | L2: =Time!L$25 -> 2015-03-31 | M2: =Time!M$25 -> 2016-03-31 | N2: =Time!N$25 -> 2017-03-31 | O2: =Time!O$25 -> 2018-03-31 | P2: =Time!P$25 -> 2019-03-31 | Q2: =Time!Q$25 -> 2020-03-31 | R2: =Time!R$25 -> 2021-03-31 | S2: =Time!S$25 -> 2022-03-31 | T2: =Time!T$25 -> 2023-03-31 | U2: =Time!U$25 -> 2024-03-31 | V2: =Time!V$25 -> 2025-03-31
E3: =Time!E$80 -> Timeline label | J3: =Time!J$80 -> Pre-Fcst | K3: =Time!K$80 -> Pre-Fcst | L3: =Time!L$80 -> Pre-Fcst | M3: =Time!M$80 -> Pre-Fcst | N3: =Time!N$80 -> Pre-Fcst | O3: =Time!O$80 -> Pre-Fcst | P3: =Time!P$80 -> Pre-Fcst | Q3: =Time!Q$80 -> Pre-Fcst | R3: =Time!R$80 -> Forecast | S3: =Time!S$80 -> Forecast | T3: =Time!T$80 -> Forecast | U3: =Time!U$80 -> Forecast | V3: =Time!V$80 -> Forecast
E4: =Time!E$103 -> Financial year ending | J4: =Time!J$103 -> 2013 | K4: =Time!K$103 -> 2014 | L4: =Time!L$103 -> 2015 | M4: =Time!M$103 -> 2016 | N4: =Time!N$103 -> 2017 | O4: =Time!O$103 -> 2018 | P4: =Time!P$103 -> 2019 | Q4: =Time!Q$103 -> 2020 | R4: =Time!R$103 -> 2021 | S4: =Time!S$103 -> 2022 | T4: =Time!T$103 -> 2023 | U4: =Time!U$103 -> 2024 | V4: =Time!V$103 -> 2025
E5: =Time!E$10 -> Model column counter | F5: Constant | G5: Unit | H5: Total | J5: =Time!J$10 -> 1 | K5: =Time!K$10 -> 2 | L5: =Time!L$10 -> 3 | M5: =Time!M$10 -> 4 | N5: =Time!N$10 -> 5 | O5: =Time!O$10 -> 6 | P5: =Time!P$10 -> 7 | Q5: =Time!Q$10 -> 8 | R5: =Time!R$10 -> 9 | S5: =Time!S$10 -> 10 | T5: =Time!T$10 -> 11 | U5: =Time!U$10 -> 12 | V5: =Time!V$10 -> 13
A7: DISCOUNT RATE FOR 2021-25
E9: =Inputs!E$133 -> PV base date | F9: =Inputs!F$133 -> 2021-03-31 | G9: =Inputs!G$133 -> date
E10: =Inputs!E$162 -> Days in a year | F10: =Inputs!F$162 -> 365 | G10: =Inputs!G$162 -> days
E11: =Time!E$25 -> Model period ending | F11: =Time!F$25 -> 00:00:00 | G11: =Time!G$25 -> date | H11: =Time!H$25 -> 00:00:00 | I11: =Time!I$25 -> 00:00:00 | J11: =Time!J$25 -> 2013-03-31 | K11: =Time!K$25 -> 2014-03-31 | L11: =Time!L$25 -> 2015-03-31 | M11: =Time!M$25 -> 2016-03-31 | N11: =Time!N$25 -> 2017-03-31 | O11: =Time!O$25 -> 2018-03-31 | P11: =Time!P$25 -> 2019-03-31 | Q11: =Time!Q$25 -> 2020-03-31 | R11: =Time!R$25 -> 2021-03-31 | S11: =Time!S$25 -> 2022-03-31 | T11: =Time!T$25 -> 2023-03-31 | U11: =Time!U$25 -> 2024-03-31 | V11: =Time!V$25 -> 2025-03-31
E12: =Time!E$49 -> Forecast period flag | F12: =Time!F$49 -> 0 | G12: =Time!G$49 -> flag | H12: =Time!H$49 -> 5 | I12: =Time!I$49 -> 0 | J12: =Time!J$49 -> 0 | K12: =Time!K$49 -> 0 | L12: =Time!L$49 -> 0 | M12: =Time!M$49 -> 0 | N12: =Time!N$49 -> 0 | O12: =Time!O$49 -> 0 | P12: =Time!P$49 -> 0 | Q12: =Time!Q$49 -> 0 | R12: =Time!R$49 -> 1 | S12: =Time!S$49 -> 1 | T12: =Time!T$49 -> 1 | U12: =Time!U$49 -> 1 | V12: =Time!V$49 -> 1
E13: Years from valuation date | G13: years | J13: =IF(J11 < $F9, 0, (J11 - $F9) / $F10) * J12 -> 0 | K13: 0 | L13: 0 | M13: 0 | N13: 0 | O13: 0 | P13: 0 | Q13: =IF(Q11 < $F9, 0, (Q11 - $F9) / $F10) * Q12 -> 0 | R13: =IF(R11 < $F9, 0, (R11 - $F9) / $F10) * R12 -> 0 | S13: =IF(S11 < $F9, 0, (S11 - $F9) / $F10) * S12 -> 1 | T13: 2 | U13: 3.002739726 | V13: 4.002739726
E15: =Inputs!E$135 -> Discount rate - Water resources | F15: =Inputs!F$135 -> 0.036 | G15: =Inputs!G$135 -> %
E16: =Inputs!E$136 -> Discount rate - Water network plus | F16: =Inputs!F$136 -> 0.036 | G16: =Inputs!G$136 -> %
E17: =Inputs!E$137 -> Discount rate - Bioresources | F17: =Inputs!F$137 -> 0.036 | G17: =Inputs!G$137 -> %
E18: =Inputs!E$138 -> Discount rate - Wastewater network plus | F18: =Inputs!F$138 -> 0.036 | G18: =Inputs!G$138 -> %
E19: =Inputs!E$139 -> Discount rate - Dummy control | F19: =Inputs!F$139 -> 0.036 | G19: =Inputs!G$139 -> %
E20: =Inputs!E$140 -> Discount rate - Residential retail | F20: =Inputs!F$140 -> 0.036 | G20: =Inputs!G$140 -> %
E21: =Inputs!E$141 -> Discount rate - Business retail | F21: =Inputs!F$141 -> 0.036 | G21: =Inputs!G$141 -> %
E23: =Inputs!E$133 -> PV base date | F23: =Inputs!F$133 -> 2021-03-31 | G23: =Inputs!G$133 -> date
E25: =Time!E$25 -> Model period ending | F25: =Time!F$25 -> 00:00:00 | G25: =Time!G$25 -> date | H25: =Time!H$25 -> 00:00:00 | I25: =Time!I$25 -> 00:00:00 | J25: =Time!J$25 -> 2013-03-31 | K25: =Time!K$25 -> 2014-03-31 | L25: =Time!L$25 -> 2015-03-31 | M25: =Time!M$25 -> 2016-03-31 | N25: =Time!N$25 -> 2017-03-31 | O25: =Time!O$25 -> 2018-03-31 | P25: =Time!P$25 -> 2019-03-31 | Q25: =Time!Q$25 -> 2020-03-31 | R25: =Time!R$25 -> 2021-03-31 | S25: =Time!S$25 -> 2022-03-31 | T25: =Time!T$25 -> 2023-03-31 | U25: =Time!U$25 -> 2024-03-31 | V25: =Time!V$25 -> 2025-03-31
E26: =E$13 -> Years from valuation date | F26: 0 | G26: years | H26: 0 | I26: 0 | J26: 0 | K26: 0 | L26: 0 | M26: 0 | N26: 0 | O26: 0 | P26: 0 | Q26: 0 | R26: 0 | S26: 1 | T26: 2 | U26: 3.002739726 | V26: 4.002739726
E28: PV discount factor - Water resources | G28: factor | H28: =SUM(J28:V28) -> 4.66420502 | J28: =IF(J$25 < $F$23, 0, 1 / ( 1 + $F15) ^ J$26) -> 0 | K28: =IF(K$25 < $F$23, 0, 1 / ( 1 + $F15) ^ K$26) -> 0 | L28: 0 | M28: 0 | N28: 0 | O28: 0 | P28: 0 | Q28: 0 | R28: 1 | S28: 0.9652509653 | T28: 0.9317094259 | U28: 0.8992462849 | V28: 0.8679983445
E29: PV discount factor - Water network | G29: factor | H29: =SUM(J29:V29) -> 4.66420502 | J29: =IF(J$25 < $F$23, 0, 1 / ( 1 + $F16) ^ J$26) -> 0 | K29: =IF(K$25 < $F$23, 0, 1 / ( 1 + $F16) ^ K$26) -> 0 | L29: 0 | M29: 0 | N29: 0 | O29: 0 | P29: 0 | Q29: 0 | R29: 1 | S29: 0.9652509653 | T29: 0.9317094259 | U29: 0.8992462849 | V29: 0.8679983445
E30: PV discount factor - Bioresources | G30: factor | H30: 4.66420502 | J30: =IF(J$25 < $F$23, 0, 1 / ( 1 + $F17) ^ J$26) -> 0 | K30: =IF(K$25 < $F$23, 0, 1 / ( 1 + $F17) ^ K$26) -> 0 | L30: 0 | M30: 0 | N30: 0 | O30: 0 | P30: 0 | Q30: 0 | R30: 1 | S30: 0.9652509653 | T30: 0.9317094259 | U30: 0.8992462849 | V30: 0.8679983445
E31: PV discount factor - Wastewater network | G31: factor | H31: 4.66420502 | J31: =IF(J$25 < $F$23, 0, 1 / ( 1 + $F18) ^ J$26) -> 0 | K31: 0 | L31: 0 | M31: 0 | N31: 0 | O31: 0 | P31: 0 | Q31: 0 | R31: 1 | S31: 0.9652509653 | T31: 0.9317094259 | U31: 0.8992462849 | V31: 0.8679983445
E32: PV discount factor - Dummy control | G32: factor | H32: =SUM(J32:V32) -> 4.66420502 | J32: 0 | K32: 0 | L32: 0 | M32: 0 | N32: 0 | O32: 0 | P32: 0 | Q32: 0 | R32: 1 | S32: 0.9652509653 | T32: 0.9317094259 | U32: 0.8992462849 | V32: 0.8679983445
E33: PV discount factor - Residential retail | G33: factor | H33: 4.66420502 | J33: =IF(J$25 < $F$23, 0, 1 / ( 1 + $F20) ^ J$26) -> 0 | K33: 0 | L33: 0 | M33: 0 | N33: 0 | O33: 0 | P33: 0 | Q33: 0 | R33: 1 | S33: 0.9652509653 | T33: 0.9317094259 | U33: 0.8992462849 | V33: 0.8679983445
E34: PV discount factor - Business retail | G34: factor | H34: 4.66420502 | J34: =IF(J$25 < $F$23, 0, 1 / ( 1 + $F21) ^ J$26) -> 0 | K34: 0 | L34: 0 | M34: 0 | N34: 0 | O34: 0 | P34: 0 | Q34: 0 | R34: 1 | S34: 0.9652509653 | T34: 0.9317094259 | U34: 0.8992462849 | V34: 0.8679983445
E36: =E$28 -> PV discount factor - Water resources | F36: 0 | G36: factor | H36: 4.66420502 | I36: 0 | J36: 0 | K36: 0 | L36: 0 | M36: 0 | N36: 0 | O36: 0 | P36: 0 | Q36: 0 | R36: 1 | S36: 0.9652509653 | T36: 0.9317094259 | U36: 0.8992462849 | V36: 0.8679983445
E37: =E$29 -> PV discount factor - Water network | F37: 0 | G37: factor | H37: 4.66420502 | I37: 0 | J37: 0 | K37: 0 | L37: 0 | M37: 0 | N37: 0 | O37: 0 | P37: 0 | Q37: 0 | R37: 1 | S37: 0.9652509653 | T37: 0.9317094259 | U37: 0.8992462849 | V37: 0.8679983445
E38: =E$30 -> PV discount factor - Bioresources | F38: =F$30 -> 0 | G38: factor | H38: 4.66420502 | I38: 0 | J38: 0 | K38: 0 | L38: 0 | M38: 0 | N38: 0 | O38: 0 | P38: 0 | Q38: 0 | R38: 1 | S38: 0.9652509653 | T38: 0.9317094259 | U38: 0.8992462849 | V38: 0.8679983445
E39: =E$31 -> PV discount factor - Wastewater network | F39: 0 | G39: factor | H39: 4.66420502 | I39: 0 | J39: 0 | K39: 0 | L39: 0 | M39: 0 | N39: 0 | O39: 0 | P39: 0 | Q39: 0 | R39: 1 | S39: 0.9652509653 | T39: 0.9317094259 | U39: 0.8992462849 | V39: 0.8679983445
E40: =E$32 -> PV discount factor - Dummy control | F40: 0 | G40: factor | H40: 4.66420502 | I40: 0 | J40: 0 | K40: 0 | L40: 0 | M40: 0 | N40: 0 | O40: 0 | P40: 0 | Q40: 0 | R40: 1 | S40: 0.9652509653 | T40: 0.9317094259 | U40: 0.8992462849 | V40: 0.8679983445
E41: =E$33 -> PV discount factor - Residential retail | F41: 0 | G41: factor | H41: 4.66420502 | I41: 0 | J41: 0 | K41: 0 | L41: 0 | M41: 0 | N41: 0 | O41: 0 | P41: 0 | Q41: 0 | R41: 1 | S41: 0.9652509653 | T41: 0.9317094259 | U41: 0.8992462849 | V41: 0.8679983445
E42: =E$34 -> PV discount factor - Business retail | F42: =F$34 -> 0 | G42: factor | H42: 4.66420502 | I42: 0 | J42: 0 | K42: 0 | L42: 0 | M42: 0 | N42: 0 | O42: 0 | P42: 0 | Q42: 0 | R42: 1 | S42: 0.9652509653 | T42: 0.9317094259 | U42: 0.8992462849 | V42: 0.8679983445
E45: Equivalent Annual Cost (EAC) factor - Water resources | F45: =SUM(J36:V36) -> 4.66420502 | G45: factor
E46: Equivalent Annual Cost (EAC) factor - Water network | F46: 4.66420502 | G46: factor
E47: Equivalent Annual Cost (EAC) factor - Bioresources | F47: 4.66420502 | G47: factor
E48: Equivalent Annual Cost (EAC) factor - Wastewater network | F48: 4.66420502 | G48: factor
E49: Equivalent Annual Cost (EAC) factor - Dummy control | F49: 4.66420502 | G49: factor
E50: Equivalent Annual Cost (EAC) factor - Residential retail | F50: 4.66420502 | G50: factor
E51: Equivalent Annual Cost (EAC) factor - Business retail | F51: 4.66420502 | G51: factor
A54: PROFILES
B56: Profile 0 - Apply in first year
E57: =Inputs!E$133 -> PV base date | F57: =Inputs!F$133 -> 2021-03-31 | G57: =Inputs!G$133 -> date
E59: =Time!E$25 -> Model period ending | F59: =Time!F$25 -> 00:00:00 | G59: =Time!G$25 -> date | H59: =Time!H$25 -> 00:00:00 | I59: =Time!I$25 -> 00:00:00 | J59: =Time!J$25 -> 2013-03-31 | K59: =Time!K$25 -> 2014-03-31 | L59: =Time!L$25 -> 2015-03-31 | M59: =Time!M$25 -> 2016-03-31 | N59: =Time!N$25 -> 2017-03-31 | O59: =Time!O$25 -> 2018-03-31 | P59: =Time!P$25 -> 2019-03-31 | Q59: =Time!Q$25 -> 2020-03-31 | R59: =Time!R$25 -> 2021-03-31 | S59: =Time!S$25 -> 2022-03-31 | T59: =Time!T$25 -> 2023-03-31 | U59: =Time!U$25 -> 2024-03-31 | V59: =Time!V$25 -> 2025-03-31
E61: =E$28 -> PV discount factor - Water resources | F61: 0 | G61: factor | H61: 4.66420502 | I61: 0 | J61: 0 | K61: 0 | L61: 0 | M61: 0 | N61: 0 | O61: 0 | P61: 0 | Q61: 0 | R61: 1 | S61: 0.9652509653 | T61: 0.9317094259 | U61: 0.8992462849 | V61: 0.8679983445
E62: =E$29 -> PV discount factor - Water network | F62: 0 | G62: factor | H62: 4.66420502 | I62: 0 | J62: 0 | K62: 0 | L62: 0 | M62: 0 | N62: 0 | O62: 0 | P62: 0 | Q62: 0 | R62: 1 | S62: 0.9652509653 | T62: 0.9317094259 | U62: 0.8992462849 | V62: 0.8679983445
E63: =E$30 -> PV discount factor - Bioresources | F63: =F$30 -> 0 | G63: factor | H63: 4.66420502 | I63: 0 | J63: 0 | K63: 0 | L63: 0 | M63: 0 | N63: 0 | O63: 0 | P63: 0 | Q63: 0 | R63: 1 | S63: 0.9652509653 | T63: 0.9317094259 | U63: 0.8992462849 | V63: 0.8679983445
E64: =E$31 -> PV discount factor - Wastewater network | F64: 0 | G64: factor | H64: 4.66420502 | I64: 0 | J64: 0 | K64: 0 | L64: 0 | M64: 0 | N64: 0 | O64: 0 | P64: 0 | Q64: 0 | R64: 1 | S64: 0.9652509653 | T64: 0.9317094259 | U64: 0.8992462849 | V64: 0.8679983445
E65: =E$32 -> PV discount factor - Dummy control | F65: 0 | G65: factor | H65: 4.66420502 | I65: 0 | J65: 0 | K65: 0 | L65: 0 | M65: 0 | N65: 0 | O65: 0 | P65: 0 | Q65: 0 | R65: 1 | S65: 0.9652509653 | T65: 0.9317094259 | U65: 0.8992462849 | V65: 0.8679983445
E66: =E$33 -> PV discount factor - Residential retail | F66: 0 | G66: factor | H66: 4.66420502 | I66: 0 | J66: 0 | K66: 0 | L66: 0 | M66: 0 | N66: 0 | O66: 0 | P66: 0 | Q66: 0 | R66: 1 | S66: 0.9652509653 | T66: 0.9317094259 | U66: 0.8992462849 | V66: 0.8679983445
E67: =E$34 -> PV discount factor - Business retail | F67: =F$34 -> 0 | G67: factor | H67: 4.66420502 | I67: 0 | J67: 0 | K67: 0 | L67: 0 | M67: 0 | N67: 0 | O67: 0 | P67: 0 | Q67: 0 | R67: 1 | S67: 0.9652509653 | T67: 0.9317094259 | U67: 0.8992462849 | V67: 0.8679983445
E69: PV discount factor at base date - Water resources | G69: factor | J69: =IF($F$57 = J$59, J61, 0) -> 0 | K69: 0 | L69: 0 | M69: 0 | N69: 0 | O69: 0 | P69: 0 | Q69: 0 | R69: 1 | S69: 0 | T69: 0 | U69: 0 | V69: 0
E70: PV discount factor at base date - Water network | G70: factor | J70: =IF($F$57 = J$59, J62, 0) -> 0 | K70: 0 | L70: 0 | M70: 0 | N70: 0 | O70: 0 | P70: 0 | Q70: 0 | R70: 1 | S70: 0 | T70: 0 | U70: 0 | V70: 0
E71: PV discount factor at base date - Bioresources | G71: factor | J71: =IF($F$57 = J$59, J63, 0) -> 0 | K71: 0 | L71: 0 | M71: 0 | N71: 0 | O71: 0 | P71: 0 | Q71: 0 | R71: 1 | S71: 0 | T71: 0 | U71: 0 | V71: 0
E72: PV discount factor at base date - Wastewater network | G72: factor | J72: =IF($F$57 = J$59, J64, 0) -> 0 | K72: 0 | L72: 0 | M72: 0 | N72: 0 | O72: 0 | P72: 0 | Q72: 0 | R72: 1 | S72: 0 | T72: 0 | U72: 0 | V72: 0
E73: PV discount factor at base date - Dummy control | G73: factor | J73: 0 | K73: 0 | L73: 0 | M73: 0 | N73: 0 | O73: 0 | P73: 0 | Q73: 0 | R73: 1 | S73: 0 | T73: 0 | U73: 0 | V73: 0
E74: PV discount factor at base date - Residential retail | G74: factor | J74: =IF($F$57 = J$59, J66, 0) -> 0 | K74: 0 | L74: 0 | M74: 0 | N74: 0 | O74: 0 | P74: 0 | Q74: 0 | R74: 1 | S74: 0 | T74: 0 | U74: 0 | V74: 0
E75: PV discount factor at base date - Business retail | G75: factor | J75: =IF($F$57 = J$59, J67, 0) -> 0 | K75: 0 | L75: 0 | M75: 0 | N75: 0 | O75: 0 | P75: 0 | Q75: 0 | R75: 1 | S75: 0 | T75: 0 | U75: 0 | V75: 0
E77: =Calc!E$181 -> Water resources revenue adjustment | F77: =Calc!F$181 -> 0.4047115341 | G77: =Calc!G$181 -> £m
E78: =Calc!E$191 -> Water network plus revenue adjustment | F78: =Calc!F$191 -> 41.08799944 | G78: =Calc!G$191 -> £m
E79: =Calc!E$196 -> Bioresources revenue adjustment | F79: =Calc!F$196 -> 0 | G79: =Calc!G$196 -> £m
E80: =Calc!E$204 -> Wastewater network plus revenue adjustment | F80: =Calc!F$204 -> 32.45680625 | G80: =Calc!G$204 -> £m
E81: =Calc!E$208 -> Dummy control revenue adjustment | F81: =Calc!F$208 -> 0 | G81: =Calc!G$208 -> £m
E82: =Calc!E$215 -> Residential retail revenue adjustment | F82: =Calc!F$215 -> -3.127147459 | G82: =Calc!G$215 -> £m
E83: =Calc!E$220 -> Business retail revenue adjustment | F83: =Calc!F$220 -> 0 | G83: =Calc!G$220 -> £m
E85: =E$69 -> PV discount factor at base date - Water resources | F85: 0 | G85: =G$69 -> factor | H85: 0 | I85: 0 | J85: 0 | K85: 0 | L85: 0 | M85: 0 | N85: 0 | O85: 0 | P85: 0 | Q85: 0 | R85: 1 | S85: 0 | T85: 0 | U85: 0 | V85: 0
E86: =E$70 -> PV discount factor at base date - Water network | F86: 0 | G86: factor | H86: 0 | I86: 0 | J86: 0 | K86: 0 | L86: 0 | M86: 0 | N86: 0 | O86: 0 | P86: 0 | Q86: 0 | R86: 1 | S86: 0 | T86: 0 | U86: 0 | V86: 0
E87: =E$71 -> PV discount factor at base date - Bioresources | F87: =F$71 -> 0 | G87: factor | H87: 0 | I87: 0 | J87: 0 | K87: 0 | L87: 0 | M87: 0 | N87: 0 | O87: 0 | P87: 0 | Q87: 0 | R87: 1 | S87: 0 | T87: 0 | U87: 0 | V87: 0
E88: =E$72 -> PV discount factor at base date - Wastewater network | F88: 0 | G88: factor | H88: 0 | I88: 0 | J88: 0 | K88: 0 | L88: 0 | M88: 0 | N88: 0 | O88: 0 | P88: 0 | Q88: 0 | R88: 1 | S88: 0 | T88: 0 | U88: 0 | V88: 0
E89: =E$73 -> PV discount factor at base date - Dummy control | F89: 0 | G89: factor | H89: 0 | I89: 0 | J89: 0 | K89: 0 | L89: 0 | M89: 0 | N89: 0 | O89: 0 | P89: 0 | Q89: 0 | R89: 1 | S89: 0 | T89: 0 | U89: 0 | V89: 0
E90: =E$74 -> PV discount factor at base date - Residential retail | F90: 0 | G90: factor | H90: 0 | I90: 0 | J90: 0 | K90: 0 | L90: 0 | M90: 0 | N90: 0 | O90: 0 | P90: 0 | Q90: 0 | R90: 1 | S90: 0 | T90: 0 | U90: 0 | V90: 0
E91: =E$75 -> PV discount factor at base date - Business retail | F91: =F$75 -> 0 | G91: factor | H91: 0 | I91: 0 | J91: 0 | K91: 0 | L91: 0 | M91: 0 | N91: 0 | O91: 0 | P91: 0 | Q91: 0 | R91: 1 | S91: 0 | T91: 0 | U91: 0 | V91: 0
E93: Water resources revenue adjustment applied in first year | G93: £m | H93: =SUM(J93:V93) -> 0.4047115341 | J93: =$F77 * J85 -> 0 | K93: =$F77 * K85 -> 0 | L93: 0 | M93: 0 | N93: 0 | O93: 0 | P93: 0 | Q93: 0 | R93: 0.4047115341 | S93: 0 | T93: 0 | U93: 0 | V93: 0
E94: Water network revenue adjustment applied in first year | G94: £m | H94: 41.08799944 | J94: =$F78 * J86 -> 0 | K94: =$F78 * K86 -> 0 | L94: 0 | M94: 0 | N94: 0 | O94: 0 | P94: 0 | Q94: 0 | R94: 41.08799944 | S94: 0 | T94: 0 | U94: 0 | V94: 0
E95: Bioresources revenue adjustment applied in first year | G95: £m | H95: 0 | J95: =$F79 * J87 -> 0 | K95: =$F79 * K87 -> 0 | L95: 0 | M95: 0 | N95: 0 | O95: 0 | P95: 0 | Q95: 0 | R95: 0 | S95: 0 | T95: 0 | U95: 0 | V95: 0
E96: Wastewater network revenue adjustment applied in first year | G96: £m | H96: 32.45680625 | J96: =$F80 * J88 -> 0 | K96: 0 | L96: 0 | M96: 0 | N96: 0 | O96: 0 | P96: 0 | Q96: 0 | R96: 32.45680625 | S96: 0 | T96: 0 | U96: 0 | V96: 0
E97: Dummy control revenue adjustment applied in first year | G97: £m | H97: =SUM(J97:V97) -> 0 | J97: 0 | K97: 0 | L97: 0 | M97: 0 | N97: 0 | O97: 0 | P97: 0 | Q97: 0 | R97: 0 | S97: 0 | T97: 0 | U97: 0 | V97: 0
E98: Residential retail revenue adjustment applied in first year | G98: £m | H98: -3.127147459 | J98: =$F82 * J90 -> 0 | K98: 0 | L98: 0 | M98: 0 | N98: 0 | O98: 0 | P98: 0 | Q98: 0 | R98: -3.127147459 | S98: 0 | T98: 0 | U98: 0 | V98: 0
E99: Business retail revenue adjustment applied in first year | G99: £m | H99: 0 | J99: =$F83 * J91 -> 0 | K99: =$F83 * K91 -> 0 | L99: 0 | M99: 0 | N99: 0 | O99: 0 | P99: 0 | Q99: 0 | R99: 0 | S99: 0 | T99: 0 | U99: 0 | V99: 0
B101: Profile 1 - Constant annuity 2020-25
E102: =Calc!E$181 -> Water resources revenue adjustment | F102: =Calc!F$181 -> 0.4047115341 | G102: =Calc!G$181 -> £m
E103: =Calc!E$191 -> Water network plus revenue adjustment | F103: =Calc!F$191 -> 41.08799944 | G103: =Calc!G$191 -> £m
E104: =Calc!E$196 -> Bioresources revenue adjustment | F104: =Calc!F$196 -> 0 | G104: =Calc!G$196 -> £m
E105: =Calc!E$204 -> Wastewater network plus revenue adjustment | F105: =Calc!F$204 -> 32.45680625 | G105: =Calc!G$204 -> £m
E106: =Calc!E$208 -> Dummy control revenue adjustment | F106: =Calc!F$208 -> 0 | G106: =Calc!G$208 -> £m
E107: =Calc!E$215 -> Residential retail revenue adjustment | F107: =Calc!F$215 -> -3.127147459 | G107: =Calc!G$215 -> £m
E108: =Calc!E$220 -> Business retail revenue adjustment | F108: =Calc!F$220 -> 0 | G108: =Calc!G$220 -> £m
E110: =E$45 -> Equivalent Annual Cost (EAC) factor - Water resources | F110: 4.66420502 | G110: factor
E111: =E$46 -> Equivalent Annual Cost (EAC) factor - Water network | F111: 4.66420502 | G111: factor
E112: =E$47 -> Equivalent Annual Cost (EAC) factor - Bioresources | F112: =F$47 -> 4.66420502 | G112: factor
E113: =E$48 -> Equivalent Annual Cost (EAC) factor - Wastewater network | F113: =F$48 -> 4.66420502 | G113: =G$48 -> factor
E114: =E$49 -> Equivalent Annual Cost (EAC) factor - Dummy control | F114: =F$49 -> 4.66420502 | G114: factor
E115: =E$50 -> Equivalent Annual Cost (EAC) factor - Residential retail | F115: 4.66420502 | G115: factor
E116: =E$51 -> Equivalent Annual Cost (EAC) factor - Business retail | F116: =F$51 -> 4.66420502 | G116: factor
E118: =Time!E$49 -> Forecast period flag | F118: =Time!F$49 -> 0 | G118: =Time!G$49 -> flag | H118: =Time!H$49 -> 5 | I118: =Time!I$49 -> 0 | J118: =Time!J$49 -> 0 | K118: =Time!K$49 -> 0 | L118: =Time!L$49 -> 0 | M118: =Time!M$49 -> 0 | N118: =Time!N$49 -> 0 | O118: =Time!O$49 -> 0 | P118: =Time!P$49 -> 0 | Q118: =Time!Q$49 -> 0 | R118: =Time!R$49 -> 1 | S118: =Time!S$49 -> 1 | T118: =Time!T$49 -> 1 | U118: =Time!U$49 -> 1 | V118: =Time!V$49 -> 1
E120: Water resources revenue adjustment - EAC factor adjusted | G120: £m | H120: =SUM(J120:V120) -> 0.433848354 | J120: =($F102 / $F110) * J$118 -> 0 | K120: =($F102 / $F110) * K$118 -> 0 | L120: 0 | M120: 0 | N120: 0 | O120: 0 | P120: 0 | Q120: 0 | R120: 0.08676967079 | S120: 0.08676967079 | T120: 0.08676967079 | U120: 0.08676967079 | V120: 0.08676967079
E121: Water network revenue adjustment - EAC factor adjusted | G121: £m | H121: 44.04609066 | J121: =($F103 / $F111) * J$118 -> 0 | K121: =($F103 / $F111) * K$118 -> 0 | L121: 0 | M121: 0 | N121: 0 | O121: 0 | P121: 0 | Q121: 0 | R121: 8.809218131 | S121: 8.809218131 | T121: 8.809218131 | U121: 8.809218131 | V121: 8.809218131
E122: Bioresources revenue adjustment - EAC factor adjusted | G122: £m | H122: 0 | J122: =($F104 / $F112) * J$118 -> 0 | K122: =($F104 / $F112) * K$118 -> 0 | L122: 0 | M122: 0 | N122: 0 | O122: 0 | P122: 0 | Q122: 0 | R122: 0 | S122: 0 | T122: 0 | U122: 0 | V122: 0
E123: Wastewater network revenue adjustment - EAC factor adjusted | G123: £m | H123: 34.79350298 | J123: =($F105 / $F113) * J$118 -> 0 | K123: 0 | L123: 0 | M123: 0 | N123: 0 | O123: 0 | P123: 0 | Q123: 0 | R123: 6.958700595 | S123: 6.958700595 | T123: 6.958700595 | U123: 6.958700595 | V123: 6.958700595
E124: Dummy control revenue adjustment - EAC factor adjusted | G124: £m | H124: =SUM(J124:V124) -> 0 | J124: 0 | K124: 0 | L124: 0 | M124: 0 | N124: 0 | O124: 0 | P124: 0 | Q124: 0 | R124: 0 | S124: 0 | T124: 0 | U124: 0 | V124: 0
E125: Residential retail revenue adjustment - EAC factor adjusted | G125: £m | H125: -3.35228345 | J125: =($F107 / $F115) * J$118 -> 0 | K125: 0 | L125: 0 | M125: 0 | N125: 0 | O125: 0 | P125: 0 | Q125: 0 | R125: -0.6704566899 | S125: -0.6704566899 | T125: -0.6704566899 | U125: -0.6704566899 | V125: -0.6704566899
E126: Business retail revenue adjustment - EAC factor adjusted | G126: £m | H126: 0 | J126: =($F108 / $F116) * J$118 -> 0 | K126: 0 | L126: 0 | M126: 0 | N126: 0 | O126: 0 | P126: 0 | Q126: 0 | R126: 0 | S126: 0 | T126: 0 | U126: 0 | V126: 0
E128: =E$120 -> Water resources revenue adjustment - EAC factor adjusted | F128: 0 | G128: =G$120 -> £m | H128: =H$120 -> 0.433848354 | I128: =I$120 -> 0 | J128: =J$120 -> 0 | K128: =K$120 -> 0 | L128: =L$120 -> 0 | M128: =M$120 -> 0 | N128: =N$120 -> 0 | O128: =O$120 -> 0 | P128: =P$120 -> 0 | Q128: =Q$120 -> 0 | R128: =R$120 -> 0.08676967079 | S128: =S$120 -> 0.08676967079 | T128: =T$120 -> 0.08676967079 | U128: =U$120 -> 0.08676967079 | V128: =V$120 -> 0.08676967079
E129: =E$121 -> Water network revenue adjustment - EAC factor adjusted | F129: 0 | G129: =G$121 -> £m | H129: =H$121 -> 44.04609066 | I129: =I$121 -> 0 | J129: =J$121 -> 0 | K129: =K$121 -> 0 | L129: =L$121 -> 0 | M129: =M$121 -> 0 | N129: =N$121 -> 0 | O129: =O$121 -> 0 | P129: =P$121 -> 0 | Q129: =Q$121 -> 0 | R129: =R$121 -> 8.809218131 | S129: =S$121 -> 8.809218131 | T129: =T$121 -> 8.809218131 | U129: =U$121 -> 8.809218131 | V129: =V$121 -> 8.809218131
E130: =E$122 -> Bioresources revenue adjustment - EAC factor adjusted | F130: =F$122 -> 0 | G130: £m | H130: 0 | I130: 0 | J130: 0 | K130: 0 | L130: 0 | M130: 0 | N130: 0 | O130: 0 | P130: 0 | Q130: 0 | R130: 0 | S130: 0 | T130: 0 | U130: 0 | V130: 0
E131: =E$123 -> Wastewater network revenue adjustment - EAC factor adjusted | F131: =F$123 -> 0 | G131: =G$123 -> £m | H131: =H$123 -> 34.79350298 | I131: =I$123 -> 0 | J131: =J$123 -> 0 | K131: =K$123 -> 0 | L131: =L$123 -> 0 | M131: =M$123 -> 0 | N131: =N$123 -> 0 | O131: =O$123 -> 0 | P131: =P$123 -> 0 | Q131: =Q$123 -> 0 | R131: =R$123 -> 6.958700595 | S131: =S$123 -> 6.958700595 | T131: =T$123 -> 6.958700595 | U131: =U$123 -> 6.958700595 | V131: =V$123 -> 6.958700595
E132: =E$124 -> Dummy control revenue adjustment - EAC factor adjusted | F132: =F$124 -> 0 | G132: =G$124 -> £m | H132: =H$124 -> 0 | I132: =I$124 -> 0 | J132: =J$124 -> 0 | K132: =K$124 -> 0 | L132: =L$124 -> 0 | M132: =M$124 -> 0 | N132: =N$124 -> 0 | O132: =O$124 -> 0 | P132: =P$124 -> 0 | Q132: =Q$124 -> 0 | R132: =R$124 -> 0 | S132: =S$124 -> 0 | T132: =T$124 -> 0 | U132: =U$124 -> 0 | V132: =V$124 -> 0
E133: =E$125 -> Residential retail revenue adjustment - EAC factor adjusted | F133: 0 | G133: =G$125 -> £m | H133: =H$125 -> -3.35228345 | I133: =I$125 -> 0 | J133: =J$125 -> 0 | K133: =K$125 -> 0 | L133: =L$125 -> 0 | M133: =M$125 -> 0 | N133: =N$125 -> 0 | O133: =O$125 -> 0 | P133: =P$125 -> 0 | Q133: =Q$125 -> 0 | R133: =R$125 -> -0.6704566899 | S133: =S$125 -> -0.6704566899 | T133: =T$125 -> -0.6704566899 | U133: =U$125 -> -0.6704566899 | V133: =V$125 -> -0.6704566899
E134: =E$126 -> Business retail revenue adjustment - EAC factor adjusted | F134: =F$126 -> 0 | G134: £m | H134: 0 | I134: 0 | J134: 0 | K134: 0 | L134: 0 | M134: 0 | N134: 0 | O134: 0 | P134: 0 | Q134: 0 | R134: 0 | S134: 0 | T134: 0 | U134: 0 | V134: 0
E136: =E$28 -> PV discount factor - Water resources | F136: 0 | G136: factor | H136: 4.66420502 | I136: 0 | J136: 0 | K136: 0 | L136: 0 | M136: 0 | N136: 0 | O136: 0 | P136: 0 | Q136: 0 | R136: 1 | S136: 0.9652509653 | T136: 0.9317094259 | U136: 0.8992462849 | V136: 0.8679983445
E137: =E$29 -> PV discount factor - Water network | F137: 0 | G137: factor | H137: 4.66420502 | I137: 0 | J137: 0 | K137: 0 | L137: 0 | M137: 0 | N137: 0 | O137: 0 | P137: 0 | Q137: 0 | R137: 1 | S137: 0.9652509653 | T137: 0.9317094259 | U137: 0.8992462849 | V137: 0.8679983445
E138: =E$30 -> PV discount factor - Bioresources | F138: =F$30 -> 0 | G138: factor | H138: 4.66420502 | I138: 0 | J138: 0 | K138: 0 | L138: 0 | M138: 0 | N138: 0 | O138: 0 | P138: 0 | Q138: 0 | R138: 1 | S138: 0.9652509653 | T138: 0.9317094259 | U138: 0.8992462849 | V138: 0.8679983445
E139: =E$31 -> PV discount factor - Wastewater network | F139: 0 | G139: factor | H139: 4.66420502 | I139: 0 | J139: 0 | K139: 0 | L139: 0 | M139: 0 | N139: 0 | O139: 0 | P139: 0 | Q139: 0 | R139: 1 | S139: 0.9652509653 | T139: 0.9317094259 | U139: 0.8992462849 | V139: 0.8679983445
E140: =E$32 -> PV discount factor - Dummy control | F140: 0 | G140: factor | H140: 4.66420502 | I140: 0 | J140: 0 | K140: 0 | L140: 0 | M140: 0 | N140: 0 | O140: 0 | P140: 0 | Q140: 0 | R140: 1 | S140: 0.9652509653 | T140: 0.9317094259 | U140: 0.8992462849 | V140: 0.8679983445
E141: =E$33 -> PV discount factor - Residential retail | F141: 0 | G141: factor | H141: 4.66420502 | I141: 0 | J141: 0 | K141: 0 | L141: 0 | M141: 0 | N141: 0 | O141: 0 | P141: 0 | Q141: 0 | R141: 1 | S141: 0.9652509653 | T141: 0.9317094259 | U141: 0.8992462849 | V141: 0.8679983445
E142: =E$34 -> PV discount factor - Business retail | F142: =F$34 -> 0 | G142: factor | H142: 4.66420502 | I142: 0 | J142: 0 | K142: 0 | L142: 0 | M142: 0 | N142: 0 | O142: 0 | P142: 0 | Q142: 0 | R142: 1 | S142: 0.9652509653 | T142: 0.9317094259 | U142: 0.8992462849 | V142: 0.8679983445
E144: Water resources revenue adjustment - Constant annuity 2015-20 | G144: £m | H144: =SUM(J144:V144) -> 0.4047115341 | J144: =J128 * J136 -> 0 | K144: 0 | L144: 0 | M144: 0 | N144: 0 | O144: 0 | P144: 0 | Q144: 0 | R144: 0.08676967079 | S144: 0.08375450849 | T144: 0.08084412016 | U144: 0.0780273041 | V144: 0.0753159306
E145: Water network revenue adjustment - Constant annuity 2015-20 | G145: £m | H145: 41.08799944 | J145: =J129 * J137 -> 0 | K145: 0 | L145: 0 | M145: 0 | N145: 0 | O145: 0 | P145: 0 | Q145: 0 | R145: 8.809218131 | S145: 8.503106305 | T145: 8.207631568 | U145: 7.921656677 | V145: 7.646386754
E146: Bioresources revenue adjustment - Constant annuity 2015-20 | G146: £m | H146: 0 | J146: =J130 * J138 -> 0 | K146: 0 | L146: 0 | M146: 0 | N146: 0 | O146: 0 | P146: 0 | Q146: 0 | R146: 0 | S146: 0 | T146: 0 | U146: 0 | V146: 0
E147: Wastewater network revenue adjustment - Constant annuity 2015-20 | G147: £m | H147: 32.45680625 | J147: =J131 * J139 -> 0 | K147: 0 | L147: 0 | M147: 0 | N147: 0 | O147: 0 | P147: 0 | Q147: 0 | R147: 6.958700595 | S147: 6.716892467 | T147: 6.483486937 | U147: 6.257585658 | V147: 6.040140596
E148: Dummy control revenue adjustment - Constant annuity 2015-20 | G148: £m | H148: =SUM(J148:V148) -> 0 | J148: 0 | K148: 0 | L148: 0 | M148: 0 | N148: 0 | O148: 0 | P148: 0 | Q148: 0 | R148: 0 | S148: 0 | T148: 0 | U148: 0 | V148: 0
E149: Residential retail revenue adjustment - Constant annuity 2015-20 | G149: £m | H149: -3.127147459 | J149: =J133 * J141 -> 0 | K149: 0 | L149: 0 | M149: 0 | N149: 0 | O149: 0 | P149: 0 | Q149: 0 | R149: -0.6704566899 | S149: -0.6471589671 | T149: -0.6246708177 | U149: -0.6029056876 | V149: -0.5819552969
E150: Business retail revenue adjustment - Constant annuity 2015-20 | G150: £m | H150: 0 | J150: =J134 * J142 -> 0 | K150: 0 | L150: 0 | M150: 0 | N150: 0 | O150: 0 | P150: 0 | Q150: 0 | R150: 0 | S150: 0 | T150: 0 | U150: 0 | V150: 0
B152: Profile 2 - Even allocation - NPV neutral
E153: =Calc!E$181 -> Water resources revenue adjustment | F153: =Calc!F$181 -> 0.4047115341 | G153: =Calc!G$181 -> £m
E154: =Calc!E$191 -> Water network plus revenue adjustment | F154: =Calc!F$191 -> 41.08799944 | G154: =Calc!G$191 -> £m
E155: =Calc!E$196 -> Bioresources revenue adjustment | F155: =Calc!F$196 -> 0 | G155: =Calc!G$196 -> £m
E156: =Calc!E$204 -> Wastewater network plus revenue adjustment | F156: =Calc!F$204 -> 32.45680625 | G156: =Calc!G$204 -> £m
E157: =Calc!E$208 -> Dummy control revenue adjustment | F157: =Calc!F$208 -> 0 | G157: =Calc!G$208 -> £m
E158: =Calc!E$215 -> Residential retail revenue adjustment | F158: =Calc!F$215 -> -3.127147459 | G158: =Calc!G$215 -> £m
E159: =Calc!E$220 -> Business retail revenue adjustment | F159: =Calc!F$220 -> 0 | G159: =Calc!G$220 -> £m
E161: =Inputs!E$135 -> Discount rate - Water resources | F161: =Inputs!F$135 -> 0.036 | G161: =Inputs!G$135 -> %
E162: =Inputs!E$136 -> Discount rate - Water network plus | F162: =Inputs!F$136 -> 0.036 | G162: =Inputs!G$136 -> %
E163: =Inputs!E$137 -> Discount rate - Bioresources | F163: =Inputs!F$137 -> 0.036 | G163: =Inputs!G$137 -> %
E164: =Inputs!E$138 -> Discount rate - Wastewater network plus | F164: =Inputs!F$138 -> 0.036 | G164: =Inputs!G$138 -> %
E165: =Inputs!E$139 -> Discount rate - Dummy control | F165: =Inputs!F$139 -> 0.036 | G165: =Inputs!G$139 -> %
E166: =Inputs!E$140 -> Discount rate - Residential retail | F166: =Inputs!F$140 -> 0.036 | G166: =Inputs!G$140 -> %
E167: =Inputs!E$141 -> Discount rate - Business retail | F167: =Inputs!F$141 -> 0.036 | G167: =Inputs!G$141 -> %
E169: =Inputs!E$143 -> Number of years to profile over | F169: =Inputs!F$143 -> 0 | G169: =Inputs!G$143 -> #
E171: =E$13 -> Years from valuation date | F171: 0 | G171: =G$13 -> years | H171: 0 | I171: 0 | J171: 0 | K171: 0 | L171: 0 | M171: 0 | N171: 0 | O171: 0 | P171: 0 | Q171: 0 | R171: 0 | S171: 1 | T171: 2 | U171: 3.002739726 | V171: 4.002739726
E172: =Time!E$49 -> Forecast period flag | F172: =Time!F$49 -> 0 | G172: =Time!G$49 -> flag | H172: =Time!H$49 -> 5 | I172: =Time!I$49 -> 0 | J172: =Time!J$49 -> 0 | K172: =Time!K$49 -> 0 | L172: =Time!L$49 -> 0 | M172: =Time!M$49 -> 0 | N172: =Time!N$49 -> 0 | O172: =Time!O$49 -> 0 | P172: =Time!P$49 -> 0 | Q172: =Time!Q$49 -> 0 | R172: =Time!R$49 -> 1 | S172: =Time!S$49 -> 1 | T172: =Time!T$49 -> 1 | U172: =Time!U$49 -> 1 | V172: =Time!V$49 -> 1
E174: Water resources revenue adjustment - NPV adjusted | G174: £m | H174: =SUM(J174:V174) -> 0 | J174: =IF(J$171 + 1 <= $F$169 + 0.005, $F153 / $F$169, 0) * J$172 * (1 + $F161) ^ J$171 -> 0 | K174: =IF(K$171 + 1 <= $F$169 + 0.005, $F153 / $F$169, 0) * K$172 * (1 + $F161) ^ K$171 -> 0 | L174: 0 | M174: 0 | N174: 0 | O174: 0 | P174: 0 | Q174: 0 | R174: 0 | S174: 0 | T174: 0 | U174: 0 | V174: 0
E175: Water network revenue adjustment - NPV adjusted | G175: £m | H175: 0 | J175: 0 | K175: =IF(K$171 + 1 <= $F$169 + 0.005, $F154 / $F$169, 0) * K$172 * (1 + $F162) ^ K$171 -> 0 | L175: 0 | M175: 0 | N175: 0 | O175: 0 | P175: 0 | Q175: 0 | R175: 0 | S175: 0 | T175: 0 | U175: 0 | V175: 0
E176: Bioresources revenue adjustment - NPV adjusted | G176: £m | H176: 0 | J176: 0 | K176: =IF(K$171 + 1 <= $F$169 + 0.005, $F155 / $F$169, 0) * K$172 * (1 + $F163) ^ K$171 -> 0 | L176: 0 | M176: 0 | N176: 0 | O176: 0 | P176: 0 | Q176: 0 | R176: 0 | S176: 0 | T176: 0 | U176: 0 | V176: 0
E177: Wastewater network revenue adjustment - NPV adjusted | G177: £m | H177: 0 | J177: 0 | K177: =IF(K$171 + 1 <= $F$169 + 0.005, $F156 / $F$169, 0) * K$172 * (1 + $F164) ^ K$171 -> 0 | L177: 0 | M177: 0 | N177: 0 | O177: 0 | P177: 0 | Q177: 0 | R177: 0 | S177: 0 | T177: 0 | U177: 0 | V177: 0
E178: Dummy control revenue adjustment - NPV adjusted | G178: £m | H178: =SUM(J178:V178) -> 0 | J178: 0 | K178: =IF(K$171 + 1 <= $F$169 + 0.005, $F157 / $F$169, 0) * K$172 * (1 + $F165) ^ K$171 -> 0 | L178: 0 | M178: 0 | N178: 0 | O178: 0 | P178: 0 | Q178: 0 | R178: 0 | S178: 0 | T178: 0 | U178: 0 | V178: 0
E179: Residential retail revenue adjustment - NPV adjusted | G179: £m | H179: 0 | J179: 0 | K179: =IF(K$171 + 1 <= $F$169 + 0.005, $F158 / $F$169, 0) * K$172 * (1 + $F166) ^ K$171 -> 0 | L179: 0 | M179: 0 | N179: 0 | O179: 0 | P179: 0 | Q179: 0 | R179: 0 | S179: 0 | T179: 0 | U179: 0 | V179: 0
E180: Business retail revenue adjustment - NPV adjusted | G180: £m | H180: 0 | J180: 0 | K180: =IF(K$171 + 1 <= $F$169 + 0.005, $F159 / $F$169, 0) * K$172 * (1 + $F167) ^ K$171 -> 0 | L180: 0 | M180: 0 | N180: 0 | O180: 0 | P180: 0 | Q180: 0 | R180: 0 | S180: 0 | T180: 0 | U180: 0 | V180: 0
E182: =E$174 -> Water resources revenue adjustment - NPV adjusted | F182: 0 | G182: =G$174 -> £m | H182: 0 | I182: 0 | J182: 0 | K182: 0 | L182: 0 | M182: 0 | N182: 0 | O182: 0 | P182: 0 | Q182: 0 | R182: 0 | S182: 0 | T182: 0 | U182: 0 | V182: 0
E183: =E$175 -> Water network revenue adjustment - NPV adjusted | F183: 0 | G183: =G$175 -> £m | H183: 0 | I183: 0 | J183: 0 | K183: 0 | L183: 0 | M183: 0 | N183: 0 | O183: 0 | P183: 0 | Q183: 0 | R183: 0 | S183: 0 | T183: 0 | U183: 0 | V183: 0
E184: =E$176 -> Bioresources revenue adjustment - NPV adjusted | F184: =F$176 -> 0 | G184: £m | H184: 0 | I184: 0 | J184: 0 | K184: 0 | L184: 0 | M184: 0 | N184: 0 | O184: 0 | P184: 0 | Q184: 0 | R184: 0 | S184: 0 | T184: 0 | U184: 0 | V184: 0
E185: =E$177 -> Wastewater network revenue adjustment - NPV adjusted | F185: =F$177 -> 0 | G185: =G$177 -> £m | H185: 0 | I185: 0 | J185: 0 | K185: 0 | L185: 0 | M185: 0 | N185: 0 | O185: 0 | P185: 0 | Q185: 0 | R185: 0 | S185: 0 | T185: 0 | U185: 0 | V185: 0
E186: =E$178 -> Dummy control revenue adjustment - NPV adjusted | F186: 0 | G186: £m | H186: 0 | I186: 0 | J186: 0 | K186: 0 | L186: 0 | M186: 0 | N186: 0 | O186: 0 | P186: 0 | Q186: 0 | R186: 0 | S186: 0 | T186: 0 | U186: 0 | V186: 0
E187: =E$179 -> Residential retail revenue adjustment - NPV adjusted | F187: 0 | G187: =G$179 -> £m | H187: 0 | I187: 0 | J187: 0 | K187: 0 | L187: 0 | M187: 0 | N187: 0 | O187: 0 | P187: 0 | Q187: 0 | R187: 0 | S187: 0 | T187: 0 | U187: 0 | V187: 0
E188: =E$180 -> Business retail revenue adjustment - NPV adjusted | F188: =F$180 -> 0 | G188: £m | H188: 0 | I188: 0 | J188: 0 | K188: 0 | L188: 0 | M188: 0 | N188: 0 | O188: 0 | P188: 0 | Q188: 0 | R188: 0 | S188: 0 | T188: 0 | U188: 0 | V188: 0
E190: =E$28 -> PV discount factor - Water resources | F190: 0 | G190: factor | H190: 4.66420502 | I190: 0 | J190: 0 | K190: 0 | L190: 0 | M190: 0 | N190: 0 | O190: 0 | P190: 0 | Q190: 0 | R190: 1 | S190: 0.9652509653 | T190: 0.9317094259 | U190: 0.8992462849 | V190: 0.8679983445
E191: =E$29 -> PV discount factor - Water network | F191: 0 | G191: factor | H191: 4.66420502 | I191: 0 | J191: 0 | K191: 0 | L191: 0 | M191: 0 | N191: 0 | O191: 0 | P191: 0 | Q191: 0 | R191: 1 | S191: 0.9652509653 | T191: 0.9317094259 | U191: 0.8992462849 | V191: 0.8679983445
E192: =E$30 -> PV discount factor - Bioresources | F192: =F$30 -> 0 | G192: factor | H192: 4.66420502 | I192: 0 | J192: 0 | K192: 0 | L192: 0 | M192: 0 | N192: 0 | O192: 0 | P192: 0 | Q192: 0 | R192: 1 | S192: 0.9652509653 | T192: 0.9317094259 | U192: 0.8992462849 | V192: 0.8679983445
E193: =E$31 -> PV discount factor - Wastewater network | F193: 0 | G193: factor | H193: 4.66420502 | I193: 0 | J193: 0 | K193: 0 | L193: 0 | M193: 0 | N193: 0 | O193: 0 | P193: 0 | Q193: 0 | R193: 1 | S193: 0.9652509653 | T193: 0.9317094259 | U193: 0.8992462849 | V193: 0.8679983445
E194: =E$32 -> PV discount factor - Dummy control | F194: 0 | G194: factor | H194: 4.66420502 | I194: 0 | J194: 0 | K194: 0 | L194: 0 | M194: 0 | N194: 0 | O194: 0 | P194: 0 | Q194: 0 | R194: 1 | S194: 0.9652509653 | T194: 0.9317094259 | U194: 0.8992462849 | V194: 0.8679983445
E195: =E$33 -> PV discount factor - Residential retail | F195: 0 | G195: factor | H195: 4.66420502 | I195: 0 | J195: 0 | K195: 0 | L195: 0 | M195: 0 | N195: 0 | O195: 0 | P195: 0 | Q195: 0 | R195: 1 | S195: 0.9652509653 | T195: 0.9317094259 | U195: 0.8992462849 | V195: 0.8679983445
E196: =E$34 -> PV discount factor - Business retail | F196: =F$34 -> 0 | G196: factor | H196: 4.66420502 | I196: 0 | J196: 0 | K196: 0 | L196: 0 | M196: 0 | N196: 0 | O196: 0 | P196: 0 | Q196: 0 | R196: 1 | S196: 0.9652509653 | T196: 0.9317094259 | U196: 0.8992462849 | V196: 0.8679983445
E198: Water resources revenue adjustment - Even allocation - NPV neutral | G198: £m | H198: =SUM(J198:V198) -> 0 | J198: =J182 * J190 -> 0 | K198: 0 | L198: 0 | M198: 0 | N198: 0 | O198: 0 | P198: 0 | Q198: 0 | R198: 0 | S198: 0 | T198: 0 | U198: 0 | V198: 0
E199: Water network revenue adjustment - Even allocation - NPV neutral | G199: £m | H199: 0 | J199: =J183 * J191 -> 0 | K199: 0 | L199: 0 | M199: 0 | N199: 0 | O199: 0 | P199: 0 | Q199: 0 | R199: 0 | S199: 0 | T199: 0 | U199: 0 | V199: 0
E200: Bioresources revenue adjustment - Even allocation - NPV neutral | G200: £m | H200: 0 | J200: =J184 * J192 -> 0 | K200: 0 | L200: 0 | M200: 0 | N200: 0 | O200: 0 | P200: 0 | Q200: 0 | R200: 0 | S200: 0 | T200: 0 | U200: 0 | V200: 0
E201: Wastewater network revenue adjustment - Even allocation - NPV neutral | G201: £m | H201: 0 | J201: =J185 * J193 -> 0 | K201: 0 | L201: 0 | M201: 0 | N201: 0 | O201: 0 | P201: 0 | Q201: 0 | R201: 0 | S201: 0 | T201: 0 | U201: 0 | V201: 0
E202: Dummy control revenue adjustment - Even allocation - NPV neutral | G202: £m | H202: =SUM(J202:V202) -> 0 | J202: 0 | K202: 0 | L202: 0 | M202: 0 | N202: 0 | O202: 0 | P202: 0 | Q202: 0 | R202: 0 | S202: 0 | T202: 0 | U202: 0 | V202: 0
E203: Residential retail revenue adjustment - Even allocation - NPV neutral | G203: £m | H203: 0 | J203: =J187 * J195 -> 0 | K203: 0 | L203: 0 | M203: 0 | N203: 0 | O203: 0 | P203: 0 | Q203: 0 | R203: 0 | S203: 0 | T203: 0 | U203: 0 | V203: 0
E204: Business retail revenue adjustment - Even allocation - NPV neutral | G204: £m | H204: 0 | J204: =J188 * J196 -> 0 | K204: 0 | L204: 0 | M204: 0 | N204: 0 | O204: 0 | P204: 0 | Q204: 0 | R204: 0 | S204: 0 | T204: 0 | U204: 0 | V204: 0
A207: PROFILES SELECTION
E209: =Inputs!E$147 -> Water resources revenue adjustment selector | F209: 1 | G209: =Inputs!G$147 -> 0 = Apply in first year, 1 = Constant annuity 2020-25, 2 = Even allocation - NPV neutral
E210: =Inputs!E$148 -> Water network plus revenue adjustment selector | F210: 1 | G210: =Inputs!G$148 -> 0 = Apply in first year, 1 = Constant annuity 2020-25, 2 = Even allocation - NPV neutral
E211: =Inputs!E$149 -> Bioesources revenue adjustment selector | F211: 1 | G211: =Inputs!G$149 -> 0 = Apply in first year, 1 = Constant annuity 2020-25, 2 = Even allocation - NPV neutral
E212: =Inputs!E$150 -> Wastewater network plus revenue adjustment selector | F212: 1 | G212: =Inputs!G$150 -> 0 = Apply in first year, 1 = Constant annuity 2020-25, 2 = Even allocation - NPV neutral
E213: =Inputs!E$151 -> Dummy control revenue adjustment selector | F213: 1 | G213: =Inputs!G$151 -> 0 = Apply in first year, 1 = Constant annuity 2020-25, 2 = Even allocation - NPV neutral
E214: =Inputs!E$152 -> Residential retail revenue adjustment selector | F214: 1 | G214: =Inputs!G$152 -> 0 = Apply in first year, 1 = Constant annuity 2020-25, 2 = Even allocation - NPV neutral
E215: =Inputs!E$153 -> Business retail revenue adjustment selector | F215: 1 | G215: =Inputs!G$153 -> 0 = Apply in first year, 1 = Constant annuity 2020-25, 2 = Even allocation - NPV neutral
E217: =E$93 -> Water resources revenue adjustment applied in first year | F217: 0 | G217: =G$93 -> £m | H217: 0.4047115341 | I217: 0 | J217: 0 | K217: 0 | L217: 0 | M217: 0 | N217: 0 | O217: 0 | P217: 0 | Q217: 0 | R217: 0.4047115341 | S217: 0 | T217: 0 | U217: 0 | V217: 0
E218: =E$94 -> Water network revenue adjustment applied in first year | F218: 0 | G218: =G$94 -> £m | H218: 41.08799944 | I218: 0 | J218: 0 | K218: 0 | L218: 0 | M218: 0 | N218: 0 | O218: 0 | P218: 0 | Q218: 0 | R218: 41.08799944 | S218: 0 | T218: 0 | U218: 0 | V218: 0
E219: =E$95 -> Bioresources revenue adjustment applied in first year | F219: =F$95 -> 0 | G219: £m | H219: 0 | I219: 0 | J219: 0 | K219: 0 | L219: 0 | M219: 0 | N219: 0 | O219: 0 | P219: 0 | Q219: 0 | R219: 0 | S219: 0 | T219: 0 | U219: 0 | V219: 0
E220: =E$96 -> Wastewater network revenue adjustment applied in first year | F220: 0 | G220: =G$96 -> £m | H220: 32.45680625 | I220: 0 | J220: 0 | K220: 0 | L220: 0 | M220: 0 | N220: 0 | O220: 0 | P220: 0 | Q220: 0 | R220: 32.45680625 | S220: 0 | T220: 0 | U220: 0 | V220: 0
E221: =E$97 -> Dummy control revenue adjustment applied in first year | F221: 0 | G221: £m | H221: 0 | I221: 0 | J221: 0 | K221: 0 | L221: 0 | M221: 0 | N221: 0 | O221: 0 | P221: 0 | Q221: 0 | R221: 0 | S221: 0 | T221: 0 | U221: 0 | V221: 0
E222: =E$98 -> Residential retail revenue adjustment applied in first year | F222: 0 | G222: =G$98 -> £m | H222: -3.127147459 | I222: 0 | J222: 0 | K222: 0 | L222: 0 | M222: 0 | N222: 0 | O222: 0 | P222: 0 | Q222: 0 | R222: -3.127147459 | S222: 0 | T222: 0 | U222: 0 | V222: 0
E223: =E$99 -> Business retail revenue adjustment applied in first year | F223: =F$99 -> 0 | G223: £m | H223: 0 | I223: 0 | J223: 0 | K223: 0 | L223: 0 | M223: 0 | N223: 0 | O223: 0 | P223: 0 | Q223: 0 | R223: 0 | S223: 0 | T223: 0 | U223: 0 | V223: 0
E225: =E$128 -> Water resources revenue adjustment - EAC factor adjusted | F225: =F$128 -> 0 | G225: £m | H225: 0.433848354 | I225: 0 | J225: 0 | K225: 0 | L225: 0 | M225: 0 | N225: 0 | O225: 0 | P225: 0 | Q225: 0 | R225: 0.08676967079 | S225: 0.08676967079 | T225: 0.08676967079 | U225: 0.08676967079 | V225: 0.08676967079
E226: =E$129 -> Water network revenue adjustment - EAC factor adjusted | F226: =F$129 -> 0 | G226: £m | H226: 44.04609066 | I226: 0 | J226: 0 | K226: 0 | L226: 0 | M226: 0 | N226: 0 | O226: 0 | P226: 0 | Q226: 0 | R226: 8.809218131 | S226: 8.809218131 | T226: 8.809218131 | U226: 8.809218131 | V226: 8.809218131
E227: =E$130 -> Bioresources revenue adjustment - EAC factor adjusted | F227: =F$130 -> 0 | G227: £m | H227: 0 | I227: 0 | J227: 0 | K227: 0 | L227: 0 | M227: 0 | N227: 0 | O227: 0 | P227: 0 | Q227: 0 | R227: 0 | S227: 0 | T227: 0 | U227: 0 | V227: 0
E228: =E$131 -> Wastewater network revenue adjustment - EAC factor adjusted | F228: =F$131 -> 0 | G228: £m | H228: 34.79350298 | I228: 0 | J228: 0 | K228: 0 | L228: 0 | M228: 0 | N228: 0 | O228: 0 | P228: 0 | Q228: 0 | R228: 6.958700595 | S228: 6.958700595 | T228: 6.958700595 | U228: 6.958700595 | V228: 6.958700595
E229: =E$132 -> Dummy control revenue adjustment - EAC factor adjusted | F229: 0 | G229: £m | H229: 0 | I229: 0 | J229: 0 | K229: 0 | L229: 0 | M229: 0 | N229: 0 | O229: 0 | P229: 0 | Q229: 0 | R229: 0 | S229: 0 | T229: 0 | U229: 0 | V229: 0
E230: =E$133 -> Residential retail revenue adjustment - EAC factor adjusted | F230: =F$133 -> 0 | G230: £m | H230: -3.35228345 | I230: 0 | J230: 0 | K230: 0 | L230: 0 | M230: 0 | N230: 0 | O230: 0 | P230: 0 | Q230: 0 | R230: -0.6704566899 | S230: -0.6704566899 | T230: -0.6704566899 | U230: -0.6704566899 | V230: -0.6704566899
E231: =E$134 -> Business retail revenue adjustment - EAC factor adjusted | F231: =F$134 -> 0 | G231: £m | H231: 0 | I231: 0 | J231: 0 | K231: 0 | L231: 0 | M231: 0 | N231: 0 | O231: 0 | P231: 0 | Q231: 0 | R231: 0 | S231: 0 | T231: 0 | U231: 0 | V231: 0
E233: =E$182 -> Water resources revenue adjustment - NPV adjusted | F233: =F$182 -> 0 | G233: £m | H233: 0 | I233: 0 | J233: 0 | K233: 0 | L233: 0 | M233: 0 | N233: 0 | O233: 0 | P233: 0 | Q233: 0 | R233: 0 | S233: 0 | T233: 0 | U233: 0 | V233: 0
E234: =E$183 -> Water network revenue adjustment - NPV adjusted | F234: =F$183 -> 0 | G234: £m | H234: 0 | I234: 0 | J234: 0 | K234: 0 | L234: 0 | M234: 0 | N234: 0 | O234: 0 | P234: 0 | Q234: 0 | R234: 0 | S234: 0 | T234: 0 | U234: 0 | V234: 0
E235: =E$184 -> Bioresources revenue adjustment - NPV adjusted | F235: =F$184 -> 0 | G235: £m | H235: 0 | I235: 0 | J235: 0 | K235: 0 | L235: 0 | M235: 0 | N235: 0 | O235: 0 | P235: 0 | Q235: 0 | R235: 0 | S235: 0 | T235: 0 | U235: 0 | V235: 0
E236: =E$185 -> Wastewater network revenue adjustment - NPV adjusted | F236: =F$185 -> 0 | G236: £m | H236: 0 | I236: 0 | J236: 0 | K236: 0 | L236: 0 | M236: 0 | N236: 0 | O236: 0 | P236: 0 | Q236: 0 | R236: 0 | S236: 0 | T236: 0 | U236: 0 | V236: 0
E237: =E$186 -> Dummy control revenue adjustment - NPV adjusted | F237: 0 | G237: £m | H237: 0 | I237: 0 | J237: 0 | K237: 0 | L237: 0 | M237: 0 | N237: 0 | O237: 0 | P237: 0 | Q237: 0 | R237: 0 | S237: 0 | T237: 0 | U237: 0 | V237: 0
E238: =E$187 -> Residential retail revenue adjustment - NPV adjusted | F238: =F$187 -> 0 | G238: £m | H238: 0 | I238: 0 | J238: 0 | K238: 0 | L238: 0 | M238: 0 | N238: 0 | O238: 0 | P238: 0 | Q238: 0 | R238: 0 | S238: 0 | T238: 0 | U238: 0 | V238: 0
E239: =E$188 -> Business retail revenue adjustment - NPV adjusted | F239: =F$188 -> 0 | G239: £m | H239: 0 | I239: 0 | J239: 0 | K239: 0 | L239: 0 | M239: 0 | N239: 0 | O239: 0 | P239: 0 | Q239: 0 | R239: 0 | S239: 0 | T239: 0 | U239: 0 | V239: 0
... 7 more rows

Sheet Summary_Output
A1: =RIGHT(CELL("filename", $A$1), LEN(CELL("filename", $A$1)) - SEARCH("]", CELL("filename", $A$1))) -> Summary_Output
E2: =Time!E$25 -> Model period ending | J2: =Time!J$25 -> 2013-03-31 | K2: =Time!K$25 -> 2014-03-31 | L2: =Time!L$25 -> 2015-03-31 | M2: =Time!M$25 -> 2016-03-31 | N2: =Time!N$25 -> 2017-03-31 | O2: =Time!O$25 -> 2018-03-31 | P2: =Time!P$25 -> 2019-03-31 | Q2: =Time!Q$25 -> 2020-03-31 | R2: =Time!R$25 -> 2021-03-31 | S2: =Time!S$25 -> 2022-03-31 | T2: =Time!T$25 -> 2023-03-31 | U2: =Time!U$25 -> 2024-03-31 | V2: =Time!V$25 -> 2025-03-31
E3: =Time!E$80 -> Timeline label | J3: =Time!J$80 -> Pre-Fcst | K3: =Time!K$80 -> Pre-Fcst | L3: =Time!L$80 -> Pre-Fcst | M3: =Time!M$80 -> Pre-Fcst | N3: =Time!N$80 -> Pre-Fcst | O3: =Time!O$80 -> Pre-Fcst | P3: =Time!P$80 -> Pre-Fcst | Q3: =Time!Q$80 -> Pre-Fcst | R3: =Time!R$80 -> Forecast | S3: =Time!S$80 -> Forecast | T3: =Time!T$80 -> Forecast | U3: =Time!U$80 -> Forecast | V3: =Time!V$80 -> Forecast
E4: =Time!E$103 -> Financial year ending | J4: =Time!J$103 -> 2013 | K4: =Time!K$103 -> 2014 | L4: =Time!L$103 -> 2015 | M4: =Time!M$103 -> 2016 | N4: =Time!N$103 -> 2017 | O4: =Time!O$103 -> 2018 | P4: =Time!P$103 -> 2019 | Q4: =Time!Q$103 -> 2020 | R4: =Time!R$103 -> 2021 | S4: =Time!S$103 -> 2022 | T4: =Time!T$103 -> 2023 | U4: =Time!U$103 -> 2024 | V4: =Time!V$103 -> 2025
E5: =Time!E$10 -> Model column counter | F5: Constant | G5: Unit | J5: =Time!J$10 -> 1 | K5: =Time!K$10 -> 2 | L5: =Time!L$10 -> 3 | M5: =Time!M$10 -> 4 | N5: =Time!N$10 -> 5 | O5: =Time!O$10 -> 6 | P5: =Time!P$10 -> 7 | Q5: =Time!Q$10 -> 8 | R5: =Time!R$10 -> 9 | S5: =Time!S$10 -> 10 | T5: =Time!T$10 -> 11 | U5: =Time!U$10 -> 12 | V5: =Time!V$10 -> 13
A7: PR14 REVENUE RECONCILIATION ADJUSTMENTS EXPRESSED IN 2017/18 FYA CPIH DEFLATED PRICE BASE BY TABLE
B9: Table App25
E10: =Calc!E$151 -> Further 2010-15 reconciliation total adjustment revenue carry forward to PR19 ~ Water network plus at 2017-18 FYA CPIH deflated price base | F10: =Calc!F$151 -> 1.473002488 | G10: =Calc!G$151 -> £m
E11: =Calc!E$160 -> Further 2010-15 reconciliation total adjustment revenue carry forward to PR19 ~ Wastewater network plus at 2017-18 FYA CPIH deflated price base | F11: =Calc!F$160 -> 3.032318075 | G11: =Calc!G$160 -> £m
B13: Table App27
E14: =Calc!E$147 -> ODI in-period revenue adjustment ~ Water resources at 2017-18 FYA CPIH deflated price base | F14: =Calc!F$147 -> 0 | G14: =Calc!G$147 -> £m
E15: =Calc!E$152 -> ODI in-period revenue adjustment ~ Water network plus at 2017-18 FYA CPIH deflated price base | F15: =Calc!F$152 -> 0 | G15: =Calc!G$152 -> £m
E16: =Calc!E$158 -> ODI in-period revenue adjustment ~ Bioresources at 2017-18 FYA CPIH deflated price base | F16: =Calc!F$158 -> 0 | G16: =Calc!G$158 -> £m
E17: =Calc!E$161 -> ODI in-period revenue adjustment ~ Wastewater network plus at 2017-18 FYA CPIH deflated price base | F17: =Calc!F$161 -> 0 | G17: =Calc!G$161 -> £m
E18: =Calc!E$166 -> ODI in-period revenue adjustment ~ Residential retail at 2017-18 FYA CPIH deflated price base | F18: =Calc!F$166 -> 0 | G18: =Calc!G$166 -> £m
E19: =Calc!E$170 -> ODI in-period revenue adjustment ~ Business retail at 2017-18 FYA CPIH deflated price base | F19: =Calc!F$170 -> 0 | G19: =Calc!G$170 -> £m
E21: =Calc!E$148 -> ODI end of period revenue adjustment ~ Water resources at 2017-18 FYA CPIH deflated price base | F21: =Calc!F$148 -> 0.4047115341 | G21: =Calc!G$148 -> £m
E22: =Calc!E$153 -> ODI end of period revenue adjustment ~ Water network plus at 2017-18 FYA CPIH deflated price base | F22: =Calc!F$153 -> 44.05555076 | G22: =Calc!G$153 -> £m
E23: =Calc!E$159 -> ODI end of period revenue adjustment ~ Bioresources at 2017-18 FYA CPIH deflated price base | F23: =Calc!F$159 -> 0 | G23: =Calc!G$159 -> £m
E24: =Calc!E$162 -> ODI end of period revenue adjustment ~ Wastewater network plus at 2017-18 FYA CPIH deflated price base | F24: =Calc!F$162 -> 49.89226477 | G24: =Calc!G$162 -> £m
E25: =Calc!E$167 -> ODI end of period revenue adjustment ~ Residential retail at 2017-18 FYA CPIH deflated price base | F25: =Calc!F$167 -> 0 | G25: =Calc!G$167 -> £m
E26: =Calc!E$171 -> ODI end of period revenue adjustment ~ Business retail at 2017-18 FYA CPIH deflated price base | F26: =Calc!F$171 -> 0 | G26: =Calc!G$171 -> £m
B28: Table WS13
E29: =Calc!E$157 -> WRFIM total reward / (penalty) at the end of AMP6 ~ Water network plus at 2017-18 FYA CPIH deflated price base | F29: =Calc!F$157 -> -8.262615332 | G29: =Calc!G$157 -> £m
B31: Table WS15
E32: =Calc!E$154 -> Water: Totex menu revenue adjustment at 2017-18 FYA CPIH deflated price base | F32: =Calc!F$154 -> 3.822061516 | G32: =Calc!G$154 -> £m
B34: Table WS17
E35: =Calc!E$149 -> Water trading total value of export incentive ~ Water resources at 2017-18 FYA CPIH deflated price base | F35: =Calc!F$149 -> 0 | G35: =Calc!G$149 -> £m
E36: =Calc!E$155 -> Water trading total value of export incentive ~ Water network plus at 2017-18 FYA CPIH deflated price base | F36: =Calc!F$155 -> 0 | G36: =Calc!G$155 -> £m
E37: =Calc!E$150 -> Water trading total value of import incentive ~ Water resources at 2017-18 FYA CPIH deflated price base | F37: =Calc!F$150 -> 0 | G37: =Calc!G$150 -> £m
E38: =Calc!E$156 -> Water trading total value of import incentive ~ Water network plus at 2017-18 FYA CPIH deflated price base | F38: =Calc!F$156 -> 0 | G38: =Calc!G$156 -> £m
B40: Table WWS13
E41: =Calc!E$164 -> WRFIM total reward / (penalty) at the end of AMP6 ~ Wastewater network plus at 2017-18 FYA CPIH deflated price base | F41: =Calc!F$164 -> -14.05729341 | G41: =Calc!G$164 -> £m
B43: Table WWS15
E44: =Calc!E$163 -> Wastewater: Totex menu revenue adjustment at 2017-18 FYA CPIH deflated price base | F44: =Calc!F$163 -> -6.410483182 | G44: =Calc!G$163 -> £m
B46: Table Dmmy10
E47: =Calc!E$165 -> Dummy: revenue adjustment from totex menu model at 2017-18 FYA CPIH deflated price base | F47: =Calc!F$165 -> 0 | G47: =Calc!G$165 -> £m
B49: Table R9
E50: =Calc!E$168 -> Residential retail revenue adjustment at 2017-18 FYA CPIH deflated price base | F50: =Calc!F$168 -> -3.127147459 | G50: =Calc!G$168 -> £m
B52: Table R10
E53: =Calc!E$169 -> SIM forecast revenue adjustment at 2017-18 FYA CPIH deflated price base | F53: =Calc!F$169 -> 0 | G53: =Calc!G$169 -> £m
A56: SUBTOTALS AS PER PRICE CONTROL FOR REVENUE ADJUSTMENTS
E58: =Calc!E$181 -> Water resources revenue adjustment | F58: =Calc!F$181 -> 0.4047115341 | G58: =Calc!G$181 -> £m
E59: =Calc!E$191 -> Water network plus revenue adjustment | F59: =Calc!F$191 -> 41.08799944 | G59: =Calc!G$191 -> £m
E60: =Calc!E196 -> Bioresources revenue adjustment | F60: =Calc!F196 -> 0 | G60: =Calc!G196 -> £m
E61: =Calc!E$204 -> Wastewater network plus revenue adjustment | F61: =Calc!F$204 -> 32.45680625 | G61: =Calc!G$204 -> £m
E62: =Calc!E$208 -> Dummy control revenue adjustment | F62: =Calc!F$208 -> 0 | G62: =Calc!G$208 -> £m
E63: =Calc!E$215 -> Residential retail revenue adjustment | F63: =Calc!F$215 -> -3.127147459 | G63: =Calc!G$215 -> £m
E64: =Calc!E$220 -> Business retail revenue adjustment | F64: =Calc!F$220 -> 0 | G64: =Calc!G$220 -> £m
A67: PROFILES SELECTED
E69: =Profiling!E$241 -> Water resources revenue adjustment active | F69: =Profiling!F$241 -> 0 | G69: =Profiling!G$241 -> £m | H69: =Profiling!H$241 -> 0.433848354 | I69: =Profiling!I$241 -> 0 | J69: =Profiling!J$241 -> 0 | K69: =Profiling!K$241 -> 0 | L69: =Profiling!L$241 -> 0 | M69: =Profiling!M$241 -> 0 | N69: =Profiling!N$241 -> 0 | O69: =Profiling!O$241 -> 0 | P69: =Profiling!P$241 -> 0 | Q69: =Profiling!Q$241 -> 0 | R69: =Profiling!R$241 -> 0.08676967079 | S69: =Profiling!S$241 -> 0.08676967079 | T69: =Profiling!T$241 -> 0.08676967079 | U69: =Profiling!U$241 -> 0.08676967079 | V69: =Profiling!V$241 -> 0.08676967079
E70: =Profiling!E$242 -> Water network revenue adjustment active | F70: =Profiling!F$242 -> 0 | G70: =Profiling!G$242 -> £m | H70: =Profiling!H$242 -> 44.04609066 | I70: =Profiling!I$242 -> 0 | J70: =Profiling!J$242 -> 0 | K70: =Profiling!K$242 -> 0 | L70: =Profiling!L$242 -> 0 | M70: =Profiling!M$242 -> 0 | N70: =Profiling!N$242 -> 0 | O70: =Profiling!O$242 -> 0 | P70: =Profiling!P$242 -> 0 | Q70: =Profiling!Q$242 -> 0 | R70: =Profiling!R$242 -> 8.809218131 | S70: =Profiling!S$242 -> 8.809218131 | T70: =Profiling!T$242 -> 8.809218131 | U70: =Profiling!U$242 -> 8.809218131 | V70: =Profiling!V$242 -> 8.809218131
E71: =Profiling!E$243 -> Bioresources revenue adjustment active | F71: =Profiling!F$243 -> 0 | G71: =Profiling!G$243 -> £m | H71: =Profiling!H$243 -> 0 | I71: =Profiling!I$243 -> 0 | J71: =Profiling!J$243 -> 0 | K71: =Profiling!K$243 -> 0 | L71: =Profiling!L$243 -> 0 | M71: =Profiling!M$243 -> 0 | N71: =Profiling!N$243 -> 0 | O71: =Profiling!O$243 -> 0 | P71: =Profiling!P$243 -> 0 | Q71: =Profiling!Q$243 -> 0 | R71: =Profiling!R$243 -> 0 | S71: =Profiling!S$243 -> 0 | T71: =Profiling!T$243 -> 0 | U71: =Profiling!U$243 -> 0 | V71: =Profiling!V$243 -> 0
E72: =Profiling!E$244 -> Wastewater network revenue adjustment active | F72: =Profiling!F$244 -> 0 | G72: =Profiling!G$244 -> £m | H72: =Profiling!H$244 -> 34.79350298 | I72: =Profiling!I$244 -> 0 | J72: =Profiling!J$244 -> 0 | K72: =Profiling!K$244 -> 0 | L72: =Profiling!L$244 -> 0 | M72: =Profiling!M$244 -> 0 | N72: =Profiling!N$244 -> 0 | O72: =Profiling!O$244 -> 0 | P72: =Profiling!P$244 -> 0 | Q72: =Profiling!Q$244 -> 0 | R72: =Profiling!R$244 -> 6.958700595 | S72: =Profiling!S$244 -> 6.958700595 | T72: =Profiling!T$244 -> 6.958700595 | U72: =Profiling!U$244 -> 6.958700595 | V72: =Profiling!V$244 -> 6.958700595
E73: =Profiling!E$245 -> Dummy control revenue adjustment active | F73: =Profiling!F$245 -> 0 | G73: =Profiling!G$245 -> £m | H73: =Profiling!H$245 -> 0 | I73: =Profiling!I$245 -> 0 | J73: =Profiling!J$245 -> 0 | K73: =Profiling!K$245 -> 0 | L73: =Profiling!L$245 -> 0 | M73: =Profiling!M$245 -> 0 | N73: =Profiling!N$245 -> 0 | O73: =Profiling!O$245 -> 0 | P73: =Profiling!P$245 -> 0 | Q73: =Profiling!Q$245 -> 0 | R73: =Profiling!R$245 -> 0 | S73: =Profiling!S$245 -> 0 | T73: =Profiling!T$245 -> 0 | U73: =Profiling!U$245 -> 0 | V73: =Profiling!V$245 -> 0
E74: =Profiling!E$246 -> Residential retail revenue adjustment active | F74: =Profiling!F$246 -> 0 | G74: =Profiling!G$246 -> £m | H74: =Profiling!H$246 -> -3.35228345 | I74: =Profiling!I$246 -> 0 | J74: =Profiling!J$246 -> 0 | K74: =Profiling!K$246 -> 0 | L74: =Profiling!L$246 -> 0 | M74: =Profiling!M$246 -> 0 | N74: =Profiling!N$246 -> 0 | O74: =Profiling!O$246 -> 0 | P74: =Profiling!P$246 -> 0 | Q74: =Profiling!Q$246 -> 0 | R74: =Profiling!R$246 -> -0.6704566899 | S74: =Profiling!S$246 -> -0.6704566899 | T74: =Profiling!T$246 -> -0.6704566899 | U74: =Profiling!U$246 -> -0.6704566899 | V74: =Profiling!V$246 -> -0.6704566899
E75: =Profiling!E$247 -> Business retail revenue adjustment active | F75: =Profiling!F$247 -> 0 | G75: =Profiling!G$247 -> £m | H75: =Profiling!H$247 -> 0 | I75: =Profiling!I$247 -> 0 | J75: =Profiling!J$247 -> 0 | K75: =Profiling!K$247 -> 0 | L75: =Profiling!L$247 -> 0 | M75: =Profiling!M$247 -> 0 | N75: =Profiling!N$247 -> 0 | O75: =Profiling!O$247 -> 0 | P75: =Profiling!P$247 -> 0 | Q75: =Profiling!Q$247 -> 0 | R75: =Profiling!R$247 -> 0 | S75: =Profiling!S$247 -> 0 | T75: =Profiling!T$247 -> 0 | U75: =Profiling!U$247 -> 0 | V75: =Profiling!V$247 -> 0

Sheet PR19 input tables>>

Sheet R9
B1: R9 - PR14 reconciliation of household retail revenue | M1: Yorkshire Water | O1: Data validation
B3: Line description | D3: Item reference | E3: Units | F3: DPs | G3: Price base | H3: 2015-16 | I3: 2016-17 | J3: 2017-18 | K3: 2018-19 | L3: 2019-20 | M3: 2015-20 | O3: Calculation, copy or download rule | P3: Validation description | R3: Completion
U4: Completion checks
B5: A | C5: Forecast customer numbers | U5: Please complete all cells in row
B6: 1 | C6: Unmetered water-only customer | D6: R9001 | E6: nr | F6: 0 | H6: 55257 | I6: 53050 | J6: 50622 | K6: 48304 | L6: 46207 | O6: FD14 data pre-populated cell. NB units coverted from 000's to nr. | P6: R9001 = R3017 * 1000
B7: 2 | C7: Unmetered wastewater-only customer | D7: R9002 | E7: nr | F7: 0 | H7: 65846 | I7: 63216 | J7: 60322 | K7: 57561 | L7: 55062 | O7: FD14 data pre-populated cell. NB units coverted from 000's to nr. | P7: R9002 = R3019 * 1000
B8: 3 | C8: Unmetered water and wastewater customer | D8: R9003 | E8: nr | F8: 0 | H8: 946121 | I8: 908328 | J8: 866756 | K8: 827074 | L8: 791171 | O8: FD14 data pre-populated cell. NB units coverted from 000's to nr. | P8: R9003 = R3021 * 1000
B9: 4 | C9: Metered water-only customer | D9: R9004 | E9: nr | F9: 0 | H9: 47725 | I9: 50343 | J9: 53360 | K9: 56402 | L9: 59347 | O9: FD14 data pre-populated cell. NB units coverted from 000's to nr. | P9: R9004 = R3018 * 1000
B10: 5 | C10: Metered wastewater-only customer | D10: R9005 | E10: nr | F10: 0 | H10: 48799 | I10: 51476 | J10: 54564 | K10: 57671 | L10: 60682 | O10: FD14 data pre-populated cell. NB units coverted from 000's to nr. | P10: R9005 = R3020 * 1000
B11: 6 | C11: Metered water and wastewater customer | D11: R9006 | E11: nr | F11: 0 | H11: 966215 | I11: 1019213 | J11: 1080302 | K11: 1141889 | L11: 1201503 | O11: FD14 data pre-populated cell. NB units coverted from 000's to nr. | P11: R9006 = R3022 * 1000
B13: B | C13: Reforecast customer numbers
B14: 7 | C14: Unmetered water-only customer | D14: R9007 | E14: nr | F14: 0 | H14: 56492 | I14: 55614 | J14: 56355 | K14: 55386 | L14: 56875 | R14: =IF( SUM( U14:Y14 ) = 0, 0, $U$5 ) -> 0 | U14: =IF( ISNUMBER(H14), 0, 1 ) -> 0 | V14: =IF( ISNUMBER(I14), 0, 1 ) -> 0 | W14: =IF( ISNUMBER(J14), 0, 1 ) -> 0 | X14: =IF( ISNUMBER(K14), 0, 1 ) -> 0 | Y14: =IF( ISNUMBER(L14), 0, 1 ) -> 0
B15: 8 | C15: Unmetered wastewater-only customer | D15: R9008 | E15: nr | F15: 0 | H15: 67218 | I15: 66308 | J15: 57264 | K15: 52928 | L15: 61196 | R15: 0 | U15: 0 | V15: 0 | W15: 0 | X15: 0 | Y15: 0
B16: 9 | C16: Unmetered water and wastewater customer | D16: R9009 | E16: nr | F16: 0 | H16: 961924 | I16: 940984 | J16: 913965 | K16: 888933 | L16: 831178 | R16: 0 | U16: 0 | V16: 0 | W16: 0 | X16: 0 | Y16: 0
B17: 10 | C17: Metered water-only customer | D17: R9010 | E17: nr | F17: 0 | H17: 47501 | I17: 50988 | J17: 49951 | K17: 53537 | L17: 50619 | R17: 0 | U17: =IF( ISNUMBER(H17), 0, 1 ) -> 0 | V17: =IF( ISNUMBER(I17), 0, 1 ) -> 0 | W17: =IF( ISNUMBER(J17), 0, 1 ) -> 0 | X17: =IF( ISNUMBER(K17), 0, 1 ) -> 0 | Y17: =IF( ISNUMBER(L17), 0, 1 ) -> 0
B18: 11 | C18: Metered wastewater-only customer | D18: R9011 | E18: nr | F18: 0 | H18: 47428 | I18: 48218 | J18: 63537 | K18: 66522 | L18: 49462 | R18: 0 | U18: 0 | V18: 0 | W18: 0 | X18: 0 | Y18: 0
B19: 12 | C19: Metered water and wastewater customer | D19: R9012 | E19: nr | F19: 0 | H19: 951039 | I19: 986003 | J19: 1020083 | K19: 1065780 | L19: 1145430 | R19: 0 | U19: 0 | V19: 0 | W19: 0 | X19: 0 | Y19: 0
B21: C | C21: Actual customer numbers
B22: 13 | C22: Unmetered water-only customer | D22: R9013 | E22: nr | F22: 0 | H22: 59318 | I22: 58396.1863 | J22: 56875 | K22: 56875 | L22: 56875 | O22: APR data pre-populated. NB units coverted from 000's to nr. | P22: R9013 = R3017 * 1000 | R22: =IF( SUM( U22:Y22 ) = 0, 0, $U$5 ) -> 0 | W22: =IF( ISNUMBER(J22), 0, 1 ) -> 0 | X22: =IF( ISNUMBER(K22), 0, 1 ) -> 0 | Y22: =IF( ISNUMBER(L22), 0, 1 ) -> 0
B23: 14 | C23: Unmetered wastewater-only customer | D23: R9014 | E23: nr | F23: 0 | H23: 68514 | I23: 64362.20548 | J23: 61195 | K23: 61196 | L23: 61196 | O23: APR data pre-populated. NB units coverted from 000's to nr. | P23: R9014 = R3019 * 1000 | R23: 0 | W23: 0 | X23: 0 | Y23: 0
B24: 15 | C24: Unmetered water and wastewater customer | D24: R9015 | E24: nr | F24: 0 | H24: 960752 | I24: 936486.8151 | J24: 911177 | K24: 871178 | L24: 831178 | O24: APR data pre-populated. NB units coverted from 000's to nr. | P24: R9015 = R3021 * 1000 | R24: 0 | W24: 0 | X24: 0 | Y24: 0
B25: 16 | C25: Metered water-only customer | D25: R9016 | E25: nr | F25: 0 | H25: 45643 | I25: 49068.13425 | J25: 50618 | K25: 50619 | L25: 50619 | O25: APR data pre-populated. NB units coverted from 000's to nr. | P25: R9016 = R3018 * 1000 | R25: 0 | W25: =IF( ISNUMBER(J25), 0, 1 ) -> 0 | X25: =IF( ISNUMBER(K25), 0, 1 ) -> 0 | Y25: =IF( ISNUMBER(L25), 0, 1 ) -> 0
B26: 17 | C26: Metered wastewater-only customer | D26: R9017 | E26: nr | F26: 0 | H26: 47182 | I26: 49554.83014 | J26: 49462 | K26: 49462 | L26: 49462 | O26: APR data pre-populated. NB units coverted from 000's to nr. | P26: R9017 = R3020 * 1000 | R26: 0 | W26: 0 | X26: 0 | Y26: 0
B27: 18 | C27: Metered water and wastewater customer | D27: R9018 | E27: nr | F27: 0 | H27: 952066 | I27: 995195.9932 | J27: 1035429 | K27: 1090430 | L27: 1145430 | O27: APR data pre-populated. NB units coverted from 000's to nr. | P27: R9018 = R3022 * 1000 | R27: 0 | W27: 0 | X27: 0 | Y27: 0
B29: D | C29: Actual revenue collected
B30: 19 | C30: Unmetered water-only customer | D30: R3017RR | E30: £m | F30: 3 | G30: Outturn (nominal) | H30: 0.723 | I30: 0.743 | J30: 0.753 | K30: 0.766 | L30: 0.783 | O30: APR data pre-populated | R30: =IF( SUM( U30:Y30 ) = 0, 0, $U$5 ) -> 0 | W30: =IF( ISNUMBER(J30), 0, 1 ) -> 0 | X30: =IF( ISNUMBER(K30), 0, 1 ) -> 0 | Y30: =IF( ISNUMBER(L30), 0, 1 ) -> 0
B31: 20 | C31: Unmetered wastewater-only customer | D31: R3019RR | E31: £m | F31: 3 | G31: Outturn (nominal) | H31: 0.948 | I31: 0.945 | J31: 0.93 | K31: 0.953 | L31: 0.972 | O31: APR data pre-populated | R31: 0 | W31: 0 | X31: 0 | Y31: 0
B32: 21 | C32: Unmetered water and wastewater customer | D32: R3021RR | E32: £m | F32: 3 | G32: Outturn (nominal) | H32: 25.619 | I32: 25.785 | J32: 25.7 | K32: 24.428 | L32: 23.77 | O32: APR data pre-populated | R32: 0 | W32: 0 | X32: 0 | Y32: 0
B33: 22 | C33: Metered water-only customer | D33: R3018RR | E33: £m | F33: 3 | G33: Outturn (nominal) | H33: 0.592 | I33: 0.654 | J33: 0.738 | K33: 0.731 | L33: 0.742 | O33: APR data pre-populated | R33: 0 | W33: =IF( ISNUMBER(J33), 0, 1 ) -> 0 | X33: =IF( ISNUMBER(K33), 0, 1 ) -> 0 | Y33: =IF( ISNUMBER(L33), 0, 1 ) -> 0
B34: 23 | C34: Metered wastewater-only customer | D34: R3020RR | E34: £m | F34: 3 | G34: Outturn (nominal) | H34: 1.488 | I34: 0.82 | J34: 0.766 | K34: 0.977 | L34: 0.993 | O34: APR data pre-populated | R34: 0 | W34: 0 | X34: 0 | Y34: 0
B35: 24 | C35: Metered water and wastewater customer | D35: R3022RR | E35: £m | F35: 3 | G35: Outturn (nominal) | H35: 31.005 | I35: 31.765 | J35: 34.626 | K35: 36.276 | L35: 38.768 | O35: APR data pre-populated | R35: 0 | W35: 0 | X35: 0 | Y35: 0
B37: E | C37: Revenue sacrifice
B38: 25 | C38: Unmetered water-only customer | D38: R9025 | E38: £m | F38: 3 | G38: Outturn (nominal) | H38: 0.009 | I38: 0.009 | J38: 0.009 | K38: 0.009 | L38: 0.009 | R38: =IF( SUM( U38:Y38 ) = 0, 0, $U$5 ) -> 0 | U38: =IF( ISNUMBER(H38), 0, 1 ) -> 0 | V38: =IF( ISNUMBER(I38), 0, 1 ) -> 0 | W38: =IF( ISNUMBER(J38), 0, 1 ) -> 0 | X38: =IF( ISNUMBER(K38), 0, 1 ) -> 0 | Y38: =IF( ISNUMBER(L38), 0, 1 ) -> 0
B39: 26 | C39: Unmetered wastewater-only customer | D39: R9026 | E39: £m | F39: 3 | G39: Outturn (nominal) | H39: 0.011 | I39: 0.011 | J39: 0.009 | K39: 0.008 | L39: 0.008 | R39: 0 | U39: 0 | V39: 0 | W39: 0 | X39: 0 | Y39: 0
B40: 27 | C40: Unmetered water and wastewater customer | D40: R9027 | E40: £m | F40: 3 | G40: Outturn (nominal) | H40: 0.205 | I40: 0.198 | J40: 0.195 | K40: 0.183 | L40: 0.183 | R40: 0 | U40: 0 | V40: 0 | W40: 0 | X40: 0 | Y40: 0
B41: 28 | C41: Metered water-only customer | D41: R9028 | E41: £m | F41: 3 | G41: Outturn (nominal) | H41: 0.01 | I41: 0.011 | J41: 0.01 | K41: 0.011 | L41: 0.011 | R41: 0 | U41: =IF( ISNUMBER(H41), 0, 1 ) -> 0 | V41: =IF( ISNUMBER(I41), 0, 1 ) -> 0 | W41: =IF( ISNUMBER(J41), 0, 1 ) -> 0 | X41: =IF( ISNUMBER(K41), 0, 1 ) -> 0 | Y41: =IF( ISNUMBER(L41), 0, 1 ) -> 0
B42: 29 | C42: Metered wastewater-only customer | D42: R9029 | E42: £m | F42: 3 | G42: Outturn (nominal) | H42: 0.01 | I42: 0.01 | J42: 0.013 | K42: 0.013 | L42: 0.013 | R42: 0 | U42: 0 | V42: 0 | W42: 0 | X42: 0 | Y42: 0
B43: 30 | C43: Metered water and wastewater customer | D43: R9030 | E43: £m | F43: 3 | G43: Outturn (nominal) | H43: 0.255 | I43: 0.261 | J43: 0.272 | K43: 0.276 | L43: 0.276 | R43: 0 | U43: 0 | V43: 0 | W43: 0 | X43: 0 | Y43: 0
B45: F | C45: Actual revenue collected (net)
B46: 31 | C46: Unmetered water-only customer | D46: R9031 | E46: £m | F46: 3 | G46: Outturn (nominal) | H46: =H30+H38 -> 0.732 | I46: 0.752 | J46: 0.762 | K46: 0.775 | L46: 0.792
B47: 32 | C47: Unmetered wastewater-only customer | D47: R9032 | E47: £m | F47: 3 | G47: Outturn (nominal) | H47: 0.959 | I47: 0.956 | J47: 0.939 | K47: 0.961 | L47: 0.98
B48: 33 | C48: Unmetered water and wastewater customer | D48: R9033 | E48: £m | F48: 3 | G48: Outturn (nominal) | H48: 25.824 | I48: 25.983 | J48: 25.895 | K48: 24.611 | L48: 23.953
B49: 34 | C49: Metered water-only customer | D49: R9034 | E49: £m | F49: 3 | G49: Outturn (nominal) | H49: 0.602 | I49: 0.665 | J49: 0.748 | K49: 0.742 | L49: 0.753
B50: 35 | C50: Metered wastewater-only customer | D50: R9035 | E50: £m | F50: 3 | G50: Outturn (nominal) | H50: 1.498 | I50: 0.83 | J50: 0.779 | K50: 0.99 | L50: 1.006
B51: 36 | C51: Metered water and wastewater customer | D51: R9036 | E51: £m | F51: 3 | G51: Outturn (nominal) | H51: 31.26 | I51: 32.026 | J51: 34.898 | K51: 36.552 | L51: 39.044
B53: G | C53: Modification factor
B54: 37 | C54: Unmetered water-only customer | D54: C00739_A001 | E54: £ | F54: 2 | H54: 19.37767016 | I54: 19.7392709 | J54: 20.10928817 | K54: 20.47956114 | L54: 20.8358694 | O54: FD 14 data pre-populated cell
B55: 38 | C55: Unmetered wastewater-only customer | D55: C00740_A001 | E55: £ | F55: 2 | H55: 19.37767016 | I55: 19.7392709 | J55: 20.10928817 | K55: 20.47956114 | L55: 20.8358694 | O55: FD 14 data pre-populated cell
B56: 39 | C56: Unmetered water and wastewater customer | D56: C00741_A001 | E56: £ | F56: 2 | H56: 25.19097121 | I56: 25.66105217 | J56: 26.14207462 | K56: 26.62342949 | L56: 27.08663021 | O56: FD 14 data pre-populated cell
B57: 40 | C57: Metered water-only customer | D57: C00736_A001 | E57: £ | F57: 2 | H57: 24.89811957 | I57: 25.25359659 | J57: 25.64068735 | K57: 26.04417934 | L57: 26.47820196 | O57: FD 14 data pre-populated cell
B58: 41 | C58: Metered wastewater-only customer | D58: C00737_A001 | E58: £ | F58: 2 | H58: 25.36346453 | I58: 25.43046876 | J58: 25.29705916 | K58: 25.16217316 | L58: 25.52276638 | O58: FD 14 data pre-populated cell
B59: 42 | C59: Metered water and wastewater customer | D59: C00738_A001 | E59: £ | F59: 2 | H59: 31.75890135 | I59: 32.25994505 | J59: 32.78429896 | K59: 33.34986234 | L59: 33.91614798 | O59: FD 14 data pre-populated cell
B61: H | C61: Materiality threshold for financing adjustment
B62: 43 | C62: Materiality threshold | D62: R9043 | E62: % | F62: 2 | M62: 0.02 | O62: PR14 reconciliation rulebook specifies value. Generic
B63: 44 | C63: Discount Rate | D63: R9044 | E63: % | F63: 2 | M63: 0.0374 | R63: =IF( Z63 = 0, 0, $U$5 ) -> 0 | Z63: =IF( ISNUMBER(M63), 0, 1 ) -> 0
B65: I | C65: Total reward / (penalty) at the end of AMP6
B66: 45 | C66: Residential retail revenue adjustment at the end of AMP6 | D66: R9045 | E66: £m | F66: 3 | G66: Outturn (nominal) | L66: -3.304345862 | O66: Output item from household retail revenue reconciliation model Calc sheet row 94 | R66: =IF( Y66 = 0, 0, $U$5 ) -> 0 | Y66: =IF( ISNUMBER(L66), 0, 1 ) -> 0
B67: 46 | C67: Residential retail revenue adjustment at 2017-18 FYA CPIH deflated price base | D67: R9046 | E67: £m | F67: 3 | G67: 2017-18 FYA (CPIH deflated) | L67: =+Summary_Output!F50 -> -3.127147459 | O67: Output item from revenue adjustments model. | R67: =IF( Y67 = 0, 0, $U$5 ) -> 0 | Y67: =IF( ISNUMBER(L67), 0, 1 ) -> 0
B69: KEY
C70: Input
C71: Copy
C72: Calculation
C73: Pre populated
B75: R9 guidance and line definitions
B77: This table contains the inputs used for populating the household retail revenue reconciliation model and the penalties arising as calculated by the household retail revenue reconciliation model. The household retail revenue reconciliation model calculates in outturn (nominal) prices and is converted to 2017-18 prices in the revenue adjustments model. We expect companies to publish their populated household retail revenue reconciliation models with associated explanation with the regulatory accounts reporting in July 2018.
B79: Line | C79: Definition
B80: Block A | C80: =$C$5 -> Forecast customer numbers
B81: 1-6 | C81: Forecast customer numbers as set out in the PR14 final determination company specific appendix.
B82: Block B | C82: =$C$13 -> Reforecast customer numbers
B83: 7-12 | C83: Reforecast customer numbers for each customer type at the beginning of each year from company regulatory reporting.
B84: Block C | C84: =$C$21 -> Actual customer numbers
B85: 13-18 | C85: Actual customer numbers for each customer type each year from company regulatory reporting. Number of customers – RAG Proforma 2F.
B86: Block D | C86: =$C$29 -> Actual revenue collected
B87: 19-24 | C87: The revenue that each company actually collected per customer type from company regulatory reporting. Retail revenue per customer type – RAG Proforma 2F.
B88: Block E | C88: =$C$37 -> Revenue sacrifice
B89: 25-30 | C89: Revenue sacrifice. Revenue voluntarily foregone by companies, for example through customer discounts from company regulatory reporting.
B90: Block F | C90: =$C$45 -> Actual revenue collected (net)
B91: 31-36 | C91: Actual revenue collected (Net). The revenue that each company actually collected per customer type less any forgone revenue. Calculated.
B92: Block G | C92: =$C$53 -> Modification factor
B93: 37-42 | C93: Modification Factors. Each company has a specific modification factor for each customer type each year from PR14 final determination company specific appendix.
B94: Block H | C94: =$C$61 -> Materiality threshold for financing adjustment
B95: 43 | C95: Materiality threshold is specified at 2% of revenue expected from actual customers from AMP6.
B96: 44 | C96: The discount rate used to provide a financing adjustment for the time value of money of the incentive reward / penalty. Input to be defined at PR19, if required. This may be required if the materiality threshold is exceeded.
B97: Block I | C97: =$C$65 -> Total reward / (penalty) at the end of AMP6
B98: 45 | C98: The total revenue adjustment for household retail due to differences in actual and forecast customer numbers and differences in revenue per customer type. Output item from household retail revenue reconciliation model as appears on the Calc sheet.
B99: 46 | C99: Output item from revenue adjustments model. The value entered is prior to profiling.

Sheet App23
B1: App23 - Inflation measures | Y1: Yorkshire Water | AA1: Data validation
B3: Line description | D3: Item reference | E3: Units | F3: DPs | G3: 2011-12 | H3: 2012-13 | I3: 2013-14 | J3: 2014-15 | K3: 2015-16 | L3: 2016-17 | M3: 2017-18 | N3: 2018-19 | O3: 2019-20 | P3: 2020-21 | Q3: 2021-22 | R3: 2022-23 | S3: 2023-24 | T3: 2024-25 | U3: 2025-26 | V3: 2026-27 | W3: 2027-28 | X3: 2028-29 | Y3: 2029-30 | AA3: Calculation, copy or download rule | AB3: Validation description | AD3: Completion | AE3: Validation
AH4: Completion checks | AW4: Validation flags
B5: A | C5: Retail price index | AH5: Please complete all cells in row | AW5: Values required for all months in all years
B6: 1 | C6: RPI: Months of actual data for Financial Year | D6: PB00000 | E6: nr | F6: 0 | G6: 12 | H6: 12 | I6: 12 | J6: 12 | K6: 12 | L6: 12 | M6: =COUNT(M7:M18) -> 12 | N6: 12 | O6: 12 | P6: 12 | Q6: 12 | R6: 12 | S6: 12 | T6: 12 | U6: 12 | V6: 12 | W6: 12 | X6: 12 | Y6: 12 | AA6: Counts the number of entries in lines 2 to 13. | AB6: Must equal 12. | AE6: =IF( SUM( AX6:BJ6 ) = 0, 0,$AW$5 ) -> 0 | AX6: =IF( M6 = 12, 0, 1 ) -> 0 | AY6: =IF( N6 = 12, 0, 1 ) -> 0 | AZ6: 0 | BA6: 0 | BB6: 0 | BC6: 0 | BD6: 0 | BE6: 0 | BF6: 0 | BG6: 0 | BH6: 0 | BI6: 0 | BJ6: =IF( Y6 = 12, 0, 1 ) -> 0
B7: 2 | C7: Retail Price Index for April | D7: BB3805AL | E7: nr | F7: 1 | G7: 234.4 | H7: 242.5 | I7: 249.5 | J7: 255.7 | K7: 258 | L7: 261.4 | M7: 270.6 | N7: 279.8 | O7: 288.4 | P7: 297.052 | Q7: 305.96356 | R7: 315.1424668 | S7: 324.5967408 | T7: 334.334643 | U7: 344.3646823 | V7: 354.6956228 | W7: 365.3364915 | X7: 376.2965862 | Y7: 387.5854838 | AD7: =IF( SUM( AH7:AS7 ) = 0, 0,$AH$5 ) -> 0 | AH7: =IF( ISNUMBER(N7), 0, 1 ) -> 0 | AI7: 0 | AJ7: 0 | AK7: 0 | AL7: 0 | AM7: 0 | AN7: 0 | AO7: 0 | AP7: 0 | AQ7: 0 | AR7: 0 | AS7: 0
B8: 3 | C8: Retail Price Index for May | D8: BB3805MY | E8: nr | F8: 1 | G8: 235.2 | H8: 242.4 | I8: 250 | J8: 255.9 | K8: 258.5 | L8: 262.1 | M8: 271.7 | N8: 280.8 | O8: 289.3 | P8: 297.979 | Q8: 306.91837 | R8: 316.1259211 | S8: 325.6096987 | T8: 335.3779897 | U8: 345.4393294 | V8: 355.8025093 | W8: 366.4765845 | X8: 377.4708821 | Y8: 388.7950085 | AD8: =IF( SUM( AH8:AS8 ) = 0, 0,$AH$5 ) -> 0 | AH8: 0 | AI8: 0 | AJ8: 0 | AK8: 0 | AL8: 0 | AM8: 0 | AN8: 0 | AO8: 0 | AP8: 0 | AQ8: 0 | AR8: 0 | AS8: 0
B9: 4 | C9: Retail Price Index for June | D9: BB3805JN | E9: nr | F9: 1 | G9: 235.2 | H9: 241.8 | I9: 249.7 | J9: 256.3 | K9: 258.9 | L9: 263.1 | M9: 272.3 | N9: 281.8 | O9: 290.2 | P9: 298.906 | Q9: 307.87318 | R9: 317.1093754 | S9: 326.6226567 | T9: 336.4213364 | U9: 346.5139765 | V9: 356.9093957 | W9: 367.6166776 | X9: 378.6451779 | Y9: 390.0045333 | AD9: 0 | AH9: 0 | AI9: 0 | AJ9: 0 | AK9: 0 | AL9: 0 | AM9: 0 | AN9: 0 | AO9: 0 | AP9: 0 | AQ9: 0 | AR9: 0 | AS9: 0
B10: 5 | C10: Retail Price Index for July | D10: BB3805JL | E10: nr | F10: 1 | G10: 234.7 | H10: 242.1 | I10: 249.7 | J10: 256 | K10: 258.6 | L10: 263.4 | M10: 272.9 | N10: 282.2 | O10: 290.7 | P10: 299.421 | Q10: 308.40363 | R10: 317.6557389 | S10: 327.1854111 | T10: 337.0009734 | U10: 347.1110026 | V10: 357.5243327 | W10: 368.2500627 | X10: 379.2975645 | Y10: 390.6764915 | AD10: 0 | AH10: 0 | AI10: 0 | AJ10: 0 | AK10: 0 | AL10: 0 | AM10: 0 | AN10: 0 | AO10: 0 | AP10: 0 | AQ10: 0 | AR10: 0 | AS10: 0
B11: 6 | C11: Retail Price Index for August | D11: BB3805AT | E11: nr | F11: 1 | G11: 236.1 | H11: 243 | I11: 251 | J11: 257 | K11: 259.8 | L11: 264.4 | M11: 274.7 | N11: 283.8 | O11: 292.2 | P11: 300.966 | Q11: 309.99498 | R11: 319.2948294 | S11: 328.8736743 | T11: 338.7398845 | U11: 348.902081 | V11: 359.3691435 | W11: 370.1502178 | X11: 381.2547243 | Y11: 392.692366 | AD11: 0 | AH11: 0 | AI11: 0 | AJ11: 0 | AK11: 0 | AL11: 0 | AM11: 0 | AN11: 0 | AO11: 0 | AP11: 0 | AQ11: 0 | AR11: 0 | AS11: 0
B12: 7 | C12: Retail Price Index for September | D12: BB3805SR | E12: nr | F12: 1 | G12: 237.9 | H12: 244.2 | I12: 251.9 | J12: 257.6 | K12: 259.6 | L12: 264.9 | M12: 275.1 | N12: 284 | O12: 292.5 | P12: 301.275 | Q12: 310.31325 | R12: 319.6226475 | S12: 329.2113269 | T12: 339.0876667 | U12: 349.2602967 | V12: 359.7381056 | W12: 370.5302488 | X12: 381.6461563 | Y12: 393.095541 | AD12: 0 | AH12: 0 | AI12: 0 | AJ12: 0 | AK12: 0 | AL12: 0 | AM12: 0 | AN12: 0 | AO12: 0 | AP12: 0 | AQ12: 0 | AR12: 0 | AS12: 0
B13: 8 | C13: Retail Price Index for October | D13: BB3805OR | E13: nr | F13: 1 | G13: 238 | H13: 245.6 | I13: 251.9 | J13: 257.7 | K13: 259.5 | L13: 264.8 | M13: 275.3 | N13: 284.1 | O13: 292.7 | P13: 301.481 | Q13: 310.52543 | R13: 319.8411929 | S13: 329.4364287 | T13: 339.3195215 | U13: 349.4991072 | V13: 359.9840804 | W13: 370.7836028 | X13: 381.9071109 | Y13: 393.3643242 | AD13: 0 | AH13: 0 | AI13: 0 | AJ13: 0 | AK13: 0 | AL13: 0 | AM13: 0 | AN13: 0 | AO13: 0 | AP13: 0 | AQ13: 0 | AR13: 0 | AS13: 0
B14: 9 | C14: Retail Price Index for November | D14: BB3805NR | E14: nr | F14: 1 | G14: 238.5 | H14: 245.6 | I14: 252.1 | J14: 257.1 | K14: 259.8 | L14: 265.5 | M14: 275.8 | N14: 284.4 | O14: 293 | P14: 301.79 | Q14: 310.8437 | R14: 320.169011 | S14: 329.7740813 | T14: 339.6673038 | U14: 349.8573229 | V14: 360.3530426 | W14: 371.1636338 | X14: 382.2985429 | Y14: 393.7674991 | AD14: 0 | AH14: 0 | AI14: 0 | AJ14: 0 | AK14: 0 | AL14: 0 | AM14: 0 | AN14: 0 | AO14: 0 | AP14: 0 | AQ14: 0 | AR14: 0 | AS14: 0
B15: 10 | C15: Retail Price Index for December | D15: BB3805DR | E15: nr | F15: 1 | G15: 239.4 | H15: 246.8 | I15: 253.4 | J15: 257.5 | K15: 260.6 | L15: 267.1 | M15: 278.1 | N15: 286.5 | O15: 295.1 | P15: 303.953 | Q15: 313.07159 | R15: 322.4637377 | S15: 332.1376498 | T15: 342.1017793 | U15: 352.3648327 | V15: 362.9357777 | W15: 373.823851 | X15: 385.0385665 | Y15: 396.5897235 | AD15: 0 | AH15: 0 | AI15: 0 | AJ15: 0 | AK15: 0 | AL15: 0 | AM15: 0 | AN15: 0 | AO15: 0 | AP15: 0 | AQ15: 0 | AR15: 0 | AS15: 0
B16: 11 | C16: Retail Price Index for January | D16: BB3805JY | E16: nr | F16: 1 | G16: 238 | H16: 245.8 | I16: 252.6 | J16: 255.4 | K16: 258.8 | L16: 265.5 | M16: 276 | N16: 284.4 | O16: 293.2164 | P16: 302.012892 | Q16: 311.0732788 | R16: 320.4054771 | S16: 330.0176414 | T16: 339.9181707 | U16: 350.1157158 | V16: 360.6191873 | W16: 371.4377629 | X16: 382.5808958 | Y16: 394.0583227 | AD16: 0 | AH16: 0 | AI16: 0 | AJ16: 0 | AK16: 0 | AL16: 0 | AM16: 0 | AN16: 0 | AO16: 0 | AP16: 0 | AQ16: 0 | AR16: 0 | AS16: 0
B17: 12 | C17: Retail Price Index for February | D17: BB3805FY | E17: nr | F17: 1 | G17: 239.9 | H17: 247.6 | I17: 254.2 | J17: 256.7 | K17: 260 | L17: 268.4 | M17: 278.1 | N17: 286.5 | O17: 295.3815 | P17: 304.242945 | Q17: 313.3702333 | R17: 322.7713404 | S17: 332.4544806 | T17: 342.428115 | U17: 352.7009584 | V17: 363.2819872 | W17: 374.1804468 | X17: 385.4058602 | Y17: 396.968036 | AD17: 0 | AH17: 0 | AI17: 0 | AJ17: 0 | AK17: 0 | AL17: 0 | AM17: 0 | AN17: 0 | AO17: 0 | AP17: 0 | AQ17: 0 | AR17: 0 | AS17: 0
B18: 13 | C18: Retail Price Index for March | D18: BB3805MH | E18: nr | F18: 1 | G18: 240.8 | H18: 248.7 | I18: 254.8 | J18: 257.1 | K18: 261.1 | L18: 269.3 | M18: 278.3 | N18: 287.1 | O18: 296.0001 | P18: 304.880103 | Q18: 314.0265061 | R18: 323.4473013 | S18: 333.1507203 | T18: 343.1452419 | U18: 353.4395992 | V18: 364.0427872 | W18: 374.9640708 | X18: 386.2129929 | Y18: 397.7993827 | AD18: 0 | AH18: 0 | AI18: 0 | AJ18: 0 | AK18: 0 | AL18: 0 | AM18: 0 | AN18: 0 | AO18: 0 | AP18: 0 | AQ18: 0 | AR18: 0 | AS18: 0
B20: B | C20: Consumer price index (including housing costs)
B21: 14 | C21: CPIH: Months of actual data for Financial Year | D21: PB00003 | E21: nr | F21: 0 | G21: 12 | H21: 12 | I21: 12 | J21: 12 | K21: 12 | L21: 12 | M21: =COUNT(M22:M33) -> 12 | N21: 12 | O21: 12 | P21: 12 | Q21: 12 | R21: 12 | S21: 12 | T21: 12 | U21: 12 | V21: 12 | W21: 12 | X21: 12 | Y21: =COUNT(Y22:Y33) -> 12 | AA21: Counts the number of entries in lines 15 to 26. | AB21: Must equal 12. | AE21: =IF( SUM( AX21:BJ21 ) = 0, 0,$AW$5 ) -> 0 | AX21: =IF( M21 = 12, 0, 1 ) -> 0 | AY21: 0 | AZ21: 0 | BA21: 0 | BB21: 0 | BC21: 0 | BD21: 0 | BE21: 0 | BF21: 0 | BG21: 0 | BH21: 0 | BI21: 0 | BJ21: 0
B22: 15 | C22: Consumer Price Index (with housing) for April | D22: BB3905AL | E22: nr | F22: 1 | G22: 93.3 | H22: 95.9 | I22: 98 | J22: 99.6 | K22: 99.9 | L22: 100.6 | M22: 103.2 | N22: 105.85224 | O22: 108.3185972 | P22: 110.4849691 | Q22: 112.6946685 | R22: 114.9485619 | S22: 117.2475331 | T22: 119.5924838 | U22: 121.9843335 | V22: 124.4240201 | W22: 126.9125005 | X22: 129.4507505 | Y22: 132.0397656 | AD22: =IF( SUM( AH22:AS22 ) = 0, 0,$AH$5 ) -> 0 | AH22: =IF( ISNUMBER(N22), 0, 1 ) -> 0 | AI22: =IF( ISNUMBER(O22), 0, 1 ) -> 0 | AJ22: =IF( ISNUMBER(P22), 0, 1 ) -> 0 | AK22: 0 | AL22: 0 | AM22: 0 | AN22: 0 | AO22: 0 | AP22: 0 | AQ22: 0 | AR22: 0 | AS22: 0
B23: 16 | C23: Consumer Price Index (with housing) for May | D23: BB3905MY | E23: nr | F23: 1 | G23: 93.5 | H23: 95.9 | I23: 98.2 | J23: 99.6 | K23: 100.1 | L23: 100.8 | M23: 103.5 | N23: 106.11855 | O23: 108.5274411 | P23: 110.6979899 | Q23: 112.9119497 | R23: 115.1701887 | S23: 117.4735925 | T23: 119.8230643 | U23: 122.2195256 | V23: 124.6639161 | W23: 127.1571944 | X23: 129.7003383 | Y23: 132.2943451 | AD23: 0 | AH23: =IF( ISNUMBER(N23), 0, 1 ) -> 0 | AI23: 0 | AJ23: 0 | AK23: 0 | AL23: 0 | AM23: 0 | AN23: 0 | AO23: 0 | AP23: 0 | AQ23: 0 | AR23: 0 | AS23: 0
B24: 17 | C24: Consumer Price Index (with housing) for June | D24: BB3905JN | E24: nr | F24: 1 | G24: 93.5 | H24: 95.6 | I24: 98 | J24: 99.8 | K24: 100.1 | L24: 101 | M24: 103.5 | N24: 106.191 | O24: 108.6015357 | P24: 110.7735664 | Q24: 112.9890377 | R24: 115.2488185 | S24: 117.5537949 | T24: 119.9048708 | U24: 122.3029682 | V24: 124.7490275 | W24: 127.2440081 | X24: 129.7888883 | Y24: 132.384666 | AD24: 0 | AH24: 0 | AI24: 0 | AJ24: 0 | AK24: 0 | AL24: 0 | AM24: 0 | AN24: 0 | AO24: 0 | AP24: 0 | AQ24: 0 | AR24: 0 | AS24: 0
B25: 18 | C25: Consumer Price Index (with housing) for July | D25: BB3905JL | E25: nr | F25: 1 | G25: 93.5 | H25: 95.7 | I25: 98 | J25: 99.6 | K25: 100 | L25: 100.9 | M25: 103.5 | N25: 106.11855 | O25: 108.5062174 | P25: 110.6763417 | Q25: 112.8898686 | R25: 115.1476659 | S25: 117.4506192 | T25: 119.7996316 | U25: 122.1956243 | V25: 124.6395367 | W25: 127.1323275 | X25: 129.674974 | Y25: 132.2684735 | AD25: 0 | AH25: 0 | AI25: 0 | AJ25: 0 | AK25: 0 | AL25: 0 | AM25: 0 | AN25: 0 | AO25: 0 | AP25: 0 | AQ25: 0 | AR25: 0 | AS25: 0
B26: 19 | C26: Consumer Price Index (with housing) for August | D26: BB3905AT | E26: nr | F26: 1 | G26: 93.9 | H26: 96.1 | I26: 98.4 | J26: 99.9 | K26: 100.3 | L26: 101.2 | M26: 104 | N26: 106.6 | O26: 108.9985 | P26: 111.17847 | Q26: 113.4020394 | R26: 115.6700802 | S26: 117.9834818 | T26: 120.3431514 | U26: 122.7500145 | V26: 125.2050147 | W26: 127.709115 | X26: 130.2632973 | Y26: 132.8685633 | AD26: 0 | AH26: 0 | AI26: 0 | AJ26: 0 | AK26: 0 | AL26: 0 | AM26: 0 | AN26: 0 | AO26: 0 | AP26: 0 | AQ26: 0 | AR26: 0 | AS26: 0
B27: 20 | C27: Consumer Price Index (with housing) for September | D27: BB3905SR | E27: nr | F27: 1 | G27: 94.5 | H27: 96.4 | I27: 98.7 | J27: 100 | K27: 100.2 | L27: 101.5 | M27: 104.3 | N27: 106.83449 | O27: 109.238266 | P27: 111.4230313 | Q27: 113.651492 | R27: 115.9245218 | S27: 118.2430122 | T27: 120.6078725 | U27: 123.0200299 | V27: 125.4804305 | W27: 127.9900392 | X27: 130.5498399 | Y27: 133.1608367 | AD27: 0 | AH27: 0 | AI27: 0 | AJ27: 0 | AK27: 0 | AL27: 0 | AM27: 0 | AN27: 0 | AO27: 0 | AP27: 0 | AQ27: 0 | AR27: 0 | AS27: 0
B28: 21 | C28: Consumer Price Index (with housing) for October | D28: BB3905OR | E28: nr | F28: 1 | G28: 94.5 | H28: 96.8 | I28: 98.8 | J28: 100.1 | K28: 100.3 | L28: 101.6 | M28: 104.4 | N28: 106.97868 | O28: 109.332211 | P28: 111.5188552 | Q28: 113.7492323 | R28: 116.0242169 | S28: 118.3447013 | T28: 120.7115953 | U28: 123.1258272 | V28: 125.5883437 | W28: 128.1001106 | X28: 130.6621128 | Y28: 133.2753551 | AD28: 0 | AH28: 0 | AI28: 0 | AJ28: 0 | AK28: 0 | AL28: 0 | AM28: 0 | AN28: 0 | AO28: 0 | AP28: 0 | AQ28: 0 | AR28: 0 | AS28: 0
B29: 22 | C29: Consumer Price Index (with housing) for November | D29: BB3905NR | E29: nr | F29: 1 | G29: 94.7 | H29: 97 | I29: 98.8 | J29: 99.9 | K29: 100.3 | L29: 101.8 | M29: 104.7 | N29: 107.13951 | O29: 109.4965792 | P29: 111.6865108 | Q29: 113.920241 | R29: 116.1986458 | S29: 118.5226188 | T29: 120.8930711 | U29: 123.3109326 | V29: 125.7771512 | W29: 128.2926942 | X29: 130.8585481 | Y29: 133.4757191 | AD29: 0 | AH29: 0 | AI29: 0 | AJ29: 0 | AK29: 0 | AL29: 0 | AM29: 0 | AN29: 0 | AO29: 0 | AP29: 0 | AQ29: 0 | AR29: 0 | AS29: 0
B30: 23 | C30: Consumer Price Index (with housing) for December | D30: BB3905DR | E30: nr | F30: 1 | G30: 95 | H30: 97.3 | I30: 99.2 | J30: 99.9 | K30: 100.4 | L30: 102.2 | M30: 105 | N30: 107.4885 | O30: 109.7995028 | P30: 111.9954928 | Q30: 114.2354027 | R30: 116.5201107 | S30: 118.8505129 | T30: 121.2275232 | U30: 123.6520737 | V30: 126.1251151 | W30: 128.6476174 | X30: 131.2205698 | Y30: 133.8449812 | AD30: 0 | AH30: 0 | AI30: 0 | AJ30: 0 | AK30: 0 | AL30: 0 | AM30: 0 | AN30: 0 | AO30: 0 | AP30: 0 | AQ30: 0 | AR30: 0 | AS30: 0
B31: 24 | C31: Consumer Price Index (with housing) for January | D31: BB3905JY | E31: nr | F31: 1 | G31: 94.7 | H31: 97 | I31: 98.7 | J31: 99.2 | K31: 99.9 | L31: 101.8 | M31: 104.5 | N31: 107.0576656 | O31: 109.3058766 | P31: 111.4919941 | Q31: 113.721834 | R31: 115.9962707 | S31: 118.3161961 | T31: 120.68252 | U31: 123.0961704 | V31: 125.5580938 | W31: 128.0692557 | X31: 130.6306408 | Y31: 133.2432536 | AD31: 0 | AH31: 0 | AI31: 0 | AJ31: 0 | AK31: 0 | AL31: 0 | AM31: 0 | AN31: 0 | AO31: 0 | AP31: 0 | AQ31: 0 | AR31: 0 | AS31: 0
B32: 25 | C32: Consumer Price Index (with housing) for February | D32: BB3905FY | E32: nr | F32: 1 | G32: 95.2 | H32: 97.5 | I32: 99.1 | J32: 99.5 | K32: 100.1 | L32: 102.4 | M32: 104.9 | N32: 107.5524403 | O32: 109.8110416 | P32: 112.0072624 | Q32: 114.2474076 | R32: 116.5323558 | S32: 118.8630029 | T32: 121.240263 | U32: 123.6650682 | V32: 126.1383696 | W32: 128.661137 | X32: 131.2343597 | Y32: 133.8590469 | AD32: 0 | AH32: 0 | AI32: 0 | AJ32: 0 | AK32: 0 | AL32: 0 | AM32: 0 | AN32: 0 | AO32: 0 | AP32: 0 | AQ32: 0 | AR32: 0 | AS32: 0
B33: 26 | C33: Consumer Price Index (with housing) for March | D33: BB3905MH | E33: nr | F33: 1 | G33: 95.4 | H33: 97.8 | I33: 99.3 | J33: 99.6 | K33: 100.4 | L33: 102.7 | M33: 105.1 | N33: 107.8570589 | O33: 110.1220572 | P33: 112.3244983 | Q33: 114.5709883 | R33: 116.862408 | S33: 119.1996562 | T33: 121.5836493 | U33: 124.0153223 | V33: 126.4956288 | W33: 129.0255413 | X33: 131.6060522 | Y33: 134.2381732 | AD33: 0 | AH33: 0 | AI33: 0 | AJ33: 0 | AK33: 0 | AL33: 0 | AM33: 0 | AN33: 0 | AO33: 0 | AP33: 0 | AQ33: 0 | AR33: 0 | AS33: 0
B35: C | C35: Indexation rate for index linked debt percentage increase
B36: 27 | C36: Indexation rate for index linked debt percentage increase | D36: A9001 | E36: % | F36: 2 | N36: =+N14/M14-1 -> 0.03118201595 | O36: =+O14/N14-1 -> 0.03023909986 | P36: 0.03 | Q36: 0.03 | R36: 0.03 | S36: 0.03 | T36: 0.03 | U36: 0.03 | V36: 0.03 | W36: 0.03 | X36: 0.03 | Y36: 0.03 | AD36: =IF( SUM( AH36:AS36 ) = 0, 0,$AH$5 ) -> 0 | AH36: =IF( ISNUMBER(N36), 0, 1 ) -> 0 | AI36: 0 | AJ36: 0 | AK36: 0 | AL36: 0 | AM36: 0 | AN36: 0 | AO36: 0 | AP36: 0 | AQ36: 0 | AR36: 0 | AS36: 0
B38: D | C38: Financial year average indices | AW38: =SUM(AX6:BJ6,AX21:BJ21) -> 0
B39: 28 | C39: RPI: Financial year average indices | D39: PB00113BP | E39: nr | F39: 1 | G39: =IFERROR(AVERAGE(G7:G18),0) -> 237.3416667 | H39: 244.675 | I39: 251.7333333 | J39: 256.6666667 | K39: 259.4333333 | L39: 264.9916667 | M39: 274.9083333 | N39: 283.7833333 | O39: 292.3915 | P39: 301.163245 | Q39: 310.1981424 | R39: 319.5040866 | S39: 329.0892092 | T39: 338.9618855 | U39: 349.1307421 | V39: 359.6046643 | W39: 370.3928043 | X39: 381.5045884 | Y39: 392.949726 | AA39: Average of lines 2 to 13.
B40: 29 | C40: CPIH: Financial year average indices | D40: PB00200 | E40: nr | F40: 1 | G40: =IFERROR(AVERAGE(G22:G33),0) -> 94.30833333 | H40: 96.58333333 | I40: 98.6 | J40: 99.725 | K40: 100.1666667 | L40: 101.5416667 | M40: 104.2166667 | N40: 106.8157237 | O40: 109.1714855 | P40: 111.3549152 | Q40: 113.5820135 | R40: 115.8536538 | S40: 118.1707268 | T40: 120.5341414 | U40: 122.9448242 | V40: 125.4037207 | W40: 127.9117951 | X40: 130.470031 | Y40: =IFERROR(AVERAGE(Y22:Y33),0) -> 133.0794316 | AA40: Average of lines 15 to 26.
B42: E | C42: Year on year % change
B43: 30 | C43: RPI: November year on year % | D43: APP23001 | E43: % | F43: 2 | H43: =IF(G14=0,0,H14 / G14 -1) -> 0.02976939203 | I43: 0.02646579805 | J43: 0.01983339944 | K43: 0.01050175029 | L43: 0.02193995381 | M43: 0.03879472693 | N43: 0.03118201595 | O43: 0.03023909986 | P43: 0.03 | Q43: 0.03 | R43: 0.03 | S43: 0.03 | T43: 0.03 | U43: 0.03 | V43: 0.03 | W43: 0.03 | X43: 0.03 | Y43: 0.03 | AA43: Year on year change in line 9.
B44: 31 | C44: RPI: Financial year average indices year on year % | D44: APP23002 | E44: % | F44: 2 | H44: =IF(G39=0,0,H39 / G39 -1) -> 0.03089779151 | I44: =IF(H39=0,0,I39 / H39 -1) -> 0.02884779129 | J44: 0.01959745763 | K44: 0.01077922078 | L44: 0.02142490042 | M44: 0.03742256046 | N44: 0.03228348844 | O44: 0.03033358783 | P44: 0.03 | Q44: 0.03 | R44: 0.03 | S44: 0.03 | T44: 0.03 | U44: 0.03 | V44: 0.03 | W44: 0.03 | X44: 0.03 | Y44: 0.03 | AA44: Year on year change in line 28.
B45: 32 | C45: RPI: Financial year end indices year on year % | D45: APP23003 | E45: % | F45: 2 | H45: =IF(G18=0,0,H18 / G18 -1) -> 0.03280730897 | I45: 0.02452754322 | J45: 0.009026687598 | K45: 0.01555814858 | L45: 0.03140559173 | M45: 0.03341997772 | N45: 0.03162055336 | O45: 0.031 | P45: 0.03 | Q45: 0.03 | R45: 0.03 | S45: 0.03 | T45: 0.03 | U45: 0.03 | V45: 0.03 | W45: 0.03 | X45: 0.03 | Y45: =IF(X18=0,0,Y18 / X18 -1) -> 0.03 | AA45: Year on year change in line 13.
B46: 33 | C46: CPIH: November year on year % | D46: APP23004 | E46: % | F46: 2 | H46: =IF(G29=0,0,H29 / G29 -1) -> 0.02428722281 | I46: 0.01855670103 | J46: 0.01113360324 | K46: 0.004004004004 | L46: 0.0149551346 | M46: 0.02848722986 | N46: 0.0233 | O46: 0.022 | P46: 0.02 | Q46: 0.02 | R46: 0.02 | S46: 0.02 | T46: 0.02 | U46: 0.02 | V46: 0.02 | W46: 0.02 | X46: 0.02 | Y46: =IF(X29=0,0,Y29 / X29 -1) -> 0.02 | AA46: Year on year change in line 22.
B47: 34 | C47: CPIH: Financial year average indices year on year % | D47: APP23005 | E47: % | F47: 2 | H47: =IF(G40=0,0,H40 / G40 -1) -> 0.0241230008 | I47: =IF(H40=0,0,I40 / H40 -1) -> 0.02088006903 | J47: 0.01140973631 | K47: 0.004428845993 | L47: 0.01372712146 | M47: 0.02634386541 | N47: 0.02493897719 | O47: 0.02205444712 | P47: 0.02 | Q47: 0.02 | R47: 0.02 | S47: 0.02 | T47: 0.02 | U47: 0.02 | V47: 0.02 | W47: 0.02 | X47: 0.02 | Y47: =IF(X40=0,0,Y40 / X40 -1) -> 0.02 | AA47: Year on year change in line 29.
B48: 35 | C48: CPIH: Financial year end indices year on year % | D48: APP23006 | E48: % | F48: 2 | H48: =IF(G33=0,0,H33 / G33 -1) -> 0.0251572327 | I48: 0.01533742331 | J48: 0.003021148036 | K48: 0.008032128514 | L48: 0.02290836653 | M48: 0.02336903603 | N48: 0.02623272058 | O48: 0.021 | P48: 0.02 | Q48: 0.02 | R48: 0.02 | S48: 0.02 | T48: 0.02 | U48: 0.02 | V48: 0.02 | W48: 0.02 | X48: 0.02 | Y48: =IF(X33=0,0,Y33 / X33 -1) -> 0.02 | AA48: Year on year change in line 26.
B49: 36 | C49: Wedge between RPI and CPIH | D49: APP23007 | E49: % | F49: 2 | H49: =H44 - H47 -> 0.006774790715 | I49: =I44 - I47 -> 0.007967722263 | J49: =J44 - J47 -> 0.008187721319 | K49: =K44 - K47 -> 0.006350374786 | L49: =L44 - L47 -> 0.00769777896 | M49: =M44 - M47 -> 0.01107869505 | N49: 0.007344511248 | O49: 0.008279140711 | P49: 0.01 | Q49: 0.01 | R49: 0.01 | S49: 0.01 | T49: 0.01 | U49: =U44 - U47 -> 0.01 | V49: 0.01 | W49: 0.01 | X49: 0.01 | Y49: =Y44 - Y47 -> 0.01 | AA49: Line 31 - line 34.
B51: F | C51: Long term inflation rates
B52: 37 | C52: Long term RPI inflation rate | D52: APP23008 | E52: % | F52: 2 | P52: 0.03 | Q52: 0.03 | R52: 0.03 | S52: 0.03 | T52: 0.03 | U52: 0.03 | V52: 0.03 | W52: 0.03 | X52: 0.03 | Y52: 0.03 | AD52: =IF( SUM( AH52:AS52 ) = 0, 0,$AH$5 ) -> 0 | AJ52: =IF( ISNUMBER(P52), 0, 1 ) -> 0 | AK52: 0 | AL52: 0 | AM52: 0 | AN52: 0 | AO52: 0 | AP52: 0 | AQ52: 0 | AR52: 0 | AS52: 0
B53: 38 | C53: Long term CPIH inflation rate | D53: APP23009 | E53: % | F53: 2 | P53: 0.02 | Q53: 0.02 | R53: 0.02 | S53: 0.02 | T53: 0.02 | U53: 0.02 | V53: 0.02 | W53: 0.02 | X53: 0.02 | Y53: 0.02 | AD53: =IF( SUM( AH53:AS53 ) = 0, 0,$AH$5 ) -> 0 | AJ53: 0 | AK53: 0 | AL53: 0 | AM53: 0 | AN53: 0 | AO53: 0 | AP53: 0 | AQ53: 0 | AR53: 0 | AS53: 0
B55: KEY
C56: Input | AH56: =SUM(AH24:AS54) -> 0
C57: Copy
C58: Calculation
C59: Pre populated
B61: App23 guidance and line definitions
B63: This table contains companies' assumptions about inflation during the price control period. The information allows us to adjust the price base of companies' business plan projections and compare across companies on a consistent basis without prescribing assumptions about inflation.
B65: Line | C65: Definition
B66: Block A | C66: =$C$5 -> Retail price index
B67: 1-13 | C67: Pre-populated data in green cells are published values for the retail price index (RPI) available on the ONS website. For 2017-18 onwards in lines 2 to 13, companies should enter forecast RPI values for each month. Line 1 will update automatically and should equal 12 to indicate that forecasts have been completed for all months of the financial year.
B68: Block B | C68: =$C$20 -> Consumer price index (including housing costs)
B69: 14-26 | C69: Pre-populated data in green cells are published values for the consumer price index including housing costs (CPIH) available on the ONS website. For 2017-18 onwards in lines 15 to 26, companies should enter forecast CPIH values for each month. Line 14 will update automatically and should equal 12 to indicate that forecasts have been completed for all months of the financial year.
B70: Block C | C70: =$C$35 -> Indexation rate for index linked debt percentage increase
B71: 27 | C71: The percentage uplift of index-linked debt by indexation. The financial model works on year average prices, so a year average inflation rate for index linked debt is more appropriate.
B72: Block D | C72: =$C$38 -> Financial year average indices
B73: 28-29 | C73: The financial year average indices calculated by taking an average over 12 months from April to March.
B74: Block E | C74: =$C$42 -> Year on year % change
B75: 30-35 | C75: The year on year % change in the indices.
B76: 36 | C76: The annual % change in RPI average minus the annual change in CPI(H) average.
B77: Block F | C77: =$C$51 -> Long term inflation rates
B78: 37 | C78: The company's view of the long term inflation rate for RPI. Long term inflation rate is the rate used to discount the nominal WACC into a real WACC.
B79: 38 | C79: The company's view of the long term inflation rate for CPI(H). Long term inflation rate is the rate used to discount the nominal WACC into a real WACC.

Sheet App 25
B1: App25 - PR14 reconciliation adjustments summary | M1: Yorkshire Water | O1: Data validation
B3: Line description | D3: Item reference | E3: Units | F3: DPs | G3: Price base | H3: 2015-16 | I3: 2016-17 | J3: 2017-18 | K3: 2018-19 | L3: 2019-20 | M3: 2015-20 | O3: Calculation, copy or download rule | P3: Validation description | R3: Completion
U4: Completion checks
B5: A | C5: Further 2010-15 reconciliation adjustments | U5: Please complete all cells in row
B6: 1 | C6: Water ~ Total Adjustment RCV carry forward to PR19 | D6: C00572_L021 | E6: £m | F6: 3 | G6: 2012-13 FYA (RPI) | M6: 3.029302235 | O6: Pre populated cell. Final 2010-15 reconciliation adjustments.
B7: 2 | C7: Water ~ Total Adjustment Revenue carry forward to PR19 | D7: C00578_L021 | E7: £m | F7: 3 | G7: 2012-13 FYA (RPI) | M7: 1.286584625 | O7: Pre populated cell. Final 2010-15 reconciliation adjustments.
B8: 3 | C8: Wastewater ~ Total Adjustment RCV carry forward to PR19 | D8: C00579_L021 | E8: £m | F8: 3 | G8: 2012-13 FYA (RPI) | M8: 3.198466915 | O8: Pre populated cell. Final 2010-15 reconciliation adjustments.
B9: 4 | C9: Wastewater ~ Total Adjustment Revenue carry forward to PR19 | D9: C00585_L021 | E9: £m | F9: 3 | G9: 2012-13 FYA (RPI) | M9: 2.648558875 | O9: Pre populated cell. Final 2010-15 reconciliation adjustments.
B10: 5 | C10: Water ~ CIS RCV inflation correction | D10: APP25001 | E10: £m | F10: 3 | G10: 2012-13 FYA (RPI) | M10: -40.0099985 | O10: Pre populated cell. Final 2010-15 reconciliation adjustments.
B11: 6 | C11: Wastewater ~ CIS RCV inflation correction | D11: APP25002 | E11: £m | F11: 3 | G11: 2012-13 FYA (RPI) | M11: -61.17497836 | O11: Pre populated cell. Final 2010-15 reconciliation adjustments.
B12: 7 | C12: Water ~ Total Adjustment RCV carry forward to PR19 at 2017-18 FYA CPIH deflated price base | D12: APP25003 | E12: £m | F12: 3 | G12: 2017-18 FYA (CPIH deflated) | O12: This is an output from the RCV adjustments model. | R12: =IF( SUM( U12:Z12 ) = 0, 0,$U$5 ) -> Please complete all cells in row | U12: =IF( ISNUMBER(M12), 0, 1 ) -> 1
B13: 8 | C13: Water ~ Total Adjustment Revenue carry forward to PR19 at 2017-18 FYA CPIH deflated price base | D13: APP25004 | E13: £m | F13: 3 | G13: 2017-18 FYA (CPIH deflated) | M13: =+Summary_Output!F10 -> 1.473002488 | O13: This is an output from the revenue adjustments model. | R13: 0 | U13: =IF( ISNUMBER(M13), 0, 1 ) -> 0
B14: 9 | C14: Wastewater ~ Total Adjustment RCV carry forward to PR19 at 2017-18 FYA CPIH deflated price base | D14: APP25005 | E14: £m | F14: 3 | G14: 2017-18 FYA (CPIH deflated) | O14: This is an output from the RCV adjustments model. | R14: Please complete all cells in row | U14: 1
B15: 10 | C15: Wastewater ~ Total Adjustment Revenue carry forward to PR19 at 2017-18 FYA CPIH deflated price base | D15: APP25006 | E15: £m | F15: 3 | G15: 2017-18 FYA (CPIH deflated) | M15: =+Summary_Output!F11 -> 3.032318075 | O15: This is an output from the revenue adjustments model. | R15: 0 | U15: 0
B16: 11 | C16: Water ~ CIS RCV inflation correction at 2017-18 FYA CPIH deflated price base | D16: APP25007 | E16: £m | F16: 3 | G16: 2017-18 FYA (CPIH deflated) | O16: This is an output from the RCV adjustments model. | R16: Please complete all cells in row | U16: =IF( ISNUMBER(M16), 0, 1 ) -> 1
B17: 12 | C17: Wastewater ~ CIS RCV inflation correction at 2017-18 FYA CPIH deflated price base | D17: APP25008 | E17: £m | F17: 3 | G17: 2017-18 FYA (CPIH deflated) | O17: This is an output from the RCV adjustments model. | R17: Please complete all cells in row | U17: 1
B19: B | C19: Adjustment to RCV from disposal of land
B20: 13 | C20: Water ~ NPV effect of 50% of proceeds from disposals of interest in land at 2017-18 FYA CPIH deflated price base | D20: A7011W_CPY | E20: £m | F20: 3 | G20: 2017-18 FYA (CPIH deflated) | M20: 0 | O20: Copied from App9 line 11.
B21: 14 | C21: Wastewater ~ NPV effect of 50% of proceeds from disposals of interest in land at 2017-18 FYA CPIH deflated price base | D21: A7011WW_CPY | E21: £m | F21: 3 | G21: 2017-18 FYA (CPIH deflated) | M21: 0 | O21: Copied from App9 line 22.
B23: C | C23: Outcome delivery incentive reconciliation adjustments to be applied at PR19
B24: 15 | C24: ODI in~period revenue adjustment ~ Total net revenue adjustment at 2017~18 FYA CPIH deflated price base | D24: APP27040_CPY | E24: £m | F24: 3 | G24: 2017-18 FYA (CPIH deflated) | M24: 0 | O24: Copied from App27 line 40.
B25: 16 | C25: ODI end of period revenue adjustment ~ Total net revenue adjustment at 2017~18 FYA CPIH deflated price base | D25: APP27047_CPY | E25: £m | F25: 3 | G25: 2017-18 FYA (CPIH deflated) | M25: 0 | O25: Copied from App27 line 47
B26: 17 | C26: ODI end of period RCV adjustment ~ Total net adjustment at 2017~18 FYA CPIH deflated price base | D26: APP27052_CPY | E26: £m | F26: 3 | G26: 2017-18 FYA (CPIH deflated) | M26: 0 | O26: Copied from App27 line 53
B28: D | C28: Wholesale total expenditure outperformance sharing
B29: 18 | C29: Water: Totex menu revenue adjustment at 2017-18 FYA CPIH deflated price base | D29: WS15026_CPY | E29: £m | F29: 3 | G29: 2017-18 FYA (CPIH deflated) | L29: 0 | O29: Copied from WS15 line 26.
B30: 19 | C30: Water: Totex menu RCV adjustment at 2017-18 FYA CPIH deflated price base | D30: WS15027_CPY | E30: £m | F30: 3 | G30: 2017-18 FYA (CPIH deflated) | L30: 0 | O30: Copied from WS15 line 27.
B31: 20 | C31: Wastewater: Totex menu revenue adjustment at 2017-18 FYA CPIH deflated price base | D31: WWS15021_CPY | E31: £m | F31: 3 | G31: 2017-18 FYA (CPIH deflated) | L31: 0 | O31: Copied from WWS15 line 21.
B32: 21 | C32: Wastewater: Totex menu RCV adjustment at 2017-18 FYA CPIH deflated price base | D32: WWS15022_CPY | E32: £m | F32: 3 | G32: 2017-18 FYA (CPIH deflated) | L32: 0 | O32: Copied from WWS15 line 22.
B34: E | C34: Wholesale revenue forecasting incentive mechanism
B35: 22 | C35: WRFIM Total reward / (penalty) at the end of AMP6 ~ water network plus | D35: WS13027_CPY | E35: £m | F35: 3 | G35: 2017-18 FYA (CPIH deflated) | L35: 0 | O35: Copied from WS13 line 31.
B36: 23 | C36: WRFIM Total reward / (penalty) at the end of AMP6 ~ wastewater network plus | D36: WWS13027_CPY | E36: £m | F36: 3 | G36: 2017-18 FYA (CPIH deflated) | L36: 0 | O36: Copied from WWS13 line 31.
B38: F | C38: Reconciliation of household retail revenue
B39: 24 | C39: Residential retail revenue adjustment at 2017-18 FYA CPIH deflated price base | D39: R9046_CPY | E39: £m | F39: 3 | G39: 2017-18 FYA (CPIH deflated) | L39: 0 | O39: Copied from R9 line 46.
B41: G | C41: Water trading incentive reconciliation
B42: 25 | C42: Total value of export incentive - water resources at 2017-18 FYA CPIH deflated price base | D42: WS17028_CPY | E42: £m | F42: 3 | G42: 2017-18 FYA (CPIH deflated) | L42: 0 | O42: Copied from WS17 line 56.
B43: 26 | C43: Total value of export incentive - water network plus at 2017-18 FYA CPIH deflated price base | D43: WS17029_CPY | E43: £m | F43: 3 | G43: 2017-18 FYA (CPIH deflated) | L43: 0 | O43: Copied from WS17 line 57.
B44: 27 | C44: Total value of export incentive to be paid after PR19 at 2017-18 FYA CPIH deflated price base | D44: WS17030_CPY | E44: £m | F44: 3 | G44: 2017-18 FYA (CPIH deflated) | L44: 0 | O44: Copied from WS17 line 58.
B45: 28 | C45: Total value of import incentive - water resources at 2017-18 FYA CPIH deflated price base | D45: WS17031_CPY | E45: £m | F45: 3 | G45: 2017-18 FYA (CPIH deflated) | L45: 0 | O45: Copied from WS17 line 59.
B46: 29 | C46: Total value of import incentive - water network plus at 2017-18 FYA CPIH deflated price base | D46: WS17032_CPY | E46: £m | F46: 3 | G46: 2017-18 FYA (CPIH deflated) | L46: 0 | O46: Copied from WS17 line 60.
B48: H | C48: Service incentive mechanism
B49: 30 | C49: SIM forecast revenue adjustment at 2017-18 FYA CPIH deflated price base | D49: R10009_CPY | E49: £m | F49: 3 | G49: 2017-18 FYA (CPIH deflated) | M49: 0 | O49: Copied from R10 line 9.
B51: KEY
C52: Input
C53: Copy
C54: Calculation
C55: Pre populated
B57: App25 guidance and line definitions
B59: This table summarises the adjustments arising from the 2010-15 reconciliation and from each of the PR14 reconciliations of performance in the period ending 31 March 2020. This table copies values entered in the tables for each of the PR14 reconciliation mechanisms. Block A relates to the further adjustments arising from the 2010-15 reconciliation to reflect the updated information for 2014-15. These are residual to the adjustments already recovered through the 2015-20 price controls. All input and copied values are in 2017-18 prices.
B61: Line | C61: Definition
B62: Block A | C62: =$C$5 -> Further 2010-15 reconciliation adjustments
B63: 1-4 | C63: 2010-15 reconciliation adjustments. These are the further adjustments arising from the update to take account of actual 2014-15 performance. Note – lines 2 and 4 relate to CIS revenue adjustments only, as per the PR09 legacy blind year adjustments model (published in December 2017).
B64: 5-6 | C64: The adjustments to ensure consistency in how we apply inflation indices for the PR09 capital expenditure incentive scheme, we published the adjustments in October 2016.
B65: 7 | C65: Line 1 inflated to 2017-18 prices.This is an output from the RCV adjustments model.
B66: 8 | C66: Line 2 inflated to 2017-18 prices.This is an output from the revenue adjustments model.
B67: 9 | C67: Line 3 inflated to 2017-18 prices.This is an output from the RCV adjustments model.
B68: 10 | C68: Line 4 inflated to 2017-18 prices.This is an output from the revenue adjustments model.
B69: 11 | C69: Line 5 inflated to 2017-18 prices.This is an output from the RCV adjustments model.
B70: 12 | C70: Line 6 inflated to 2017-18 prices.This is an output from the RCV adjustments model.

Sheet App27
B1: App27 - PR14 reconciliation - financial outcome delivery incentives summary | K1: Yorkshire Water | O1: Data validation
B3: Line description | D3: Item reference | E3: Units | F3: DPs | G3: 2015-16 | H3: 2016-17 | I3: 2017-18 | J3: 2018-19 | K3: 2019-20 | M3: Total to be applied at PR19 | O3: Calculation, copy or download rule | P3: Validation description | R3: Completion | S3: Validation
V4: Completion checks | AF4: Validation checks
B5: A | C5: In-period ODI revenue adjustments by PR14 price control units (2012-13 prices) | V5: Please complete all cells in row | AF5: This line should equal line 21
B6: 1 | C6: Net performance payment / (penalty) applied to revenue for in-period ODI adjustments ~ Wholesale water | D6: APP27001 | E6: £m | F6: 3 | G6: 0 | H6: 0 | I6: 0 | J6: 0 | K6: 0 | M6: 0 | R6: =IF( SUM( V6:AB6 ) = 0, 0,$V$5 ) -> 0 | V6: =IF( ISNUMBER(G6), 0, 1 ) -> 0 | W6: 0 | X6: 0 | Y6: 0 | Z6: 0 | AB6: =IF( ISNUMBER(M6), 0, 1 ) -> 0
B7: 2 | C7: Net performance payment / (penalty) applied to revenue for in-period ODI adjustments ~ Wholesale wastewater | D7: APP27002 | E7: £m | F7: 3 | G7: 0 | H7: 0 | I7: 0 | J7: 0 | K7: 0 | M7: 0 | R7: =IF( SUM( V7:AB7 ) = 0, 0,$V$5 ) -> 0 | V7: 0 | W7: 0 | X7: 0 | Y7: 0 | Z7: 0 | AB7: 0
B8: 3 | C8: Net performance payment / (penalty) applied to revenue for in-period ODI adjustments ~ Retail (household) | D8: APP27003 | E8: £m | F8: 3 | G8: 0 | H8: 0 | I8: 0 | J8: 0 | K8: 0 | M8: 0 | R8: =IF( SUM( V8:AB8 ) = 0, 0,$V$5 ) -> 0 | V8: 0 | W8: 0 | X8: 0 | Y8: 0 | Z8: 0 | AB8: =IF( ISNUMBER(M8), 0, 1 ) -> 0
B9: 4 | C9: Net performance payment / (penalty) applied to revenue for in-period ODI adjustments ~ Retail (non-household) | D9: APP27004 | E9: £m | F9: 3 | G9: 0 | H9: 0 | I9: 0 | J9: 0 | K9: 0 | M9: 0 | R9: =IF( SUM( V9:AB9 ) = 0, 0,$V$5 ) -> 0 | V9: 0 | W9: 0 | X9: 0 | Y9: 0 | Z9: 0 | AB9: =IF( ISNUMBER(M9), 0, 1 ) -> 0
B10: 5 | C10: Total net performance payment / (penalty) applied to revenue for in-period ODI adjustments ~ PR14 controls | D10: APP27005 | E10: £m | F10: 3 | G10: =SUM(G6:G9) -> 0 | H10: =SUM(H6:H9) -> 0 | I10: =SUM(I6:I9) -> 0 | J10: =SUM(J6:J9) -> 0 | K10: =SUM(K6:K9) -> 0 | M10: =SUM(M6:M9) -> 0 | O10: Calculated. Sum of lines 1 to 4 | P10: Line 21 = Line 5 | S10: =IF( SUM( AF10:AL10 ) = 0, 0,AF5 ) -> 0 | AF10: =IF(G32 = G10, 0, 1) -> 0 | AG10: =IF(H32 = H10, 0, 1) -> 0 | AH10: 0 | AI10: 0 | AJ10: 0 | AL10: 0
B12: B | C12: End of period ODI revenue adjustments by PR14 price control units (2012-13 prices) | AF12: This line should equal line 28
B13: 6 | C13: Net performance payment / (penalty) applied to revenue for end of period ODI adjustments ~ Wholesale water | D13: APP27006 | E13: £m | F13: 3 | G13: 0 | H13: 5.792 | I13: 10.281 | J13: 10.24 | K13: 12.52 | M13: 38.83353243 | R13: =IF( SUM( V13:AB13 ) = 0, 0,$V$5 ) -> 0 | V13: =IF( ISNUMBER(G13), 0, 1 ) -> 0 | W13: 0 | X13: 0 | Y13: 0 | Z13: 0 | AB13: =IF( ISNUMBER(M13), 0, 1 ) -> 0
B14: 7 | C14: Net performance payment / (penalty) applied to revenue for end of period ODI adjustments ~ Wholesale wastewater | D14: APP27007 | E14: £m | F14: 3 | G14: 5.739 | H14: 2.984 | I14: 8.947 | J14: 6.437 | K14: 19.471 | M14: 43.57808033 | R14: =IF( SUM( V14:AB14 ) = 0, 0,$V$5 ) -> 0 | V14: 0 | W14: 0 | X14: 0 | Y14: 0 | Z14: 0 | AB14: 0
B15: 8 | C15: Net performance payment / (penalty) applied to revenue for end of period ODI adjustments ~ Retail (household) | D15: APP27008 | E15: £m | F15: 3 | G15: 0 | H15: 0 | I15: 0 | J15: 0 | K15: 0 | M15: 0 | R15: =IF( SUM( V15:AB15 ) = 0, 0,$V$5 ) -> 0 | V15: 0 | W15: 0 | X15: 0 | Y15: 0 | Z15: 0 | AB15: =IF( ISNUMBER(M15), 0, 1 ) -> 0
B16: 9 | C16: Net performance payment / (penalty) applied to revenue for end of period ODI adjustments ~ Retail (non-household) | D16: APP27009 | E16: £m | F16: 3 | G16: 0 | H16: 0 | I16: 0 | J16: 0 | K16: 0 | M16: 0 | R16: =IF( SUM( V16:AB16 ) = 0, 0,$V$5 ) -> 0 | V16: 0 | W16: 0 | X16: 0 | Y16: 0 | Z16: 0 | AB16: =IF( ISNUMBER(M16), 0, 1 ) -> 0
B17: 10 | C17: Total net performance payment / (penalty) applied to revenue for end of period ODI adjustments ~ PR14 controls | D17: APP27010 | E17: £m | F17: 3 | G17: =SUM(G13:G16) -> 5.739 | H17: =SUM(H13:H16) -> 8.776 | I17: =SUM(I13:I16) -> 19.228 | J17: =SUM(J13:J16) -> 16.677 | K17: =SUM(K13:K16) -> 31.991 | M17: =SUM(M13:M16) -> 82.41161275 | O17: Calculated. Sum of lines 6 to 9 | P17: Line 28 = Line 10 | S17: =IF( SUM( AF17:AL17 ) = 0, 0,AF12 ) -> 0 | AF17: =IF(G41 = G17, 0, 1) -> 0 | AG17: =IF(H41 = H17, 0, 1) -> 0 | AH17: 0 | AI17: 0 | AJ17: 0 | AL17: 0
B19: C | C19: End of period ODI RCV adjustments by PR14 price control units (2012-13 prices) | AF19: This line should equal line 33
B20: 11 | C20: Net performance payment / (penalty) applied to RCV for end of period ODI adjustments ~ Wholesale water | D20: APP27011 | E20: £m | F20: 3 | G20: 0 | H20: 0 | I20: 0 | J20: 0 | K20: 0 | M20: 0 | R20: =IF( SUM( V20:AB20 ) = 0, 0,$V$5 ) -> 0 | V20: =IF( ISNUMBER(G20), 0, 1 ) -> 0 | W20: =IF( ISNUMBER(H20), 0, 1 ) -> 0 | X20: =IF( ISNUMBER(I20), 0, 1 ) -> 0 | Y20: =IF( ISNUMBER(J20), 0, 1 ) -> 0 | Z20: =IF( ISNUMBER(K20), 0, 1 ) -> 0 | AB20: =IF( ISNUMBER(M20), 0, 1 ) -> 0
B21: 12 | C21: Net performance payment / (penalty) applied to RCV for end of period ODI adjustments ~ Wholesale wastewater | D21: APP27012 | E21: £m | F21: 3 | G21: 0 | H21: 0 | I21: 0 | J21: 0 | K21: 0 | M21: 0 | R21: =IF( SUM( V21:AB21 ) = 0, 0,$V$5 ) -> 0 | V21: 0 | W21: 0 | X21: 0 | Y21: 0 | Z21: 0 | AB21: 0
B22: 13 | C22: Net performance payment / (penalty) applied to RCV for end of period ODI adjustments ~ Thames Tideway | D22: APP27013 | E22: £m | F22: 3 | G22: 0 | H22: 0 | I22: 0 | J22: 0 | K22: 0 | M22: 0 | R22: =IF( SUM( V22:AB22 ) = 0, 0,$V$5 ) -> 0 | V22: 0 | W22: 0 | X22: 0 | Y22: 0 | Z22: 0 | AB22: 0
B23: 14 | C23: Total net performance payment / (penalty) applied to RCV for end of period ODI adjustments ~ PR14 controls | D23: APP27014 | E23: £m | F23: 3 | G23: =SUM(G20:G22) -> 0 | H23: =SUM(H20:H22) -> 0 | I23: =SUM(I20:I22) -> 0 | J23: =SUM(J20:J22) -> 0 | K23: =SUM(K20:K22) -> 0 | M23: =SUM(M20:M22) -> 0 | O23: Calculated. Sum of lines 11 to 13 | P23: Line 33 = Line 14 | R23: =IF( SUM( V23:AB23 ) = 0, 0,$V$5 ) -> 0 | S23: =IF( SUM( AF23:AL23 ) = 0, 0,AF19 ) -> 0 | AF23: =IF(G48 = G23, 0, 1) -> 0 | AG23: =IF(H48 = H23, 0, 1) -> 0 | AH23: =IF(I48 = I23, 0, 1) -> 0 | AI23: =IF(J48 = J23, 0, 1) -> 0 | AJ23: =IF(K48 = K23, 0, 1) -> 0 | AL23: =IF(M48 = M23, 0, 1) -> 0
B25: D | C25: In-period ODI revenue adjustments allocated to PR19 price controls (2012-13 prices) | AF25: This line should equal line 5
B26: 15 | C26: Net performance payment / (penalty) applied to revenue for in-period ODI adjustments ~ Water resources | D26: APP27015 | E26: £m | F26: 3 | G26: 0 | H26: 0 | I26: 0 | J26: 0 | K26: 0 | M26: 0 | R26: =IF( SUM( V26:AB26 ) = 0, 0,$V$5 ) -> 0 | V26: =IF( ISNUMBER(G26), 0, 1 ) -> 0 | W26: 0 | X26: 0 | Y26: 0 | Z26: 0 | AB26: =IF( ISNUMBER(M26), 0, 1 ) -> 0
B27: 16 | C27: Net performance payment / (penalty) applied to revenue for in-period ODI adjustments ~ Water network plus | D27: APP27016 | E27: £m | F27: 3 | G27: 0 | H27: 0 | I27: 0 | J27: 0 | K27: 0 | M27: 0 | R27: 0 | V27: 0 | W27: 0 | X27: 0 | Y27: 0 | Z27: 0 | AB27: 0
B28: 17 | C28: Net performance payment / (penalty) applied to revenue for in-period ODI adjustments ~ Wastewater network plus | D28: APP27017 | E28: £m | F28: 3 | G28: 0 | H28: 0 | I28: 0 | J28: 0 | K28: 0 | M28: 0 | R28: 0 | V28: 0 | W28: 0 | X28: 0 | Y28: 0 | Z28: 0 | AB28: 0
B29: 18 | C29: Net performance payment / (penalty) applied to revenue for in-period ODI adjustments ~ Bioresources | D29: APP27018 | E29: £m | F29: 3 | G29: 0 | H29: 0 | I29: 0 | J29: 0 | K29: 0 | M29: 0 | R29: 0 | V29: 0 | W29: 0 | X29: 0 | Y29: 0 | Z29: 0 | AB29: 0
B30: 19 | C30: Net performance payment / (penalty) applied to revenue for in-period ODI adjustments ~ Residential retail | D30: APP27019 | E30: £m | F30: 3 | G30: 0 | H30: 0 | I30: 0 | J30: 0 | K30: 0 | M30: 0 | R30: 0 | V30: 0 | W30: 0 | X30: 0 | Y30: 0 | Z30: 0 | AB30: 0
B31: 20 | C31: Net performance payment / (penalty) applied to revenue for in-period ODI adjustments ~ Business retail | D31: APP27020 | E31: £m | F31: 3 | G31: 0 | H31: 0 | I31: 0 | J31: 0 | K31: 0 | M31: 0 | R31: 0 | V31: 0 | W31: 0 | X31: 0 | Y31: 0 | Z31: 0 | AB31: 0
B32: 21 | C32: Total net performance payment / (penalty) applied to revenue for in-period ODI adjustments ~ PR19 controls | D32: APP27021 | E32: £m | F32: 3 | G32: =SUM(G26:G31) -> 0 | H32: =SUM(H26:H31) -> 0 | I32: =SUM(I26:I31) -> 0 | J32: =SUM(J26:J31) -> 0 | K32: =SUM(K26:K31) -> 0 | M32: =SUM(M26:M31) -> 0 | O32: Calculated. Sum of lines 15 to 20 | P32: Line 21 = Line 5 | S32: =IF( SUM( AF32:AL32 ) = 0, 0,AF25 ) -> 0 | AF32: =IF(G32 = G10, 0, 1) -> 0 | AG32: =IF(H32 = H10, 0, 1) -> 0 | AH32: 0 | AI32: 0 | AJ32: 0 | AL32: 0
B34: E | C34: End of period ODI revenue adjustments allocated to PR19 price controls (2012-13 prices) | AF34: This line should equal line 10
B35: 22 | C35: Net performance payment / (penalty) applied to revenue for end of period ODI adjustments ~ Water resources | D35: APP27022 | E35: £m | F35: 3 | G35: 0 | H35: 0 | I35: 0.038 | J35: 0.009 | K35: 0.306 | M35: 0.3534927073 | R35: =IF( SUM( V35:AB35 ) = 0, 0,$V$5 ) -> 0 | V35: =IF( ISNUMBER(G35), 0, 1 ) -> 0 | W35: 0 | X35: 0 | Y35: 0 | Z35: 0 | AB35: =IF( ISNUMBER(M35), 0, 1 ) -> 0
B36: 23 | C36: Net performance payment / (penalty) applied to revenue for end of period ODI adjustments ~ Water network plus | D36: APP27023 | E36: £m | F36: 3 | G36: 0 | H36: 5.792 | I36: 10.243 | J36: 10.231 | K36: 12.214 | M36: 38.48003972 | R36: 0 | V36: 0 | W36: 0 | X36: 0 | Y36: 0 | Z36: 0 | AB36: 0
B37: 24 | C37: Net performance payment / (penalty) applied to revenue for end of period ODI adjustments ~ Wastewater network plus | D37: APP27024 | E37: £m | F37: 3 | G37: 5.739 | H37: 2.984 | I37: 8.947 | J37: 6.437 | K37: 19.471 | M37: 43.57808033 | R37: 0 | V37: 0 | W37: 0 | X37: 0 | Y37: 0 | Z37: 0 | AB37: 0
B38: 25 | C38: Net performance payment / (penalty) applied to revenue for end of period ODI adjustments ~ Bioresources | D38: APP27025 | E38: £m | F38: 3 | G38: 0 | H38: 0 | I38: 0 | J38: 0 | K38: 0 | M38: 0 | R38: 0 | V38: 0 | W38: 0 | X38: 0 | Y38: 0 | Z38: 0 | AB38: 0
B39: 26 | C39: Net performance payment / (penalty) applied to revenue for end of period ODI adjustments ~ Residential retail | D39: APP27026 | E39: £m | F39: 3 | G39: 0 | H39: 0 | I39: 0 | J39: 0 | K39: 0 | M39: 0 | R39: 0 | V39: 0 | W39: 0 | X39: 0 | Y39: 0 | Z39: 0 | AB39: 0
B40: 27 | C40: Net performance payment / (penalty) applied to revenue for end of period ODI adjustments ~ Business retail | D40: APP27027 | E40: £m | F40: 3 | G40: 0 | H40: 0 | I40: 0 | J40: 0 | K40: 0 | M40: 0 | R40: 0 | V40: 0 | W40: 0 | X40: 0 | Y40: 0 | Z40: 0 | AB40: 0
B41: 28 | C41: Total net performance payment / (penalty) applied to revenue for end of period ODI adjustments ~ PR19 controls | D41: APP27028 | E41: £m | F41: 3 | G41: =SUM(G35:G40) -> 5.739 | H41: =SUM(H35:H40) -> 8.776 | I41: =SUM(I35:I40) -> 19.228 | J41: =SUM(J35:J40) -> 16.677 | K41: =SUM(K35:K40) -> 31.991 | M41: =SUM(M35:M40) -> 82.41161275 | O41: Calculated. Sum of lines 22 to 27 | P41: Line 28 = Line 10 | S41: =IF( SUM( AF41:AL41 ) = 0, 0,AF34 ) -> 0 | AF41: =IF(G41 = G17, 0, 1) -> 0 | AG41: =IF(H41 = H17, 0, 1) -> 0 | AH41: 0 | AI41: 0 | AJ41: 0 | AL41: 0
B43: F | C43: End of period ODI RCV adjustments allocated to PR19 price controls (2012-13 prices) | AF43: This line should equal line 14
B44: 29 | C44: Net performance payment / (penalty) applied to RCV for end of period ODI adjustments ~ Water resources | D44: APP27029 | E44: £m | F44: 3 | G44: 0 | H44: 0 | I44: 0 | J44: 0 | K44: 0 | M44: 0 | R44: =IF( SUM( V44:AB44 ) = 0, 0,$V$5 ) -> 0 | V44: =IF( ISNUMBER(G44), 0, 1 ) -> 0 | W44: 0 | X44: 0 | Y44: 0 | Z44: 0 | AB44: =IF( ISNUMBER(M44), 0, 1 ) -> 0
B45: 30 | C45: Net performance payment / (penalty) applied to RCV for end of period ODI adjustments ~ Water network plus | D45: APP27030 | E45: £m | F45: 3 | G45: 0 | H45: 0 | I45: 0 | J45: 0 | K45: 0 | M45: 0 | R45: =IF( SUM( V45:AB45 ) = 0, 0,$V$5 ) -> 0 | V45: 0 | W45: 0 | X45: 0 | Y45: 0 | Z45: 0 | AB45: =IF( ISNUMBER(M45), 0, 1 ) -> 0
B46: 31 | C46: Net performance payment / (penalty) applied to RCV for end of period ODI adjustments ~ Wastewater network plus | D46: APP27031 | E46: £m | F46: 3 | G46: 0 | H46: 0 | I46: 0 | J46: 0 | K46: 0 | M46: 0 | R46: =IF( SUM( V46:AB46 ) = 0, 0,$V$5 ) -> 0 | V46: 0 | W46: 0 | X46: 0 | Y46: 0 | Z46: 0 | AB46: 0
B47: 32 | C47: Net performance payment / (penalty) applied to RCV for end of period ODI adjustments ~ Thames Tideway | D47: APP27032 | E47: £m | F47: 3 | G47: 0 | H47: 0 | I47: 0 | J47: 0 | K47: 0 | M47: 0 | R47: =IF( SUM( V47:AB47 ) = 0, 0,$V$5 ) -> 0 | V47: 0 | W47: 0 | X47: 0 | Y47: 0 | Z47: 0 | AB47: 0
B48: 33 | C48: Total net performance payment / (penalty) applied to RCV for end of period ODI adjustments ~ PR19 controls | D48: APP27033 | E48: £m | F48: 3 | G48: =SUM(G44:G47) -> 0 | H48: =SUM(H44:H47) -> 0 | I48: =SUM(I44:I47) -> 0 | J48: =SUM(J44:J47) -> 0 | K48: =SUM(K44:K47) -> 0 | M48: =SUM(M44:M47) -> 0 | O48: Calculated. Sum of lines 29 to 32 | P48: Line 33 = Line 14 | S48: =IF( SUM( AF48:AL48 ) = 0, 0,AF43 ) -> 0 | AF48: =IF(G48 = G23, 0, 1) -> 0 | AG48: =IF(H48 = H23, 0, 1) -> 0 | AH48: 0 | AI48: 0 | AJ48: 0 | AL48: 0
B50: G | C50: In-period ODI revenue adjustments input to PR19 financial model (2017-18 prices)
B51: 34 | C51: ODI in~period revenue adjustment ~ Water resources at 2017~18 FYA CPIH deflated price base | D51: APP27034 | E51: £m | F51: 3 | M51: 0 | O51: Output item from revenue adjustments feeder model. | R51: =IF( SUM( V51:AB51 ) = 0, 0,$V$5 ) -> 0 | AB51: =IF( ISNUMBER(M51), 0, 1 ) -> 0
B52: 35 | C52: ODI in~period revenue adjustment ~ Water network plus at 2017~18 FYA CPIH deflated price base | D52: APP27035 | E52: £m | F52: 3 | M52: 0 | O52: Output item from revenue adjustments feeder model. | R52: 0 | AB52: 0
B53: 36 | C53: ODI in~period revenue adjustment ~ Wastewater network plus at 2017~18 FYA CPIH deflated price base | D53: APP27036 | E53: £m | F53: 3 | M53: 0 | O53: Output item from revenue adjustments feeder model. | R53: 0 | AB53: 0
B54: 37 | C54: ODI in~period revenue adjustment ~ Bioresources at 2017~18 FYA CPIH deflated price base | D54: APP27037 | E54: £m | F54: 3 | M54: 0 | O54: Output item from revenue adjustments feeder model. | R54: 0 | AB54: 0
B55: 38 | C55: ODI in~period revenue adjustment ~ Residential retail at 2017~18 FYA CPIH deflated price base | D55: APP27038 | E55: £m | F55: 3 | M55: 0 | O55: Output item from revenue adjustments feeder model. | R55: 0 | AB55: 0
B56: 39 | C56: ODI in~period revenue adjustment ~ Business retail at 2017~18 FYA CPIH deflated price base | D56: APP27039 | E56: £m | F56: 3 | M56: 0 | O56: Output item from revenue adjustments feeder model. | R56: 0 | AB56: 0
B57: 40 | C57: ODI in~period revenue adjustment ~ Total net revenue adjustment at 2017~18 FYA CPIH deflated price base | D57: APP27040 | E57: £m | F57: 3 | M57: =SUM(M51:M56) -> 0 | O57: Calculated. Sum of lines 34 to 39
B59: H | C59: End of period ODI revenue adjustments input to PR19 financial model (2017-18 prices)
B60: 41 | C60: ODI end of period revenue adjustment ~ Water resources at 2017~18 FYA CPIH deflated price base | D60: APP27041 | E60: £m | F60: 3 | M60: =Summary_Output!F21 -> 0.4047115341 | O60: Output item from revenue adjustments feeder model. | R60: =IF( SUM( V60:AB60 ) = 0, 0,$V$5 ) -> 0 | AB60: =IF( ISNUMBER(M60), 0, 1 ) -> 0
B61: 42 | C61: ODI end of period revenue adjustment ~ Water network plus at 2017~18 FYA CPIH deflated price base | D61: APP27042 | E61: £m | F61: 3 | M61: =Summary_Output!F22 -> 44.05555076 | O61: Output item from revenue adjustments feeder model. | R61: 0 | AB61: 0
B62: 43 | C62: ODI end of period revenue adjustment ~ Wastewater network plus at 2017~18 FYA CPIH deflated price base | D62: APP27043 | E62: £m | F62: 3 | M62: =Summary_Output!F24 -> 49.89226477 | O62: Output item from revenue adjustments feeder model. | R62: 0 | AB62: 0
B63: 44 | C63: ODI end of period revenue adjustment ~ Bioresources at 2017~18 FYA CPIH deflated price base | D63: APP27044 | E63: £m | F63: 3 | M63: =Summary_Output!F23 -> 0 | O63: Output item from revenue adjustments feeder model. | R63: 0 | AB63: 0
B64: 45 | C64: ODI end of period revenue adjustment ~ Residential retail at 2017~18 FYA CPIH deflated price base | D64: APP27045 | E64: £m | F64: 3 | M64: =Summary_Output!F25 -> 0 | O64: Output item from revenue adjustments feeder model. | R64: 0 | AB64: 0
B65: 46 | C65: ODI end of period revenue adjustment ~ Business retail at 2017~18 FYA CPIH deflated price base | D65: APP27046 | E65: £m | F65: 3 | M65: =Summary_Output!F26 -> 0 | O65: Output item from revenue adjustments feeder model. | R65: 0 | AB65: 0
B66: 47 | C66: ODI end of period revenue adjustment ~ Total net revenue adjustment at 2017~18 FYA CPIH deflated price base | D66: APP27047 | E66: £m | F66: 3 | M66: =SUM(M60:M65) -> 94.35252706 | O66: Calculated. Sum of lines 41 to 46
B68: I | C68: End of period ODI RCV adjustments input to PR19 financial model (2017-18 prices)
B69: 48 | C69: ODI end of period RCV adjustment ~ Water resources at 2017~18 FYA CPIH deflated price base | D69: APP27048 | E69: £m | F69: 3 | M69: 0 | O69: Output item from RCV adjustments feeder model. | R69: =IF( SUM( V69:AB69 ) = 0, 0,$V$5 ) -> 0 | AB69: =IF( ISNUMBER(M69), 0, 1 ) -> 0
B70: 49 | C70: ODI end of period RCV adjustment ~ Water network plus at 2017~18 FYA CPIH deflated price base | D70: APP27049 | E70: £m | F70: 3 | M70: 0 | O70: Output item from RCV adjustments feeder model. | R70: =IF( SUM( V70:AB70 ) = 0, 0,$V$5 ) -> 0 | AB70: =IF( ISNUMBER(M70), 0, 1 ) -> 0
B71: 50 | C71: ODI end of period RCV adjustment ~ Wastewater network plus at 2017~18 FYA CPIH deflated price base | D71: APP27050 | E71: £m | F71: 3 | M71: 0 | O71: Output item from RCV adjustments feeder model. | R71: =IF( SUM( V71:AB71 ) = 0, 0,$V$5 ) -> 0 | AB71: 0
B72: 51 | C72: ODI end of period RCV adjustment ~ Thames Tideway at 2017~18 FYA CPIH deflated price base | D72: APP27051 | E72: £m | F72: 3 | M72: 0 | O72: Output item from RCV adjustments feeder model. | R72: =IF( SUM( V72:AB72 ) = 0, 0,$V$5 ) -> 0 | AB72: 0
B73: 52 | C73: ODI end of period RCV adjustment ~ Total net adjustment at 2017~18 FYA CPIH deflated price base | D73: APP27052 | E73: £m | F73: 3 | M73: =SUM(M69:M72) -> 0 | O73: Calculated. Sum of lines 48 to 51 | AF73: =SUM(AF10:AL10,AF17:AL17,AF23:AL23,AF32:AL32,AF41:AL41,AF48:AL48) -> 0
B75: KEY
C76: Input
C77: Copy
C78: Calculation
C79: Pre populated
B81: App27 guidance
B83: Companies should enter a summary of the financial adjustments arising from the actual and forecast performance levels as calculated under the PR14 reconciliation rulebook methodology. The table includes both in-period and end-of-period adjustments with a breakdown by PR14 price control element and a breakdown by the proposed allocation to the PR19 price controls. For end-of-period ODIs companies should show how they accrue year by year, where appropriate, and confirm, in the "total to be applied at PR19" column, the adjustments they want to make to the various PR19 price controls. Blocks A to F are in 2012-13 prices. Blocks A to C show the total amounts relating to each of the PR14 price control elements (see table App5 column D). Blocks D to F show the amounts allocated to the PR19 price controls. As set out in chapter 12, we will apply revenue adjustments to the network plus control except where an ODI is wholly aligned to water resources, bioresources or retail. RCV adjustments for water will be applied to the network plus control except where an ODI is wholly aligned to water resources. RCV adjustments for wastewater will be applied in full to wastewater network plus. The “total to be applied at PR19” column in blocks D to E are inputs to the revenue adjustments feeder model and the “total to be applied at PR19” of block F are inputs to the RCV adjustments feeder model. Blocks G to I are in 2017-18 prices. These are outputs from the revenue adjustments feeder model and RCV adjustments feeder model. Block A In relation to the in-period ODIs for the three companies with in-period ODIs in 2015-20, those three companies should complete the in-period ODI blocks with the actual amounts determined by Ofwat in December 2016 (for 2015-16) and December 2017 (for 2016-17) for each price control. Companies should also include forecasts for 2017-18, 2018-19 and 2019-20. However when completing the “total to be applied at PR19” column companies should be careful to ensure they only enter the amount they want to claim for PR19. We will carry out in-period ODI determinations in December 2018 and December 2020 where some of the forecast ODI payments will be determined. For all companies we expect Table App27 to be consistent with the information submitted in Tables App5 and App6. If this is not the case a company must provide a full explanation.

Sheet WS13 - adj
B1: WS13 - PR14 wholesale revenue forecast incentive mechanism for the water service | N1: Yorkshire Water | P1: Data validation
B3: Line description | D3: Item reference | E3: Units | F3: DPs | G3: Price base | H3: 2014-15 | I3: 2015-16 | J3: 2016-17 | K3: 2017-18 | L3: 2018-19 | M3: 2019-20 | N3: 2015-20 | P3: Calculation, copy or download rule | Q3: Validation description | S3: Completion | W3: Completion checks
B5: A | C5: Company details for WRFIM model | W5: Please complete all cells in row
B6: 1 | C6: Company name | E6: text | F6: - | N6: YKY | P6: Prepopulated cell
B7: 2 | C7: Company type | D7: BF200 | E7: Nr | F7: 0 | N7: 2 | P7: Prepopulated cell. Key: 1=WoC, 2=WaSC
B8: 3 | C8: Company has accepted WRFIM licence modification | D8: WS13003 | E8: Boolean | F8: 0 | N8: TRUE | P8: True/False | S8: =IF(SUM(AC8)=0,0,$W$5) -> 0 | AC8: =IF(OR(N8="TRUE",N8="FALSE"),0,1) -> 0
B10: B | C10: WRFIM model parameters
B11: 4 | C11: Penalty rate scaling minimum threshold (+/-) | D11: WS13004 | E11: % | F11: 2 | G11: - | N11: 0.02 | P11: PR14 reconciliation rulebook specifies value. Generic
B12: 5 | C12: Penalty rate scaling maximum threshold (+/-) | D12: WS13005 | E12: % | F12: 2 | G12: - | N12: 0.03 | P12: PR14 reconciliation rulebook specifies value. Generic
B13: 6 | C13: Penalty rate (+/-) | D13: WS13006 | E13: % | F13: 2 | G13: - | N13: 0.03 | P13: PR14 reconciliation rulebook specifies value. Generic
B14: 7 | C14: Specified discount rate | D14: WS13007 | E14: % | F14: 2 | G14: - | N14: 0.036 | P14: FD14 data pre-populated cell
B15: 8 | C15: Threshold for additional variance analyses (+/-) | D15: WS13008 | E15: % | F15: 2 | G15: - | N15: 0.06 | P15: PR14 reconciliation rulebook specifies value. Generic
B17: C | C17: Allowed revenue
B18: 9 | C18: Allowed revenue - water | D18: WS13009 | E18: £m | F18: 3 | G18: Outturn (nominal) | H18: 392.889 | P18: FD14 data pre-populated cells.
B19: 10 | C19: Actual RPI: November index year on year change | D19: APP23001_CPY | E19: % | F19: 2 | G19: - | I19: 0.01983339944 | J19: 0.01050175029 | K19: 0.02193995381 | L19: 0.03879472693 | M19: -1 | P19: Copied from table App23 line 30.
B20: 11 | C20: K ~ water | D20: WS13011 | E20: nr | F20: 2 | G20: - | I20: 0 | J20: 1.7 | K20: 1.37 | L20: 0.9 | M20: 0.82 | P20: Extracted from FD14 and calculated to convert from % to nr format
B21: 12 | C21: Total revenue forecast ~ water | D21: WS13012 | E21: £m | F21: 3 | G21: Outturn (nominal) | H21: 392.889 | I21: 400.6813245 | J21: 411.7007622 | K21: 426.3737584 | L21: 446.7521757 | M21: 3.663367841 | P21: Calculated
B23: D | C23: AMP5 RCM blind year adjustment
B24: 13 | C24: RCM blind year 14/15 adjustment for implementing via WRFIM ~ water | D24: C00052_L021 | E24: £m | F24: 3 | G24: 2012-13 FYA | H24: -5.689743196 | P24: Final 2010-15 reconciliation data pre-populated cell
B25: 14 | C25: Percentage of RCM adjustment by year ~ water | D25: WS13014 | E25: % | F25: 2 | G25: - | K25: 0 | L25: 0 | M25: 0 | P25: Final 2010-15 reconciliation implemented in 2017-18 charges pre-populated cell | Q25: All values must be >=0; sum of values must be <=1.
B27: E | C27: Revenue recovered
B28: 15 | C28: Water: Unmeasured ~ household | D28: CR581 | E28: £m | F28: 3 | G28: Outturn (nominal) | I28: 182.258 | J28: 182.767 | K28: 179.8693195 | L28: 181.7874891 | M28: 173.8269558 | P28: APR (table 2I) reported actual data pre-populated cells | S28: =IF(SUM(Z28:AB28)=0,0,$W$5) -> 0 | Z28: =IF(ISNUMBER(K28),0,1) -> 0 | AA28: 0 | AB28: 0
B29: 16 | C29: Water: Unmeasured ~ non-household | D29: CR583 | E29: £m | F29: 3 | G29: Outturn (nominal) | I29: 1.07 | J29: 1.131 | K29: 1.074336484 | L29: 1.001696341 | M29: 0.9913432728 | P29: APR (table 2I) reported actual data pre-populated cells | S29: 0 | Z29: 0 | AA29: 0 | AB29: 0
B30: 17 | C30: Water: Measured ~ household | D30: CR582 | E30: £m | F30: 3 | G30: Outturn (nominal) | I30: 116.394 | J30: 124.261 | K30: 131.5978883 | L30: 141.6864 | M30: 159.6343098 | P30: APR (table 2I) reported actual data pre-populated cells | S30: 0 | Z30: 0 | AA30: 0 | AB30: 0
B31: 18 | C31: Water: Measured ~ non-household | D31: CR584 | E31: £m | F31: 3 | G31: Outturn (nominal) | I31: 99.8345 | J31: 100.613 | K31: 101.8532161 | L31: 105.6999414 | M31: 113.381337 | P31: APR (table 2I) reported actual data pre-populated cells | S31: 0 | Z31: 0 | AA31: 0 | AB31: 0
B32: 19 | C32: Water: Third party revenue ~ household | D32: W9008HH | E32: £m | F32: 3 | G32: Outturn (nominal) | I32: 0 | J32: 0 | K32: 0 | L32: 0 | M32: 0 | P32: APR (table 2I) reported actual data pre-populated cells | S32: 0 | Z32: 0 | AA32: 0 | AB32: 0
B33: 20 | C33: Water: Third party revenue ~ non-household | D33: W9008NHH | E33: £m | F33: 3 | G33: Outturn (nominal) | I33: 0 | J33: 0 | K33: 0 | L33: 0 | M33: 0 | P33: APR (table 2I) reported actual data pre-populated cells | S33: 0 | Z33: 0 | AA33: 0 | AB33: 0
B34: 21 | C34: Water: Revenue collected from household and non-household | D34: BR589 | E34: £m | F34: 3 | G34: Outturn (nominal) | I34: =SUM(I28:I33) -> 399.5565 | J34: =SUM(J28:J33) -> 408.772 | K34: 414.3947604 | L34: 430.1755269 | M34: 447.8339459 | P34: Sum lines 15 to 20
B35: 22 | C35: Water: Grants and contributions | D35: BC11274IN | E35: £m | F35: 3 | G35: Outturn (nominal) | I35: 7.345 | J35: 7.133 | K35: 8.073 | L35: 3.036132 | M35: 0.675 | P35: APR (table 2I) reported actual data pre-populated cells | S35: =IF(SUM(Z35:AB35)=0,0,$W$5) -> 0 | Z35: =IF(ISNUMBER(K35),0,1) -> 0 | AA35: =IF(ISNUMBER(L35),0,1) -> 0 | AB35: =IF(ISNUMBER(M35),0,1) -> 0
B36: 23 | C36: Water: Revenue recovered | D36: W9014 | E36: £m | F36: 3 | G36: Outturn (nominal) | I36: =SUM(I34:I35) -> 406.9015 | J36: =SUM(J34:J35) -> 415.905 | K36: 422.4677604 | L36: 433.2116589 | M36: 448.5089459 | P36: Sum lines 21 and 22
B38: F | C38: Variance analysis of grants and contributions
B39: 24 | C39: Water: Capital contributions from connection charges and revenue from infrastructure charges (PR14 FD) | D39: C_ES_000660_A001 | E39: £m | F39: 3 | G39: 2012-13 prices | I39: 5.787 | J39: 6.921 | K39: 8.675 | L39: 9.786 | M39: 10.639 | P39: FD14 data pre-populated cells
B40: 25 | C40: Water: Grants and contributions | D40: BC11274_CPY | E40: £m | F40: 3 | G40: Outturn (nominal) | I40: =+I35 -> 7.345 | J40: =+J35 -> 7.133 | K40: 8.073 | L40: 3.036132 | M40: 0.675 | P40: Copy line 22
B41: 26 | C41: Water: Grants and contributions variance | D41: WS13028 | E41: £m | F41: 3 | G41: Outturn (nominal) | I41: 1.106686792 | J41: -0.4061018868 | K41: -1.584075472 | L41: -8.280340956 | M41: -12.01150566 | P41: Difference line 25 - line 24. Line 24 adjusted to outturn prices using data in App23
B43: G | C43: Penalties
B44: 27 | C44: Main revenue adjustment as incurred ~ water | D44: WS13023 | E44: £m | F44: 3 | G44: Outturn (nominal) | K44: -6.894211455 | L44: -4.790291013 | M44: -3.435549438 | P44: PR14 reconciliation WRFIM model row 41 on calc sheet. | S44: =IF(SUM(Z44:AB44)=0,0,$W$5) -> 0 | Z44: =IF(ISNUMBER(K44),0,1) -> 0 | AA44: 0 | AB44: 0
B45: 28 | C45: Penalty adjustment as incurred ~ water | D45: WS13024 | E45: £m | F45: 3 | G45: Outturn (nominal) | K45: 0 | L45: 0 | M45: -0.2569719731 | P45: PR14 reconciliation WRFIM model row 51 on calc sheet. | S45: =IF(SUM(Z45:AB45)=0,0,$W$5) -> 0 | Z45: 0 | AA45: 0 | AB45: 0
B46: 29 | C46: WRFIM adjustment as incurred ~ water | D46: WS13025 | E46: £m | F46: 3 | G46: Outturn (nominal) | K46: -6.894211455 | L46: -4.790291013 | M46: -3.435549438 | P46: PR14 reconciliation WRFIM model row 56 on calc sheet. | S46: =IF(SUM(Z46:AB46)=0,0,$W$5) -> 0 | Z46: 0 | AA46: 0 | AB46: 0
B47: 30 | C47: WRFIM Total reward / (penalty) at the end of AMP6 ~ water | D47: WS13026 | E47: £m | F47: 3 | G47: Outturn (nominal) | M47: -8.388656405 | P47: PR14 reconciliation WRFIM model output item row 73 on calc sheet. | S47: =IF(SUM(AB47)=0,0,$W$5) -> 0 | AB47: =IF(ISNUMBER(M47),0,1) -> 0
B48: 31 | C48: WRFIM Total reward / (penalty) at the end of AMP6 ~ water network plus | D48: WS13027 | E48: £m | F48: 3 | G48: 2017-18 FYA (CPIH deflated) | M48: =+Summary_Output!F29 -> -8.262615332 | P48: Output item from revenue adjustments model. | S48: =IF(SUM(AB48)=0,0,$W$5) -> 0 | AB48: =IF(ISNUMBER(M48),0,1) -> 0
AB49: =SUM(V8:AC48) -> 0
B50: KEY
C51: Input
C52: Copy
C53: Calculation
C54: Pre populated
B56: WS13 guidance and line definitions
B58: This table contains the water service inputs used for populating the WRFIM model and the penalties arising as calculated by the WFRIM model. The WRFIM model calculates in outturn prices and is converted to 2017-18 prices in the revenue adjustments model. We expect companies to publish their populated WRFIM models with associated explanation with the regulatory accounts reporting in July 2018.
B60: Line | C60: Definition
B61: Block A | C61: =$C$5 -> Company details for WRFIM model
B62: 1-3 | C62: Company details for WRFIM model
B63: Block B | C63: =$C$10 -> WRFIM model parameters
B64: 4-8 | C64: WRFIM model parameters as defined in the PR14 reconciliation rulebook.
B65: Block C | C65: =$C$17 -> Allowed revenue
B66: 9 | C66: 2014-15 allowed revenue from company final determination letter, as adjusted for ODIs or IDoK in accordance with the licence.
B67: 10 | C67: Year on year increase in November RPI for the November prior to the start of the financial year
B68: 11 | C68: Annual K factor from the PR14 final determination, as adjusted for in-period ODIs or interim determination of K in accordance with the licence.
B69: 12 | C69: Total revenue forecasted in PR14. Calculated as 2014-15 allowed revenue (WS13 line 9) compounded by RPI (WS13 line 10) and K (WS13 line 11).
B70: Block D | C70: =$C$23 -> AMP5 RCM blind year adjustment
B71: 13 | C71: Revenue Correction Mechanism (RCM) 2014-15 blind year adjustment implemented via WRFIM. As published in December 2016.
B72: 14 | C72: Profile for applying the RCM adjustment. This should be in accordance with the choice made (as published) in December 2016.
B73: Block E | C73: =$C$27 -> Revenue recovered
B74: 15-20 | C74: Actual revenue recovered from metered and unmetered customers' water charges, household and non-household over the 2015-2020 price review period. Annual wholesale water charge revenue as reported in company’s regulatory reporting 2I.
B75: 21 | C75: Calculated. Sum of WS13 lines 15 to 20.
B76: 22 | C76: Actual water grants and contributions revenue recovered. As defined in the RAGs for 2017-18 2I, total of price control grants and contributions irrespective of accounting treatment. We raised several queries on grants and contributions reporting in the 2016 APR or 2017 APR. As a result of these queries, if a company is aware that previous years data has not been correctly reported, they should restate the figures in the pre-populated cells using the definition in the RAGs for 2017-18 reporting.
B77: 23 | C77: Calculated. Sum of WS13 lines 21 and 22.
B78: Block F | C78: =$C$38 -> Variance analysis of grants and contributions
B79: 24 | C79: Total grants and contributions that are included in the allowed water revenue totals.
B80: 25 | C80: Relevant water capital contributions from connection charges and revenue from infrastructure charges, defined in the final determination as covered by the price control. As defined in RAG 4.07 2I.
B81: 26 | C81: Difference in outturn prices between line 24 and line 25 for water grants and contributions. Line 24 is adjusted to outturn prices using data in App23.
B82: Block G | C82: =$C$43 -> Penalties
B83: 27 | C83: Main revenue adjustment as incurred. These values are calculated in the PR14 reconciliation WRFIM model on 'WRFIM - Water' sheet in row 41. The values are in outturn prices.
B84: 28 | C84: Penalty adjustment as incurred. These values are calculated in the PR14 reconciliation WRFIM model on 'WRFIM - Water' sheet in row 51. The values are in outturn prices.
B85: 29 | C85: WRFIM adjustment as incurred. These values are calculated in the PR14 reconciliation WRFIM model on 'WRFIM - Water' sheet in row 56. The values are in outturn prices.
B86: 30 | C86: WRFIM Total reward / (penalty) at the end of AMP6. These values are calculated in the PR14 reconciliation WRFIM model on 'WRFIM - Water' sheet in row 73. The values are in outturn prices.
B87: 31 | C87: WRFIM Total reward / (penalty) at the end of AMP6 expressed in 2017-18 FYA (CPIH deflated) prices. This is an output item from the revenue adjustments feeder model. The value entered is prior to profiling.

Sheet WWS13 - adj
B1: WWS13 - PR14 wholesale revenue forecast incentive mechanism for the wastewater service | N1: Yorkshire Water | P1: Data validation
V2: Completion checks
B3: Line description | D3: Item reference | E3: Units | F3: DPs | G3: Price base | H3: 2014-15 | I3: 2015-16 | J3: 2016-17 | K3: 2017-18 | L3: 2018-19 | M3: 2019-20 | N3: 2015-20 | P3: Calculation, copy or download rule | Q3: Validation description | S3: Completion | V3: Please complete all cells in row
B5: A | C5: Company details for WRFIM model
B6: 1 | C6: Company name | D6: SYS01 | E6: text | F6: 0 | N6: YKY | P6: Prepopulated cell
B7: 2 | C7: Company type | D7: BF200 | E7: Nr | F7: 0 | N7: 2 | P7: Prepopulated cell. Key: 1=WoC, 2=WaSC
B8: 3 | C8: Company has accepted WRFIM licence modification | D8: WWS13003 | E8: Boolean | F8: 0 | P8: True/False | S8: =IF( SUM( V8:Y8 ) = 0, 0, $V$3 ) -> Please complete all cells in row | Y8: 1
B10: B | C10: WRFIM model parameters
B11: 4 | C11: Penalty rate scaling minimum threshold (+/-) | D11: WWS13004 | E11: % | F11: 2 | G11: - | N11: 0.02 | P11: PR14 reconciliation rulebook specifies value. Generic
B12: 5 | C12: Penalty rate scaling maximum threshold (+/-) | D12: WWS13005 | E12: % | F12: 2 | G12: - | N12: 0.03 | P12: PR14 reconciliation rulebook specifies value. Generic
B13: 6 | C13: Penalty rate (+/-) | D13: WWS13006 | E13: % | F13: 2 | G13: - | N13: 0.03 | P13: PR14 reconciliation rulebook specifies value. Generic
B14: 7 | C14: Specified discount rate | D14: WWS13007 | E14: % | F14: 2 | G14: - | N14: 0 | P14: FD14 data pre-populated cell
B15: 8 | C15: Threshold for additional variance analyses (+/-) | D15: WWS13008 | E15: % | F15: 2 | G15: - | N15: 0.06 | P15: PR14 reconciliation rulebook specifies value. Generic
B17: C | C17: Allowed revenue
B18: 9 | C18: Allowed revenue - wastewater | D18: WWS13009 | E18: £m | F18: 3 | G18: Outturn (nominal) | H18: 485.082 | P18: FD14 data pre-populated cells.
B19: 10 | C19: Actual RPI: November index year on year change | D19: APP23001_CPY | E19: % | F19: 2 | G19: - | I19: 0.01983339944 | J19: 0.01050175029 | K19: 0.02193995381 | L19: 0.03879472693 | M19: -1 | P19: Copied from table App23 line 30.
B20: 11 | C20: K ~ wastewater | D20: WWS13011 | E20: nr | F20: 2 | G20: - | I20: 0 | J20: 1.16 | K20: 0.8 | L20: 0.81 | M20: 0.97 | P20: Extracted from FD14 and calculated to convert from % to nr format
B21: 12 | C21: Total revenue forecast ~ wastewater | D21: WWS13012 | E21: £m | F21: 3 | G21: Outturn (nominal) | H21: 485.082 | I21: 494.7028251 | J21: 505.6366234 | K21: 520.7753605 | L21: 545.1969789 | M21: 5.288410695 | P21: Calculated
B23: D | C23: AMP5 RCM blind year adjustment
B24: 13 | C24: RCM blind year 14/15 adjustment for implementing via WRFIM ~ wastewater | D24: C00053_L021 | E24: £m | F24: 3 | G24: 2012-13 prices | H24: -9.680033052 | P24: Final 2010-15 reconciliation data pre-populated cell
B25: 14 | C25: Percentage of RCM adjustment by year ~ wastewater | D25: WWS13014 | E25: % | F25: 2 | G25: - | K25: 0 | L25: 0 | M25: 0 | P25: Final 2010-15 reconciliation implemented in 2017-18 charges pre-populated cell | Q25: All values must be >=0; sum of values must be <=1.
B27: E | C27: Revenue recovered
B28: 15 | C28: Wastewater: Unmeasured ~ household | D28: CR881 | E28: £m | F28: 3 | G28: Outturn (nominal) | I28: 224.557 | J28: 219.924 | K28: 219.0993636 | L28: 216.581105 | M28: 213.2195289 | P28: APR (table 2I) reported actual data pre-populated cells | S28: =IF( SUM( V28:Y28 ) = 0, 0, $V$3 ) -> 0 | V28: 0 | W28: 0 | X28: 0
B29: 16 | C29: Wastewater: Unmeasured ~ non-household | D29: CR883 | E29: £m | F29: 3 | G29: Outturn (nominal) | I29: 2.095 | J29: 2.084 | K29: 2.390049297 | L29: 2.434629641 | M29: 2.390385803 | P29: APR (table 2I) reported actual data pre-populated cells | S29: =IF( SUM( V29:Y29 ) = 0, 0, $V$3 ) -> 0 | V29: 0 | W29: 0 | X29: 0
B30: 17 | C30: Wastewater: Measured ~ household | D30: CR882 | E30: £m | F30: 3 | G30: Outturn (nominal) | I30: 151.394 | J30: 163.965 | K30: 173.9997244 | L30: 193.5487086 | M30: 217.5825494 | P30: APR (table 2I) reported actual data pre-populated cells | S30: 0 | V30: 0 | W30: 0 | X30: 0
B31: 18 | C31: Wastewater: Measured ~ non-household | D31: CR884 | E31: £m | F31: 3 | G31: Outturn (nominal) | I31: 110.517 | J31: 113.406 | K31: 111.2874886 | L31: 123.1920588 | M31: 131.670806 | P31: APR (table 2I) reported actual data pre-populated cells | S31: 0 | V31: 0 | W31: 0 | X31: 0
B32: 19 | C32: Wastewater: Third party revenue ~ household | D32: S9008HH | E32: £m | F32: 3 | G32: Outturn (nominal) | I32: 0 | J32: 0 | K32: 0 | L32: 0 | M32: 0 | P32: APR (table 2I) reported actual data pre-populated cells | S32: 0 | V32: 0 | W32: 0 | X32: 0
B33: 20 | C33: Wastewater: Third party revenue ~ non-household | D33: S9008NHH | E33: £m | F33: 3 | G33: Outturn (nominal) | I33: 0 | J33: 0 | K33: 0 | L33: 0 | M33: 0 | P33: APR (table 2I) reported actual data pre-populated cells | S33: 0 | V33: 0 | W33: 0 | X33: 0
B34: 21 | C34: Wastewater: Revenue collected from household and non-household | D34: BR689 | E34: £m | F34: 3 | G34: Outturn (nominal) | I34: =SUM(I28:I33) -> 488.563 | J34: =SUM(J28:J33) -> 499.379 | K34: 506.7766259 | L34: 535.7565021 | M34: 564.8632701 | P34: Sum lines 15 to 20
B35: 22 | C35: Wastewater: Grants and contributions | D35: BC11374IN | E35: £m | F35: 3 | G35: Outturn (nominal) | I35: 7.322 | J35: 8.229 | K35: 8.104 | L35: 14.369218 | M35: 5.780744 | P35: APR (table 2I) reported actual data pre-populated cells | S35: 0 | V35: 0 | W35: 0 | X35: 0
B36: 23 | C36: Wastewater: Revenue recovered | D36: S9014 | E36: £m | F36: 3 | G36: Outturn (nominal) | I36: =SUM(I34:I35) -> 495.885 | J36: =SUM(J34:J35) -> 507.608 | K36: 514.8806259 | L36: 550.1257201 | M36: 570.6440141 | P36: Sum lines 21 and 22
B38: F | C38: Variance analysis of grants and contributions
B39: 24 | C39: Wastewater: Capital contributions from connection charges and revenue from infrastructure charges (PR14 FD) | D39: C_ES_000830_A001 | E39: £m | F39: 3 | G39: 2012-13 prices | I39: 4.972 | J39: 5.831 | K39: 7.3 | L39: 8.136 | M39: 8.781 | P39: FD14 data pre-populated cells
B40: 25 | C40: Wastewater: Grants and contributions | D40: BC11374_CPY | E40: £m | F40: 3 | G40: Outturn (nominal) | I40: =+I35 -> 7.322 | J40: =+J35 -> 8.229 | K40: 8.104 | L40: 14.369218 | M40: 5.780744 | P40: Copy line 22
B41: 26 | C41: Wastewater: Grants and contributions variance | D41: WWS13028 | E41: £m | F41: 3 | G41: Outturn (nominal) | I41: 1.962246541 | J41: 1.877244025 | K41: -0.02241509434 | L41: 4.960795358 | M41: -4.690184302 | P41: Difference line 25 - line 24. Line 24 adjusted to outturn prices using data in App23
B43: G | C43: Penalties
B44: 27 | C44: Main revenue adjustment as incurred ~ wastewater | D44: WWS130023 | E44: £m | F44: 3 | G44: Outturn (nominal) | K44: -1.310278772 | L44: -2.246178304 | M44: 5.270749411 | P44: PR14 reconciliation WRFIM model row 41 on calc sheet. | S44: =IF( SUM( V44:Y44 ) = 0, 0, $V$3 ) -> 0 | V44: 0 | W44: 0 | X44: 0
B45: 28 | C45: Penalty adjustment as incurred ~ wastewater | D45: WWS130024 | E45: £m | F45: 3 | G45: Outturn (nominal) | K45: 0 | L45: 0 | M45: 0 | P45: PR14 reconciliation WRFIM model row 51 on calc sheet. | S45: =IF( SUM( V45:Y45 ) = 0, 0, $V$3 ) -> 0 | V45: 0 | W45: 0 | X45: 0
B46: 29 | C46: WRFIM adjustment as incurred ~ wastewater | D46: WWS13025 | E46: £m | F46: 3 | G46: Outturn (nominal) | K46: -1.310278772 | L46: -2.246178304 | M46: 5.270749411 | P46: PR14 reconciliation WRFIM model row 56 on calc sheet. | S46: =IF( SUM( V46:Y46 ) = 0, 0, $V$3 ) -> 0 | V46: 0 | W46: 0 | X46: 0
B47: 30 | C47: WRFIM Total reward / (penalty) at the end of AMP6 ~ wastewater | D47: WWS13026 | E47: £m | F47: 3 | G47: Outturn (nominal) | M47: -14.2717287 | P47: PR14 reconciliation WRFIM model output item row 73 on calc sheet | S47: =IF( SUM( V47:Y47 ) = 0, 0, $V$3 ) -> 0 | X47: 0
B48: 31 | C48: WRFIM Total reward / (penalty) at the end of AMP6 ~ wastewater network plus | D48: WWS13027 | E48: £m | F48: 3 | G48: 2017-18 FYA (CPIH deflated) | M48: =+Summary_Output!F41 -> -14.05729341 | P48: Output item from revenue adjustments model. | S48: =IF( SUM( V48:Y48 ) = 0, 0, $V$3 ) -> 0 | X48: 0
B50: KEY
C51: Input
C52: Copy
C53: Calculation
C54: Pre populated
B56: WWS13 guidance and line definitions
B58: This table contains the wastewater service inputs used for populating the WRFIM model and the penalties arising as calculated by the WFRIM model. The WRFIM model calculates in outturn prices and is converted to 2017-18 prices in the revenue adjustments model. We expect companies to publish their populated WRFIM models with associated explanation with the regulatory accounts reporting in July 2018.
B60: Line | C60: Definition
B61: Block A | C61: =$C$5 -> Company details for WRFIM model
B62: 1-3 | C62: Company details for WRFIM model
B63: Block B | C63: =$C$10 -> WRFIM model parameters
B64: 4-8 | C64: WRFIM model parameters as defined in the PR14 reconciliation rulebook.
B65: Block C | C65: =$C$17 -> Allowed revenue
B66: 9 | C66: 2014-15 allowed revenue from company final determination letter, as adjusted for ODIs or IDoK in accordance with the licence.
B67: 10 | C67: Year on year increase in November RPI for the November prior to the start of the financial year
B68: 11 | C68: Annual K factor from the PR14 final determination, as adjusted for in-period ODIs or interim determination of K in accordance with the licence.
B69: 12 | C69: Total revenue forecasted in PR14. Calculated as 2014-15 allowed revenue (WWS13 line 9) compounded by RPI (WWS13 line 10) and K (WWS13 line 11).
B70: Block D | C70: =$C$23 -> AMP5 RCM blind year adjustment
B71: 13 | C71: Revenue Correction Mechanism (RCM) 2014-15 blind year adjustment implemented via WRFIM. As published in December 2016.
B72: 14 | C72: Profile for applying the RCM adjustment. This should be in accordance with the choice made (as published) in December 2016.
B73: Block E | C73: =$C$27 -> Revenue recovered
B74: 15-20 | C74: Actual revenue recovered from metered and unmetered customers' wastewater charges, household and non-household over the 2015-2020 price review period. Annual wholesale wastewater charge revenue as reported in company’s regulatory reporting 2I.
B75: 21 | C75: Calculated. Sum of WWS13 lines 15 to 20.
B76: 22 | C76: Actual wastewater grants and contributions revenue recovered. As defined in the RAGs for 2017-18 2I, total of price control grants and contributions irrespective of accounting treatment. We raised several queries on grants and contributions reporting in the 2016 APR or 2017 APR. As a result of these queries, if a company is aware that previous years data has not been correctly reported, they should restate the figures in the pre-populated cells using the definition in the RAGs for 2017-18 reporting.
B77: 23 | C77: Calculated. Sum of WWS13 lines 21 and 22.
B78: Block F | C78: =$C$38 -> Variance analysis of grants and contributions
B79: 24 | C79: Total grants and contributions that are included in the allowed wastewater revenue totals.
B80: 25 | C80: Relevant wastewater capital contributions from connection charges and revenue from infrastructure charges, defined in the final determination as covered by the price control. As defined in RAG 4.07 2I.
B81: 26 | C81: Difference in outturn prices between line 24 and line 25 for wastewater grants and contributions. Line 24 is adjusted to outturn prices using data in App23.
B82: Block G | C82: =$C$43 -> Penalties
B83: 27 | C83: Main revenue adjustment as incurred. These values are calculated in the PR14 reconciliation WRFIM model on 'WRFIM - Waste' sheet in row 41. The values are in outturn prices.
B84: 28 | C84: Penalty adjustment as incurred. These values are calculated in the PR14 reconciliation WRFIM model on 'WRFIM - Waste' sheet in row 51. The values are in outturn prices.
B85: 29 | C85: WRFIM adjustment as incurred. These values are calculated in the PR14 reconciliation WRFIM model on 'WRFIM - Waste' sheet in row 56. The values are in outturn prices.
B86: 30 | C86: WRFIM Total reward / (penalty) at the end of AMP6. These values are calculated in the PR14 reconciliation WRFIM model on 'WRFIM - Waste' sheet in row 73. The values are in outturn prices.
B87: 31 | C87: WRFIM Total reward / (penalty) at the end of AMP6 expressed in 2017-18 FYA (CPIH deflated) prices. This is an output item from the revenue adjustments feeder model. The value entered is prior to profiling.

Sheet WS15 - adj Ofwat
B1: WS15 - PR14 wholesale total expenditure outperformance sharing for the water service | N1: Yorkshire Water | P1: Data validation
B3: Line description | D3: Item reference | E3: Units | F3: DPs | G3: Price base | H3: 2014-15 | I3: 2015-16 | J3: 2016-17 | K3: 2017-18 | L3: 2018-19 | M3: 2019-20 | N3: 2015-20 | P3: Calculation, copy or download rule | Q3: Validation description | S3: Completion | W3: Completion checks
W4: Please complete all cells in row
B5: A | C5: Company details
B6: 1 | C6: Company type | D6: BF200 | E6: Nr | F6: 0 | N6: 2 | P6: Pre-populate cell. Key: 1=WoC, 2=WaSC
B7: 2 | C7: Is company enhanced? | D7: WS15001 | E7: text | F7: 0 | N7: No | P7: FD14 data pre-populated cell | Q7: Yes or No
B8: 3 | C8: Financing rate | D8: WS15003 | E8: % | F8: 2 | N8: 0.036 | P8: FD14 data pre-populated cell
B10: B | C10: Menu choices
B11: 4 | C11: Water: Implied menu choice | D11: C00729_W004 | E11: Nr | F11: 1 | G11: 0 | I11: ` | N11: 94.3322813 | P11: FD14 data pre-populated cell
B12: 5 | C12: Water: FD pension deficit recovery costs allowance | D12: C00558 | E12: £m | F12: 3 | G12: 2012-13 FYA (RPI) | I12: 4.542531953 | J12: 4.542531953 | K12: 4.542531953 | L12: 4.542531953 | M12: 4.542531953 | P12: FD14 data pre-populated cells
B13: 6 | C13: Water: Final menu choice | D13: WS15006 | E13: nr | F13: 1 | G13: - | N13: 94.3322813 | P13: FD14 data pre-populated cell
B15: C | C15: TOTEX
B16: 7 | C16: Water: Baseline Totex | D16: C00007_W011 | E16: £m | F16: 3 | G16: 2012-13 FYA (RPI) | I16: 344.3392375 | J16: 309.1394405 | K16: 281.3564146 | L16: 281.8747584 | M16: 288.2862259 | P16: FD14 data pre-populated cells
B17: 8 | C17: Water: FD allowed totex inclusive of menu cost exclusions, less PDRC allowance | D17: C00772_A001 | E17: £m | F17: 3 | G17: 2012-13 FYA (RPI) | I17: 346.1748899 | J17: 311.2665255 | K17: 283.8771655 | L17: 284.3881647 | M17: 290.7087863 | P17: FD14 data pre-populated cells
B18: 9 | C18: Water: Actual Totex | D18: W3026MTIN | E18: £m | F18: 3 | G18: Outturn (nominal) | I18: 279.795 | J18: 328.9235315 | K18: 369.596 | L18: 424.87 | M18: 412.691 | P18: APR data pre-populated | S18: =IF(SUM(Z18:AB18)=0,0,$W$4) -> 0 | Z18: =IF(ISNUMBER(K18),0,1) -> 0 | AA18: =IF(ISNUMBER(L18),0,1) -> 0 | AB18: =IF(ISNUMBER(M18),0,1) -> 0
B20: D | C20: Adjustments to TOTEX
B21: 10 | C21: Water: Third party services (opex) | D21: BM323TASIN | E21: £m | F21: 3 | G21: Outturn (nominal) | I21: 1.628 | J21: 1.705 | K21: 2.251 | L21: 2.582 | M21: 2.66 | P21: APR data pre-populated | S21: =IF(SUM(Z21:AB21)=0,0,$W$4) -> 0 | Z21: =IF(ISNUMBER(K21),0,1) -> 0 | AA21: 0 | AB21: 0
B22: 11 | C22: Water: Third party services (capex) | D22: BM333TASIN | E22: £m | F22: 3 | G22: Outturn (nominal) | I22: 0 | J22: 0 | K22: 0 | L22: 0 | M22: 0 | P22: APR data pre-populated | S22: =IF(SUM(Z22:AB22)=0,0,$W$4) -> 0 | Z22: 0 | AA22: 0 | AB22: 0
B23: 12 | C23: Water: Pension deficit recovery costs | D23: CRW003 | E23: £m | F23: 3 | G23: Outturn (nominal) | I23: 7.509 | J23: 5.178 | K23: 5.562 | L23: 5.735 | M23: 5.909 | P23: APR data pre-populated | S23: =IF(SUM(Z23:AB23)=0,0,$W$4) -> 0 | Z23: 0 | AA23: 0 | AB23: 0
B24: 13 | C24: Water: Other cash items | D24: CR00561TOT | E24: £m | F24: 3 | G24: Outturn (nominal) | I24: 0.401 | J24: 0.653 | K24: 1.014342873 | L24: 1.047 | M24: 1.079 | S24: =IF(SUM(X24:AB24)=0,0,$W$4) -> 0 | X24: =IF(ISNUMBER(I24),0,1) -> 0 | Y24: =IF(ISNUMBER(J24),0,1) -> 0 | Z24: 0 | AA24: 0 | AB24: 0
B25: 14 | C25: Water: Disallowables | D25: WS15014 | E25: £m | F25: 3 | G25: Outturn (nominal) | I25: 0 | J25: 0 | K25: 0 | L25: 0 | M25: 0 | S25: =IF(SUM(X25:AB25)=0,0,$W$4) -> 0 | X25: =IF(ISNUMBER(I25),0,1) -> 0 | Y25: =IF(ISNUMBER(J25),0,1) -> 0 | Z25: 0 | AA25: 0 | AB25: 0
B26: 15 | C26: Water: Transition expenditure | D26: BP767NTIN | E26: £m | F26: 3 | G26: 2012-13 FYA (RPI) | H26: 9.688 | P26: Final 2010-15 reconciliation data pre-populated
B28: E | C28: PAYG
B29: 16 | C29: Water: PAYG ratio | D29: C00766_A001 | E29: % | F29: 2 | G29: - | I29: 0.59762 | J29: 0.60158 | K29: 0.6447 | L29: 0.6568 | M29: 0.6477 | P29: FD14 PAYG ratio. Pre-populate cells
B31: F | C31: Business rates IDoK
B32: 17 | C32: Company specific water business rate sharing rate | D32: WS15017 | E32: % | F32: 2 | G32: - | N32: 0.75 | S32: =IF(SUM(AC32:AC32)=0,0,$W$4) -> 0 | AC32: =IF(ISNUMBER(N32),0,1) -> 0
B33: 18 | C33: Menu Cost Sharing Rate | D33: WS15018 | E33: nr | F33: 2 | G33: - | N33: 0.5 | P33: PR14 reconciliation rulebook specified value. Generic
B34: 19 | C34: Menu Choice Expenditure Factor | D34: WS15019 | E34: % | F34: 2 | G34: - | N34: 1 | P34: PR14 reconciliation rulebook specified value. Generic
B35: 20 | C35: Water business rate constant 2017, 2018, 2019 | D35: WS15020 | E35: nr | F35: 3 | G35: 2012-13 FYA (RPI) | K35: 0 | L35: 0 | M35: 0 | S35: =IF(SUM(Z35:AB35)=0,0,$W$4) -> 0 | Z35: =IF(ISNUMBER(K35),0,1) -> 0 | AA35: =IF(ISNUMBER(L35),0,1) -> 0 | AB35: =IF(ISNUMBER(M35),0,1) -> 0
B36: 21 | C36: Water business rate constant 2017, 2018, 2019 | D36: WS15021 | E36: nr | F36: 3 | G36: Outturn | K36: 0 | L36: 0 | M36: 0 | P36: Calculated. Line 20 inflated from 2012-13 FYA RPI prices to year FYA RPI prices
B37: 22 | C37: Applicable Water Business Rate Costs | D37: WS15022 | E37: nr | F37: 3 | G37: Outturn | K37: 0 | L37: 0 | M37: 0 | S37: =IF(SUM(Z37:AB37)=0,0,$W$4) -> 0 | Z37: =IF(ISNUMBER(K37),0,1) -> 0 | AA37: 0 | AB37: 0
B38: 23 | C38: Water: IDoK Business rates adjustment | D38: WS15023 | E38: nr | F38: 3 | G38: Outturn | K38: 0 | L38: 0 | M38: 0 | S38: =IF(SUM(Z38:AB38)=0,0,$W$4) -> 0 | Z38: 0 | AA38: 0 | AB38: 0
B40: G | C40: Totex menu adjustments
B41: 24 | C41: Water: revenue adjustment from totex menu model | D41: WS15024 | E41: £m | F41: 3 | G41: 2012-13 FYA (RPI) | M41: 3.338355245 | P41: Output item from totex menu model | S41: =IF(SUM(AB41)=0,0,$W$4) -> 0 | AB41: =IF(ISNUMBER(M41),0,1) -> 0
B42: 25 | C42: Water: RCV adjustment from totex menu model | D42: WS15025 | E42: £m | F42: 3 | G42: 2012-13 FYA (RPI) | M42: 32.77115488 | P42: Output item from totex menu model | S42: =IF(SUM(AB42)=0,0,$W$4) -> 0 | AB42: =IF(ISNUMBER(M42),0,1) -> 0
B43: 26 | C43: Water: Totex menu revenue adjustment at 2017-18 FYA CPIH deflated price base | D43: WS15026 | E43: £m | F43: 3 | G43: 2017-18 FYA (CPIH deflated) | M43: =+Summary_Output!F32 -> 3.822061516 | P43: Output item from revenue adjustments model. | S43: =IF(SUM(AB43)=0,0,$W$4) -> 0 | AB43: =IF(ISNUMBER(M43),0,1) -> 0
B44: 27 | C44: Water: Totex menu RCV adjustment at 2017-18 FYA CPIH deflated price base | D44: WS15027 | E44: £m | F44: 3 | G44: 2017-18 FYA (CPIH deflated) | P44: Output item from RCV adjustments model. | S44: =IF(SUM(AB44)=0,0,$W$4) -> Please complete all cells in row | AB44: =IF(ISNUMBER(M44),0,1) -> 1
AC45: =SUM(X18:AC44) -> 1
B46: KEY
C47: Input
C48: Copy
C49: Calculation
C50: Pre populated
B52: WS15 guidance and line definitions
B54: This table contains the water service inputs used for populating the totex menu model and the total reward / (penalty) arising as calculated by the totex menu model. The totex menu model calculates in 2012-13 prices and the adjustments are converted to 2017-18 prices in the revenue adjustments model and the RCV adjustments model. We expect companies to publish their populated totex menu models with associated explanation with the regulatory accounts reporting in July 2018.
B56: Line | C56: Definition
B57: Block A | C57: =$C$5 -> Company details
B58: 1 | C58: Company type is either WaSC or WoC.
B59: 2 | C59: Enhanced or Non-enhanced status in PR14.
B60: 3 | C60: Financing rate. The PR14 final determination weighted average cost of capital.
B61: Block B | C61: =$C$10 -> Menu choices
B62: 4 | C62: The implied menu choice number for water from PR14 final determination company specific appendix.
B63: 5 | C63: The final determinations pension deficit recovery costs allowance for water from PR14 final determination – company specific appendix.
B64: 6 | C64: The submitted final menu choice for water from Menu choice confirmation letter 16th January 2015.
B65: Block C | C65: =$C$15 -> TOTEX
B66: 7 | C66: Ofwat’s view of the menu cost baseline at final determinations from PR14 populated final determination menu model.
B67: 8 | C67: The allowed expenditure in final determinations for input to PAYG from PR14 populated final determination menu model.
B68: 9 | C68: Reported actual totex for water from annual regulatory reporting.
B69: Block D | C69: =$C$20 -> Adjustments to TOTEX
B70: 10-14 | C70: Totex exclusions. Actual totex line items to be excluded in menu totex: third party costs, pension deficit recovery costs, other cash items, disallowables as set out in the PR14 reconciliation rulebook guidance.
B71: 15 | C71: Totex inclusions – Transition expenditure in 2014-15 (confirmed in final 2010-15 reconciliation decision document).
B72: Block E | C72: =$C$28 -> PAYG
B73: 16 | C73: The profile of PAYG ratio allowed in final determinations from PR14 final determination – company specific appendix.
B74: Block F | C74: =$C$31 -> Business rates IDoK
B75: 17-23 | C75: Business rates IDoK. Mechanism to account for the notified item on business rates. Only activated if after successful IDoK. See Annex of company FD letters and section 5.1 of this report for further details.
B76: Block G | C76: =$C$40 -> Totex menu adjustments
B77: 24 | C77: Output item from totex menu model as appears on the Totex menu adjustments sheet.
B78: 25 | C78: Output item from totex menu model as appears on the Totex menu adjustments sheet.
B79: 26 | C79: Output item from revenue adjustments model. Totex menu revenue adjustment - Water network at 2017-18 FYA CPIH deflated price base. The value entered is prior to profiling.
B80: 27 | C80: Output item from RCV adjustments model. Water: Totex menu RCV adjustment at 2017-18 FYA CPIH deflated price base.

Sheet WWS15 - adj ofwat
B1: WWS15 - PR14 wholesale total expenditure outperformance sharing for the wastewater service | N1: Yorkshire Water | P1: Data validation
V2: Completion checks
B3: Line description | D3: Item reference | E3: Units | F3: DPs | G3: Price base | H3: 2014-15 | I3: 2015-16 | J3: 2016-17 | K3: 2017-18 | L3: 2018-19 | M3: 2019-20 | N3: 2015-20 | P3: Calculation, copy or download rule | Q3: Validation description | S3: Completion | V3: Please complete all cells in row
B5: A | C5: Company details
B6: 1 | C6: Company type | D6: BF200 | E6: Nr | F6: 0 | G6: - | N6: 2 | P6: Pre-populate cell. Key: 1=WoC, 2=WaSC
B7: 2 | C7: Is company enhanced? | D7: WWS15001 | E7: text | F7: 0 | G7: - | N7: No | P7: FD14 data pre-populated cell | Q7: Yes or No
B8: 3 | C8: Financing rate | D8: WWS15003 | E8: % | F8: 2 | G8: - | N8: 0.036 | P8: FD14 data pre-populated cell
B10: B | C10: Menu choices
B11: 4 | C11: Sewerage: Implied menu choice | D11: C00728_S004 | E11: Nr | F11: 1 | G11: - | N11: 99.50486988 | P11: FD14 data pre-populated cell
B12: 5 | C12: Sewerage: FD pension deficit recovery costs allowance | D12: C00559 | E12: £m | F12: 3 | G12: 2012-13 FYA (RPI) | I12: 5.93409594 | J12: 5.93409594 | K12: 5.93409594 | L12: 5.93409594 | M12: 5.93409594 | P12: FD14 data pre-populated cells
B13: 6 | C13: Sewerage: Final menu choice | D13: WWS15006 | E13: nr | F13: 1 | G13: - | N13: 99.5 | P13: FD14 data pre-populated cell
B15: C | C15: TOTEX
B16: 7 | C16: Sewerage: Baseline Totex | D16: C00008_S011 | E16: £m | F16: 3 | G16: 2012-13 FYA (RPI) | I16: 388.1276433 | J16: 388.1276433 | K16: 388.1276433 | L16: 388.1276433 | M16: 388.1276433 | P16: FD14 data pre-populated cells
B17: 8 | C17: Sewerage: FD allowed totex inclusive of menu cost exclusions, less PDRC allowance | D17: C00768_A001 | E17: £m | F17: 3 | G17: 2012-13 FYA (RPI) | I17: 387.8878032 | J17: 387.6527026 | K17: 387.6527026 | L17: 387.6527026 | M17: 387.6527026 | P17: FD14 data pre-populated cells
B18: 9 | C18: Sewerage: Actual Totex | D18: S3040MTIN | E18: £m | F18: 3 | G18: Outturn (nominal) | I18: 320.9175 | J18: 417.5456725 | K18: 423.8595192 | L18: 534.687 | M18: 479.651 | P18: APR data pre-populated | S18: =IF( SUM( V18:Z18 ) = 0, 0, $V$3 ) -> 0 | X18: 0 | Y18: 0 | Z18: 0
B20: D | C20: ADJUSTMENTS TO TOTEX
B21: 10 | C21: Sewerage: Third party services (opex) | D21: BM823TASIN | E21: £m | F21: 3 | G21: Outturn (nominal) | I21: 0.002 | J21: 0 | K21: 0 | L21: 0 | M21: 0 | P21: APR data pre-populated | S21: =IF( SUM( V21:Z21 ) = 0, 0, $V$3 ) -> 0 | X21: 0 | Y21: 0 | Z21: 0
B22: 11 | C22: Sewerage: Third party services (capex) | D22: BM833TASIN | E22: £m | F22: 3 | G22: Outturn (nominal) | I22: 0 | J22: 0 | K22: 0 | L22: 0 | M22: 0 | P22: APR data pre-populated | S22: =IF( SUM( V22:Z22 ) = 0, 0, $V$3 ) -> 0 | X22: 0 | Y22: 0 | Z22: 0
B23: 12 | C23: Sewerage: Pension deficit recovery costs | D23: CRS003 | E23: £m | F23: 3 | G23: Outturn (nominal) | I23: 9.786 | J23: 6.482 | K23: 6.086 | L23: 6.276 | M23: 6.465403014 | P23: APR data pre-populated | S23: 0 | X23: 0 | Y23: 0 | Z23: 0
B24: 13 | C24: Sewerage: Other cash items | D24: CR00562TOT | E24: £m | F24: 3 | G24: Outturn (nominal) | I24: 0.544 | J24: 0.883 | K24: 1.388617127 | L24: 1.433 | M24: 1.477 | S24: 0 | V24: 0 | W24: 0 | X24: 0 | Y24: 0 | Z24: 0
B25: 14 | C25: Sewerage: Disallowables | D25: WWS15014 | E25: £m | F25: 3 | G25: Outturn (nominal) | I25: 10 | J25: 46 | K25: 0 | L25: 0 | M25: 0 | S25: 0 | V25: 0 | W25: 0 | X25: 0 | Y25: 0 | Z25: 0
B26: 15 | C26: TTT control: logging up / (down) of scope swaps | D26: WWS15015 | E26: £m | F26: 3 | G26: Outturn (nominal) | I26: 0 | J26: 0 | K26: 0 | L26: 0 | M26: 0 | S26: 0 | V26: 0 | W26: 0 | X26: 0 | Y26: 0 | Z26: 0
B27: 16 | C27: TTT control: Land - 100:0 (customer: company) cost sharing factor | D27: WWS15016 | E27: £m | F27: 3 | G27: Outturn (nominal) | I27: 0 | J27: 0 | K27: 0 | L27: 0 | M27: 0 | S27: 0 | V27: 0 | W27: 0 | X27: 0 | Y27: 0 | Z27: 0
B28: 17 | C28: Sewerage: Transition expenditure | D28: BP867NTIN | E28: £m | F28: 3 | G28: 2012-13 FYA (RPI) | H28: 4.79
B30: E | C30: PAYG
B31: 18 | C31: Sewerage: PAYG ratio | D31: C00770_A001 | E31: % | F31: 2 | G31: - | I31: 0.46617 | J31: 0.43584 | K31: 0.45222 | L31: 0.50477 | M31: 0.61279 | P31: FD14 PAYG ratio. Pre-populate cells
B33: F | C33: Business rates IDoK - Not applicable to wastewater service
B35: G | C35: Totex menu adjustments
B36: 19 | C36: Wastewater: revenue adjustment from totex menu model | D36: WWS15019 | E36: £m | F36: 3 | G36: 2012-13 FYA (RPI) | M36: -5.599195633 | P36: Output item from totex menu model | S36: =IF( SUM( V36:Z36 ) = 0, 0, $V$3 ) -> 0 | Z36: 0
B37: 20 | C37: Wastewater: RCV adjustment from totex menu model | D37: WWS15020 | E37: £m | F37: 3 | G37: 2012-13 FYA (RPI) | M37: -57.50467532 | P37: Output item from totex menu model | S37: =IF( SUM( V37:Z37 ) = 0, 0, $V$3 ) -> 0 | Z37: 0
B38: 21 | C38: Wastewater: Totex menu revenue adjustment at 2017-18 FYA CPIH deflated price base | D38: WWS15021 | E38: £m | F38: 3 | G38: 2017-18 FYA (CPIH deflated) | M38: =+Summary_Output!F44 -> -6.410483182 | P38: Output item from revenue adjustments model. | S38: =IF( SUM( V38:Z38 ) = 0, 0, $V$3 ) -> 0 | Z38: 0
B39: 22 | C39: Wastewater: Totex menu RCV adjustment at 2017-18 FYA CPIH deflated price base | D39: WWS15022 | E39: £m | F39: 3 | G39: 2017-18 FYA (CPIH deflated) | P39: Output item from RCV adjustments model. | S39: =IF( SUM( V39:Z39 ) = 0, 0, $V$3 ) -> Please complete all cells in row | Z39: 1
B41: KEY
C42: Input
C43: Copy
C44: Calculation
C45: Pre populated
B47: WWS15 guidance and line definitions
B49: This table contains the wastewater service inputs used for populating the totex menu model and the total reward / (penalty) arising as calculated by the totex menu model. The totex menu model calculates in 2012-13 prices and the adjustments are converted to 2017-18 prices in the revenue adjustments model and the RCV adjustments model. We expect companies to publish their populated totex menu models with associated explanation with the regulatory accounts reporting in July 2018.
B51: Line | C51: Definition
B52: Block A | C52: =$C$5 -> Company details
B53: 1 | C53: Company type is either WaSC or WoC.
B54: 2 | C54: Enhanced or Non-enhanced status in PR14.
B55: 3 | C55: Financing rate. The PR14 final determination weighted average cost of capital.
B56: Block B | C56: =$C$10 -> Menu choices
B57: 4 | C57: The implied menu choice number for water from PR14 final determination company specific appendix.
B58: 5 | C58: The final determinations pension deficit recovery costs allowance for water from PR14 final determination – company specific appendix.
B59: 6 | C59: The submitted final menu choice for water from Menu choice confirmation letter 16th January 2015.
B60: Block C | C60: =$C$15 -> TOTEX
B61: 7 | C61: Ofwat’s view of the menu cost baseline at final determinations from PR14 populated final determination menu model.
B62: 8 | C62: The allowed expenditure in final determinations for input to PAYG from PR14 populated final determination menu model.
B63: 9 | C63: Reported actual totex for water from annual regulatory reporting.
B64: Block D | C64: =$C$20 -> ADJUSTMENTS TO TOTEX
B65: 10-14 | C65: Totex exclusions. Actual totex line items to be excluded in menu totex: third party costs, pension deficit recovery costs, other cash items, disallowables as set out in the PR14 reconciliation rulebook guidance.
B66: 15 | C66: TTT Control: logging up / (down) of scope swaps. Costs associated with the reallocation of scope from the Infrastructure Provider to Thames Water that are subject to the logging up process.
B67: 16 | C67: TTT control: Land - 100:0 (customer: company) cost sharing factor. TTT control land costs are not subject to the standard menu incentives and have a customer sharing rate of 100:0 to ensure customers benefit from future land disposals.
B68: 17 | C68: Totex inclusions – Transition expenditure in 2014-15 (confirmed in final 2010-15 reconciliation decision document).
B69: Block E | C69: =$C$30 -> PAYG
B70: 18 | C70: The profile of PAYG ratio allowed in final determinations from PR14 final determination – company specific appendix.
B71: Block F | C71: =$C$33 -> Business rates IDoK - Not applicable to wastewater service
B72: Block G | C72: =$C$35 -> Totex menu adjustments
B73: 19 | C73: Output item from totex menu model as appears on the Totex menu adjustments sheet.
B74: 20 | C74: Output item from totex menu model as appears on the Totex menu adjustments sheet.
B75: 21 | C75: Output item from revenue adjustments model. Totex menu revenue adjustment - Wastewater network at 2017-18 FYA CPIH deflated price base. The value entered is prior to profiling.
B76: 22 | C76: Output item from RCV adjustments model. Wastewater: Totex menu RCV adjustment at 2017-18 FYA CPIH deflated price base.
